account_party,address,code,date,document_number,expense_code_name,expense_code_name_short,id,party_cell,party_cell_code,party_cell_geoobject,purpose,source_bank_account_number,source_bank_account_type,sum,target_legal_personality,target_legal_personality_code,target_type
СВОБОДА,"Полтавська обл., Полтава",70,2019-01-03,AN8ct055cp,Банківські послуги,Інші витрати,243524,Лохвицька районна організація,36454152,Полтавська область,комісія про обслуговування недіючого рахунку,26001054639852,current,100.00,"Лохвицька районна організація Всеукраїнське обʼєднання ""Свобода""",36454152,юридична особа
СВОБОДА,"Київ, вул. Миколи Амосова, буд. 12",70,2018-12-31,1,Банківські послуги,Інші витрати,243180,Центральний офіс,00013215,Україна,Списання безнадійної заборгованості,260031804900,current,224915.24,"ПАТ ""Платинум Банк""",33308489,юридична особа
СВОБОДА,"Чернівецька обл., Кіцманський р-н, Кіцмань, вул. Незалежності, буд. 32",70,2018-12-29,9228617325,Банківські послуги,Інші витрати,243700,Кіцманська районна організація,36747124,Чернівецька область,104- 29 інші доходи від суб.господ. ФЧЕРНІВЕЦЬКЕ ОБЛАСН АТ ОЩАД М.ЧЕРНІВЦІ Сплата комісії згідно тарифу,26003300524526,current,1.25,"Чернівецька обласна філія АТ ""Ощадбанк""",09356307,юридична особа
СВОБОДА,"Львівська обл., Львів",70,2018-12-29,2024206,Банківські послуги,Інші витрати,243502,Львівська обласна організація,25561538,Львівська область,оплата за обслуговування тарифного пакету згідно дог,26002010004365,current,175.00,"ПАТ ""Банк український капітал""",22868414,юридична особа
СВОБОДА,"Київ, вул. Симона Петлюри, буд. 30",70,2018-12-29,564055228,Банківські послуги,Інші витрати,243424,Київська обласна організація,36282647,Київська область,Погашення абонплати дог.№ 180176361 від 03.12.2018р.за грудень 2018р.,26002011700361,current,75.00,"АКЦІОНЕРНЕ ТОВАРИСТВО ""ТАСКОМБАНК""",09806443,юридична особа
СВОБОДА,Київ,70,2018-12-29,2603,Банківські послуги,Інші витрати,243363,Тисменицька районна організація,36083799,Івано-Франківська область,Комісія за ведення поточного рахунку,260002805501,current,120.00,"ПАТ ""Банк інвестиції та заощаджень""",33695095,юридична особа
СВОБОДА,Київ,70,2018-12-29,2344,Банківські послуги,Інші витрати,243310,Івано-Франківська обласна організація,26055441,Івано-Франківська область,Комісія за ведення поточного рахунку,260030450601,current,200.00,"ПАТ ""Банк інвестиції та заощаджень""",33695095,юридична особа
СВОБОДА,"Київ, вул. Генерала Алмазова, буд. 18",70,2018-12-29,О0124_6468,Банківські послуги,Інші витрати,243179,Центральний офіс,00013215,Україна,Списання комісії банку,260031804900,current,200.00,"АКБ ""Індустріалбанк""",13857564,юридична особа
СВОБОДА,"Київ, просп. Перемоги, буд. 67",70,2018-12-29,2010184,Банківські послуги,Інші витрати,243178,Центральний офіс,00013215,Україна,Послуги банку,260031804900,current,175.00,"ПАТ ""Банк український капітал""",22868414,юридична особа
СВОБОДА,"Київська обл., Біла Церква, вул. Ярослава Мудрого, буд. 36",61,2018-12-29,6,Військовий збір,Податкові платежі,242030,Київська обласна організація,36282647,Київська область,"Військовий збір 1,5% з заробітної плати за грудень 2018р.",26002011700361,current,109.70,Білоцерківське УДКСУ Київської області,38009832,юридична особа
СВОБОДА,"Київська обл., Біла Церква, площа Перемоги, буд. 12",62,2018-12-29,8,Сплата ЄСВ,Податкові платежі,241787,Київська обласна організація,36282647,Київська область,Внески ЄСВ 22% з заробітної плати за грудень 2018р.,26002011700361,current,1608.87,Білоцерківська ОДНІ М. Біла Церква,39468482,юридична особа
СВОБОДА,"Київська обл., Біла Церква, вул. Ярослава Мудрого, буд. 36",63,2018-12-29,7,Податок на доходи,Податкові платежі,241550,Київська обласна організація,36282647,Київська область,Оплата ПДФО з авансу заробітної плати за грудень 2018р.,26002011700361,current,1316.35,Білоцерківське УДКСУ Київської області,38009832,юридична особа
СВОБОДА,,84,2018-12-29,11,"Заробітна плата, премії","Заробітна плата, лікарняні, вагітності, відрядження, компенсації",241069,Київська обласна організація,36282647,Київська область,Перерахування на картку з/ п за грудень 2018р. Номер рахунка 3025702788,26006180176001,current,2247.77,Однолько Тетяна Анатоліївна,,фізична особа
СВОБОДА,,84,2018-12-29,10,"Заробітна плата, премії","Заробітна плата, лікарняні, вагітності, відрядження, компенсації",241068,Київська обласна організація,36282647,Київська область,Перерахування на картку картку з\п за грудень 2018р.Номер рахунка 2800607672,26006180176001,current,2997.01,Сабій Ігор Михайлович,,фізична особа
СВОБОДА,,84,2018-12-29,9,"Заробітна плата, премії","Заробітна плата, лікарняні, вагітності, відрядження, компенсації",241067,Київська обласна організація,36282647,Київська область,Перерахування на картку з\п за грудень 2018р.Номер рахунка 2766413941,26006180176001,current,1498.51,Філюк Ольга Валеріївна,,фізична особа
СВОБОДА,"Харківська обл., Харків, вул. Чернишевська, буд. 59",79,2018-12-29,26,"Оренда будинків і приміщень та експлуатаційні витрати (прибирання, страхування орендованих будинків, охорона, сигналізація, ремонт, вивіз сміття, тощо)",Оренда нерухомості,240060,Харківська міська організація,25850709,Харківська область,Оренда примiщення згiдно договору N 3 вiд 04.01.2016 та відшкодування витрат за споживчі комунальні послуги за листопад-грудень 2018 року. Без ПДВ,26001052218244,current,10000.00,Харківська обласна організація Національної спілки письменників України,14072262,юридична особа
СВОБОДА,"Київ, вул. Миколи Лєскова, буд. 9",70,2018-12-28,б/н,Банківські послуги,Інші витрати,243679,Красилівська районна організація,36923668,Хмельницька область,Комісія за користування пакетом послуг з 29.11.2018 по 27.12.2018,26005483329,current,100.00,"АТ ""Райффайзен банк Аваль""",14305909,юридична особа
СВОБОДА,"Київ, вул. Михайла Грушевського, буд. 1Д",70,2018-12-28,I12287BYYJ,Банківські послуги,Інші витрати,243596,Скадовська районна організація,39010037,Херсонська область,Еквайрингова комісія,26008052205308,current,3.80,"ПАТ КБ ""Приватбанк""",14360570,юридична особа
СВОБОДА,"Київ, вул. Михайла Грушевського, буд. 1Д",70,2018-12-28,CSO1OHZGVY,Банківські послуги,Інші витрати,243373,Київська міська організація,25665516,Київ,"КОМIСIЯ ЗА ВИКОНАННЯ ПЛАТЕЖIВ В НАЦIОНАЛЬНIЙ ВАЛЮТI, ЗГIДНО З ВIДКРИТОЮ ОФЕРТОЮ БАНКУ N Б/Н ВIД 08.05.2018 ТА ТАРИФIВ БАНКУ, БЕЗ ПДВ.",26004052617992,current,3.00,"ПАТ КБ ""Приватбанк""",14360570,юридична особа
СВОБОДА,"Київ, просп. Перемоги, буд. 67",70,2018-12-28,2010184,Банківські послуги,Інші витрати,243177,Центральний офіс,00013215,Україна,Послуги банку,260031804900,current,727.45,"ПАТ ""Банк український капітал""",22868414,юридична особа
СВОБОДА,"Київ, просп. Перемоги, буд. 67",70,2018-12-28,2010184,Банківські послуги,Інші витрати,243176,Центральний офіс,00013215,Україна,Послуги банку,260031804900,current,236.12,"ПАТ ""Банк український капітал""",22868414,юридична особа
СВОБОДА,"Київ, просп. Перемоги, буд. 67",70,2018-12-28,2010183,Банківські послуги,Інші витрати,243175,Центральний офіс,00013215,Україна,Послуги банку,260031804900,current,36.00,"ПАТ ""Банк український капітал""",22868414,юридична особа
СВОБОДА,"Львівська обл., Львів",60,2018-12-28,7,Інші податки,Податкові платежі,242208,Львівська міська організація,23884355,Львівська область,земельний податок за листопад 2018р.,26003010005352,current,692.50,УДКСУ у Личаківському районі м. Львова,38007620,юридична особа
СВОБОДА,"Київ, вул. Олександра Кошиця, буд. 11",61,2018-12-28,13,Військовий збір,Податкові платежі,242005,Центральний офіс,00013215,Україна,Військовий збір за вересень 2018 р.;;;,260031804900,current,1355.51,УДКСУ в Дарницькому районі,38021179,юридична особа
СВОБОДА,"Київ, вул. Олександра Кошиця, буд. 3",62,2018-12-28,12,Сплата ЄСВ,Податкові платежі,241762,Центральний офіс,00013215,Україна,Єдиний соціальний внесок за вересень 2018,260031804900,current,17710.76,ДПІ у Дарницькому р-ні м. Києва,39479227,юридична особа
СВОБОДА,"Київ, вул. Олександра Кошиця, буд. 11",63,2018-12-28,11,Податок на доходи,Податкові платежі,241525,Центральний офіс,00013215,Україна,ПДФО за вересень 2018,260031804900,current,16266.06,УДКСУ в Дарницькому районі,38021179,юридична особа
СВОБОДА,"Львівська обл., Львів",84,2018-12-28,МА9289281,"Заробітна плата, премії","Заробітна плата, лікарняні, вагітності, відрядження, компенсації",241013,Центральний офіс,00013215,Україна,Зарплата за грудень 2018 р.,260031804900,current,3058.87,Вайда Ярина Михайлівна,,фізична особа
СВОБОДА,"Львівська обл., Львів",84,2018-12-28,МА9289281,"Заробітна плата, премії","Заробітна плата, лікарняні, вагітності, відрядження, компенсації",241012,Центральний офіс,00013215,Україна,Зарплата за грудень 2018 р.,260031804900,current,3058.87,Мельничук Любомир Анатолійович,,фізична особа
СВОБОДА,Київ,84,2018-12-28,МА9289281,"Заробітна плата, премії","Заробітна плата, лікарняні, вагітності, відрядження, компенсації",241011,Центральний офіс,00013215,Україна,Зарплата за грудень 2018 р.,260031804900,current,3058.87,Мохник Андрій Володимирович,,фізична особа
СВОБОДА,"Львівська обл., Львів",84,2018-12-28,МА9289281,"Заробітна плата, премії","Заробітна плата, лікарняні, вагітності, відрядження, компенсації",241010,Центральний офіс,00013215,Україна,Зарплата за грудень 2018 р.,260031804900,current,12853.84,Пелешак Ярослав Антонович,,фізична особа
СВОБОДА,"Львівська обл., Львів",84,2018-12-28,МА9289281,"Заробітна плата, премії","Заробітна плата, лікарняні, вагітності, відрядження, компенсації",241009,Центральний офіс,00013215,Україна,Зарплата за грудень 2018 р.,260031804900,current,22540.00,Кошулинський Руслан Володимирович,,фізична особа
СВОБОДА,Київ,84,2018-12-28,МА9289281,"Заробітна плата, премії","Заробітна плата, лікарняні, вагітності, відрядження, компенсації",241008,Центральний офіс,00013215,Україна,Зарплата за грудень 2018 р.,260031804900,current,28175.00,Тягнибок Олег Ярославович,,фізична особа
СВОБОДА,"Рівненська обл., Рівне, вул. Князя Володимира, буд. 71",79,2018-12-28,44,"Оренда будинків і приміщень та експлуатаційні витрати (прибирання, страхування орендованих будинків, охорона, сигналізація, ремонт, вивіз сміття, тощо)",Оренда нерухомості,240053,Рівненська обласна організація,26353285,Рівненська область,Згідно рахунку №8644199583,26006300976830,current,632.47,Рівнеобленерго,05424874,юридична особа
СВОБОДА,"Рівненська обл., Рівне, вул. Соборна, буд. 12А",79,2018-12-28,43,"Оренда будинків і приміщень та експлуатаційні витрати (прибирання, страхування орендованих будинків, охорона, сигналізація, ремонт, вивіз сміття, тощо)",Оренда нерухомості,240052,Рівненська обласна організація,26353285,Рівненська область,Орендна плата за грудень 2018 за орендовані приміщення згідно договору оренди №2055,26006300976830,current,994.90,Управління комунальною власністю виконавчого комітету Рівненської міської ради,26259563,юридична особа
СВОБОДА,"Полтавська обл., Полтава, вул. Соборності, буд. 14",79,2018-12-28,50,"Оренда будинків і приміщень та експлуатаційні витрати (прибирання, страхування орендованих будинків, охорона, сигналізація, ремонт, вивіз сміття, тощо)",Оренда нерухомості,240030,Полтавська обласна організація,36984343,Полтавська область,Оренда приміщення,26005054629028,current,10664.86,"ТОВ ""Агрополіс на Жовтневій""",38561467,юридична особа
СВОБОДА,"Київ, вул. Магнітогорська, буд. 1",58,2018-12-28,15,"Виготовлення друкованих матеріалів (плакатів, листівок, буклетів та інших агітаційних матеріалів)",Друкована агітація,239633,Київська міська організація,25665516,Київ,"ОПЛАТА ЗА ГАЗЕТУ, ЗГIДНО РАХУНКУ НА ОПЛАТУ N18-2330 ВIД 26.12.2018 РОКУ.",26004052617992,current,4992.00,"ТОВ ""Новий друк""",22891092,юридична особа
СВОБОДА,"Львівська обл., Яворівський р-н, Яворів, площа Ринок, буд. 14",58,2018-12-28,60,"Виготовлення друкованих матеріалів (плакатів, листівок, буклетів та інших агітаційних матеріалів)",Друкована агітація,239619,Центральний офіс,00013215,Україна,Оплата за друк газети,260031804900,current,21519.82,"ТОВ ""ВД ""Молода Галичина""",32148930,юридична особа
СВОБОДА,"Львівська обл., Яворівський р-н, Яворів, площа Ринок, буд. 14",58,2018-12-28,61,"Виготовлення друкованих матеріалів (плакатів, листівок, буклетів та інших агітаційних матеріалів)",Друкована агітація,239618,Центральний офіс,00013215,Україна,Оплата за друк газети,260031804900,current,21179.02,"ТОВ ""ВД ""Молода Галичина""",32148930,юридична особа
СВОБОДА,"Львівська обл., Яворівський р-н, Яворів, площа Ринок, буд. 14",58,2018-12-28,62,"Виготовлення друкованих матеріалів (плакатів, листівок, буклетів та інших агітаційних матеріалів)",Друкована агітація,239617,Центральний офіс,00013215,Україна,Оплата за друк газети,260031804900,current,19577.42,"ТОВ ""ВД ""Молода Галичина""",32148930,юридична особа
СВОБОДА,"Київ, вул. Лугова, буд. 1А",58,2018-12-28,63,"Виготовлення друкованих матеріалів (плакатів, листівок, буклетів та інших агітаційних матеріалів)",Друкована агітація,239616,Центральний офіс,00013215,Україна,Оплата за друк газети,260031804900,current,8160.00,"ТОВ ""Полі-прінт""",32108259,юридична особа
СВОБОДА,"Закарпатська обл., Мукачево, вул. Пряшівська",50,2018-12-28,74,Оплата ефірного часу на радіо,Реклама на радіо,239255,Центральний офіс,00013215,Україна,Оплата за розміщення реклами на радіо,260031804900,current,35060.00,"ТОВ ""КМЦ ""Барви""",22083127,юридична особа
СВОБОДА,"Вінницька обл., Вінниця, Хмельницьке шосе, 82, 806",50,2018-12-28,70,Оплата ефірного часу на радіо,Реклама на радіо,239254,Центральний офіс,00013215,Україна,Оплата за трансляцію аудіопривітання,260031804900,current,14514.00,"ТОВ ""ТРК ""ТАКТ""",24894195,юридична особа
СВОБОДА,"Івано-Франківська обл., Івано-Франківськ, вул. Незалежності, буд. 44",50,2018-12-28,71,Оплата ефірного часу на радіо,Реклама на радіо,239253,Центральний офіс,00013215,Україна,Оплата за трансляцію аудіопривітання,260031804900,current,11491.20,"ТОВ Радіокомпанія ""Західний Полюс""",31523755,юридична особа
СВОБОДА,"Хмельницька обл., Хмельницький, вул. Проскурівська, буд. 4/3",50,2018-12-28,69,Оплата ефірного часу на радіо,Реклама на радіо,239252,Центральний офіс,00013215,Україна,Оплата за трансляцію аудіопривітання,260031804900,current,1992.00,"Міське КП ""Муніципальна телерадіокомпанія ""Місто""",32402179,юридична особа
СВОБОДА,"Одеська обл., Одеса, вул. Канатна, буд. 10",51,2018-12-28,73,Оплата ефірного часу на ТБ,Телереклама,239219,Центральний офіс,00013215,Україна,Оплата за виготовлення та розміщення інформаційних матеріалів,260031804900,current,48000.00,"ТОВ ТРК ""Моя Одеса""",31068509,юридична особа
СВОБОДА,"Чернівецька обл., Чернівці, вул. Емінеску, буд. 2",51,2018-12-28,72,Оплата ефірного часу на ТБ,Телереклама,239218,Центральний офіс,00013215,Україна,Оплата за надання ефірного часу,260031804900,current,35000.00,"ТОВ ""Міська телерадіокомпанія ""Чернівці""",31561607,юридична особа
СВОБОДА,"Івано-Франківська обл., Івано-Франківськ, вул. Галицька, буд. 22",51,2018-12-28,67,Оплата ефірного часу на ТБ,Телереклама,239217,Центральний офіс,00013215,Україна,Оплата за рекламні послуги н телеканалі,260031804900,current,4000.00,"КП ""Івано-Франківське міське КП ""Телерадіокомпанія ""Вежа""",30107672,юридична особа
СВОБОДА,"Івано-Франківська обл., Івано-Франківськ, вул. Михайла Грушевського, буд. 21, 701",51,2018-12-28,68,Оплата ефірного часу на ТБ,Телереклама,239216,Центральний офіс,00013215,Україна,Оплата за рекламні послуги,260031804900,current,2000.00,"Івано-Франківське обласне телебачення ""Галичина""",13641427,юридична особа
СВОБОДА,"Київ, вул. Михайла Грушевського, буд. 1Д",70,2018-12-27,CR0108Q9AY,Банківські послуги,Інші витрати,243732,Чернівецька обласна організація,33971064,Чернівецька область,"Комісія за виконання платежів в національній валюті, згідно з відкритою офертою банку N б/н від 29.09.2017 та тарифів банку, без ПДВ.",26006051509840,current,3.00,"ПАТ КБ ""Приватбанк""",14360570,юридична особа
СВОБОДА,"Київ, вул. Михайла Грушевського, буд. 1Д",70,2018-12-27,1227A21NRA,Банківські послуги,Інші витрати,243595,Скадовська районна організація,39010037,Херсонська область,Комісія за внесення коштів на рахунок,26008052205308,current,7.00,"ПАТ КБ ""Приватбанк""",14360570,юридична особа
СВОБОДА,"Львівська обл., Львів",70,2018-12-27,1996126,Банківські послуги,Інші витрати,243501,Львівська обласна організація,25561538,Львівська область,Оплата за проведення розрах.в зі спис.коштів,26002010004365,current,30.00,"ПАТ ""Банк український капітал""",22868414,юридична особа
СВОБОДА,"Київ, просп. Перемоги, буд. 67",70,2018-12-27,1996127,Банківські послуги,Інші витрати,243174,Центральний офіс,00013215,Україна,Послуги банку,260031804900,current,12.00,"ПАТ ""Банк український капітал""",22868414,юридична особа
СВОБОДА,"Херсонська обл., Скадовський р-н, Скадовськ",83,2018-12-27,1227A21NRA,"Виплати працівникам (не зарплата): лікарняні, вагітності, відрядження, компенсації ","Заробітна плата, лікарняні, вагітності, відрядження, компенсації",241426,Скадовська районна організація,39010037,Херсонська область,"Добові, відрядження",26008052205308,current,474.41,Семенов Федір Йосипович,,фізична особа
СВОБОДА,"Львівська обл., Львів",76,2018-12-27,24,Послуги зв’язку,Послуги зв’язку,240403,Львівська обласна організація,25561538,Львівська область,Оплата за послуги на січень 2019р. згідно рахунку,26002010004365,current,105.00,"ТОВ ""Бізнес і технології""",31442320,юридична особа
СВОБОДА,"Київ, вул. Хрещатик, буд. 22",76,2018-12-27,56,Послуги зв’язку,Послуги зв’язку,240391,Центральний офіс,00013215,Україна,Оплата за користування а/с,260031804900,current,460.80,"Київська міська дирекція ПАТ ""Укрпошта""",01189979,юридична особа
СВОБОДА,"Чернівецька обл., Чернівці, вул. Кобилянської, буд. 3",79,2018-12-27,27,"Оренда будинків і приміщень та експлуатаційні витрати (прибирання, страхування орендованих будинків, охорона, сигналізація, ремонт, вивіз сміття, тощо)",Оренда нерухомості,240081,Чернівецька обласна організація,33971064,Чернівецька область,"*; 101; 33971064; погашення заборг. по оренд.платі за корист.майном що перебув в ком.власн.вул.Шевченка 41, зг.дог N108 та N109 від 29.04.2015р. за грудень ;;;",26006051509840,current,3700.00,УДКСУ у м. Чернівці,37978173,юридична особа
СВОБОДА,"Львівська обл., Львів",79,2018-12-27,26,"Оренда будинків і приміщень та експлуатаційні витрати (прибирання, страхування орендованих будинків, охорона, сигналізація, ремонт, вивіз сміття, тощо)",Оренда нерухомості,240011,Львівська обласна організація,25561538,Львівська область,Оплата за розподіл природного газу,26002010004365,current,491.99,"ПАТ ""Львівгаз""",03349039,юридична особа
СВОБОДА,"Львівська обл., Львів",79,2018-12-27,25,"Оренда будинків і приміщень та експлуатаційні витрати (прибирання, страхування орендованих будинків, охорона, сигналізація, ремонт, вивіз сміття, тощо)",Оренда нерухомості,240010,Львівська обласна організація,25561538,Львівська область,Оплата за постачання природного газу,26002010004365,current,1406.90,"ТОВ ""Львівгаз збут""",39594527,юридична особа
СВОБОДА,"Київ, вул. Лугова, буд. 1А",58,2018-12-27,59,"Виготовлення друкованих матеріалів (плакатів, листівок, буклетів та інших агітаційних матеріалів)",Друкована агітація,239615,Центральний офіс,00013215,Україна,Оплата за друк газети,260031804900,current,25000.80,"ТОВ ""Полі-прінт""",32108259,юридична особа
СВОБОДА,"Київ, вул. Вʼячеслава Чорновола, буд. 41, 201",53,2018-12-27,57,Витрати на розміщення зовнішньої реклами,Зовнішня реклама,239312,Центральний офіс,00013215,Україна,Оплата за розміщення зовнішньої реклами,260031804900,current,21240.00,"ТОВ ""ДМ-плакат""",33344527,юридична особа
СВОБОДА,"Київ, вул. Новомостицька, буд. 2",51,2018-12-27,58,Оплата ефірного часу на ТБ,Телереклама,239215,Центральний офіс,00013215,Україна,Оалата за розміщення реклами,260031804900,current,15360.00,"ТОВ ""Лайф-Медіа""",37569931,юридична особа
СВОБОДА,"Чернівецька обл., Кіцманський р-н, Кіцмань, вул. Івана Миколайчука, буд. 1",79,2018-12-22,2,"Оренда будинків і приміщень та експлуатаційні витрати (прибирання, страхування орендованих будинків, охорона, сигналізація, ремонт, вивіз сміття, тощо)",Оренда нерухомості,240069,Кіцманська районна організація,36747124,Чернівецька область,"Орендна плата та відшкодування за електроенергію за період 01.10.2018-31.12.2018рр зг. дог. оренди №182 від 16.03.2017р, рах. №30,33,36 від 20.12.18р",26003300524526,current,379.00,"Кіцманська районна організація ВФСТ ""Колос""",26466210,юридична особа
СВОБОДА,"Львівська обл., Львів",70,2018-12-21,1951853,Банківські послуги,Інші витрати,243500,Львівська обласна організація,25561538,Львівська область,Оплата за проведення розрах.в зі спис.коштів,26002010004365,current,40.00,"ПАТ ""Банк український капітал""",22868414,юридична особа
СВОБОДА,Київ,70,2018-12-21,16610,Банківські послуги,Інші витрати,243362,Тисменицька районна організація,36083799,Івано-Франківська область,Комісія за платежі за межі банку,260002805501,current,100.00,"ПАТ ""Банк інвестиції та заощаджень""",33695095,юридична особа
СВОБОДА,Київ,70,2018-12-21,16604,Банківські послуги,Інші витрати,243309,Івано-Франківська обласна організація,26055441,Івано-Франківська область,Комісія за платежі за межі банку,260030450601,current,100.00,"ПАТ ""Банк інвестиції та заощаджень""",33695095,юридична особа
СВОБОДА,"Львівська обл., Львів",61,2018-12-21,22,Військовий збір,Податкові платежі,242053,Львівська обласна організація,25561538,Львівська область,Військовий збір,26002010004365,current,171.00,УДКСУ у Галицькому районі м. Львова,38007573,юридична особа
СВОБОДА,"Львівська обл., Львів",62,2018-12-21,21,Сплата ЄСВ,Податкові платежі,241811,Львівська обласна організація,25561538,Львівська область,Єдиний внесок,26002010004365,current,2507.89,Галицька ОДПІ ГУ ДФС у Львівській області,39508163,юридична особа
СВОБОДА,"Львівська обл., Львів",63,2018-12-21,20,Податок на доходи,Податкові платежі,241573,Львівська обласна організація,25561538,Львівська область,ПДФО,26002010004365,current,2051.91,УДКСУ у Галицькому районі м. Львова,38007573,юридична особа
СВОБОДА,"Львівська обл., Червоноград",79,2018-12-21,12,"Оренда будинків і приміщень та експлуатаційні витрати (прибирання, страхування орендованих будинків, охорона, сигналізація, ремонт, вивіз сміття, тощо)",Оренда нерухомості,240019,Червоноградська міська організація,33963980,Львівська область,Оплата за оренду приміщення,26007073101005,current,617.50,"КП ""Червонограджитлокомунсервіс""",31616100,юридична особа
СВОБОДА,"Івано-Франківська обл., Івано-Франківськ",79,2018-12-21,1,"Оренда будинків і приміщень та експлуатаційні витрати (прибирання, страхування орендованих будинків, охорона, сигналізація, ремонт, вивіз сміття, тощо)",Оренда нерухомості,239981,Тисменицька районна організація,36083799,Івано-Франківська область,Оплата за оренду,260002805501,current,2711.68,Івано-Франківська обласна рада,37951998,юридична особа
СВОБОДА,"Івано-Франківська обл., Івано-Франківськ",79,2018-12-21,2,"Оренда будинків і приміщень та експлуатаційні витрати (прибирання, страхування орендованих будинків, охорона, сигналізація, ремонт, вивіз сміття, тощо)",Оренда нерухомості,239980,Тисменицька районна організація,36083799,Івано-Франківська область,Оплата за комунальні послуги,260002805501,current,1771.21,Комунальне підриємство обласної ради,39088370,юридична особа
СВОБОДА,"Івано-Франківська обл., Івано-Франківськ",79,2018-12-21,1,"Оренда будинків і приміщень та експлуатаційні витрати (прибирання, страхування орендованих будинків, охорона, сигналізація, ремонт, вивіз сміття, тощо)",Оренда нерухомості,239961,Івано-Франківська обласна організація,26055441,Івано-Франківська область,Оплата за оренду,260030450601,current,3711.04,Івано-Франківська обласна рада,37951998,юридична особа
СВОБОДА,"Івано-Франківська обл., Івано-Франківськ",79,2018-12-21,2,"Оренда будинків і приміщень та експлуатаційні витрати (прибирання, страхування орендованих будинків, охорона, сигналізація, ремонт, вивіз сміття, тощо)",Оренда нерухомості,239960,Івано-Франківська обласна організація,26055441,Івано-Франківська область,Оплата за комунальні послуги,260030450601,current,2670.03,Комунальне підриємство обласної ради,39088370,юридична особа
СВОБОДА,"Львівська обл., Львів",50,2018-12-21,23,Оплата ефірного часу на радіо,Реклама на радіо,239256,Львівська обласна організація,25561538,Львівська область,оплпта за оголошення в радіоефірі згідно рахунку,26002010004365,current,840.00,"КБ Телестудія ""Радехів""",32704103,юридична особа
СВОБОДА,"Київ, вул. Михайла Грушевського, буд. 1Д",70,2018-12-18,108,Банківські послуги,Інші витрати,243666,Камʼянець-Подільська районна організація,25803823,Хмельницька область,Комісія РКО від зарплати за а першу половину грудня 2018р.,26005052312438,current,3.75,"ПАТ КБ ""Приватбанк""",14360570,юридична особа
СВОБОДА,"Київ, вул. Михайла Грушевського, буд. 1Д",70,2018-12-18,CIO1NBI48Y,Банківські послуги,Інші витрати,243665,Камʼянець-Подільська районна організація,25803823,Хмельницька область,Комісія за виконання платежів в націон.валюті,26005052312438,current,3.00,"ПАТ КБ ""Приватбанк""",14360570,юридична особа
СВОБОДА,"Київ, вул. Михайла Грушевського, буд. 1Д",70,2018-12-18,CIO1NBGXAY,Банківські послуги,Інші витрати,243664,Камʼянець-Подільська районна організація,25803823,Хмельницька область,Комісія за виконання платежів в націон.валюті,26005052312438,current,3.00,"ПАТ КБ ""Приватбанк""",14360570,юридична особа
СВОБОДА,"Київ, вул. Михайла Грушевського, буд. 1Д",70,2018-12-18,9KO1DHVO0Y,Банківські послуги,Інші витрати,243663,Камʼянець-Подільська районна організація,25803823,Хмельницька область,Комісія за виконання платежів в націон.валюті,26005052312438,current,3.00,"ПАТ КБ ""Приватбанк""",14360570,юридична особа
СВОБОДА,"Київ, вул. Михайла Грушевського, буд. 1Д",70,2018-12-18,VB-WW1Y05,Банківські послуги,Інші витрати,243243,Ківерцівська районна організація,35600068,Волинська область,"Погашення дебіторської заборгованості, Ківерцівська РО ВО",26001060514346,current,3.00,"ПАТ КБ ""Приватбанк""",14360570,юридична особа
СВОБОДА,"Хмельницька обл., Хмельницький",61,2018-12-18,105,Військовий збір,Податкові платежі,242066,Камʼянець-Подільська районна організація,25803823,Хмельницька область,Військовий збір від зарплати за першу половину грудня 2018 р.,26005052312438,current,56.00,УК у Камʼянець-Подільському районі Чернівецької області,37971377,юридична особа
СВОБОДА,"Хмельницька обл., Хмельницький",63,2018-12-18,104,Податок на доходи,Податкові платежі,241586,Камʼянець-Подільська районна організація,25803823,Хмельницька область,ПДФО від зарплати за першу половину грудня 2018 р.,26005052312438,current,671.00,УК у Камʼянець-Подільському районі Чернівецької області,37971377,юридична особа
СВОБОДА,"Хмельницька обл., Камʼянець-Подільський",84,2018-12-18,107,"Заробітна плата, премії","Заробітна плата, лікарняні, вагітності, відрядження, компенсації",241182,Камʼянець-Подільська районна організація,25803823,Хмельницька область,Зарплата за першу половину грудня 2018р.,26005052312438,current,1500.00,Посітко Михайло Володимирович,,фізична особа
СВОБОДА,"Київська обл., Біла Церква, вул. Ярослава Мудрого, буд. 36",61,2018-12-17,1,Військовий збір,Податкові платежі,242029,Київська обласна організація,36282647,Київська область,"Військовий збір 1,5% з заробітної плати аванс за грудень 2018р.",26002011700361,current,99.73,Білоцерківське УДКСУ Київської області,38009832,юридична особа
СВОБОДА,"Київська обл., Біла Церква, площа Перемоги, буд. 12",62,2018-12-17,3,Сплата ЄСВ,Податкові платежі,241786,Київська обласна організація,36282647,Київська область,Внески ЄСВ 22% з заробітної плати аванс за л грудень 2018р.,26002011700361,current,1462.61,Білоцерківська ОДНІ М. Біла Церква,39468482,юридична особа
СВОБОДА,"Київська обл., Біла Церква, вул. Ярослава Мудрого, буд. 36",63,2018-12-17,2,Податок на доходи,Податкові платежі,241549,Київська обласна організація,36282647,Київська область,Оплата ПДФО з авансу заробітної плати аванс за грудень 2018р.,26002011700361,current,1196.68,Білоцерківське УДКСУ Київської області,38009832,юридична особа
СВОБОДА,,84,2018-12-17,4,"Заробітна плата, премії","Заробітна плата, лікарняні, вагітності, відрядження, компенсації",241066,Київська обласна організація,36282647,Київська область,Перерахування на картку картку з\п аванс за грудень 2018р.Номер рахунка 2800607672,26006180176001,current,2997.02,Сабій Ігор Михайлович,,фізична особа
СВОБОДА,,84,2018-12-17,5,"Заробітна плата, премії","Заробітна плата, лікарняні, вагітності, відрядження, компенсації",241065,Київська обласна організація,36282647,Київська область,Перерахування на картку з\п аванс за грудень 2018р.Номер рахунка 2766413941,26006180176001,current,1498.51,Філюк Ольга Валеріївна,,фізична особа
СВОБОДА,"Волинська обл., Луцьк",69,2018-12-13,1,Організація заходів та інші організаційні послуги,Організація заходів та інші організаційні послуги,244663,Ківерцівська районна організація,35600068,Волинська область,За оренду приміщення (проведення заходу) тзгідно рахунку тбез ПДВ,26001060514346,current,1600.00,"Відділ культури, туризму, молоді та спорту Ківерцівської РДА",02226910,юридична особа
СВОБОДА,"Київ, вул. Михайла Грушевського, буд. 1Д",70,2018-12-13,CDO1MRC6QY,Банківські послуги,Інші витрати,243242,Ківерцівська районна організація,35600068,Волинська область,"Комісія за виконання платежів в національній валюті, згідно з відкритою офертою банку від 05.10.2010 та тарифів банку, без ПДВ",26001060514346,current,3.00,"ПАТ КБ ""Приватбанк""",14360570,юридична особа
СВОБОДА,"Волинська обл., Луцьк",58,2018-12-13,2,"Виготовлення друкованих матеріалів (плакатів, листівок, буклетів та інших агітаційних матеріалів)",Друкована агітація,239621,Ківерцівська районна організація,35600068,Волинська область,За афішу згідно рахунку №285/18 без ПДВ,26001060514346,current,1140.00,Захарук В М,,фізична особа
СВОБОДА,"Івано-Франківська обл., Івано-Франківськ",70,2018-12-10,8521924610,Банківські послуги,Інші витрати,243352,Надвірнянська районна організація,26055910,Івано-Франківська область,Списання щомісячної плати за обслуговування ТП Моя громада,26000300009742,current,43.00,"Надвірнянська районна організація Всеукраїнське обʼєднання ""Свобода""",26055910,юридична особа
СВОБОДА,"Київ, просп. Визволителів, буд. 3",82,2018-12-07,54,"Гонорари, в тому числі за надані консультаційні послуги","Гонорари, в тому числі за надані консультаційні послуги",244636,Центральний офіс,00013215,Україна,Оплата за консультаційні послуги,260031804900,current,391.00,"ТОВ ""Київська бухгалтерська служба""",33299265,юридична особа
СВОБОДА,"Львівська обл., Львів",70,2018-12-07,1871280,Банківські послуги,Інші витрати,243499,Львівська обласна організація,25561538,Львівська область,Оплата за проведення розрах.в зі спис.коштів,26002010004365,current,15.00,"ПАТ ""Банк український капітал""",22868414,юридична особа
СВОБОДА,"Івано-Франківська обл., Івано-Франківськ",70,2018-12-07,8350792110,Банківські послуги,Інші витрати,243351,Надвірнянська районна організація,26055910,Івано-Франківська область,Погашення нарахованої комісії за внесення готівки,26000300009742,current,5.00,"Надвірнянська районна організація Всеукраїнське обʼєднання ""Свобода""",26055910,юридична особа
СВОБОДА,"Івано-Франківська обл., Івано-Франківськ",70,2018-12-07,7963385510,Банківські послуги,Інші витрати,243350,Надвірнянська районна організація,26055910,Івано-Франківська область,Списання щомісячної плати за обслуговування ТП Моя громада,26000300009742,current,6.00,"Надвірнянська районна організація Всеукраїнське обʼєднання ""Свобода""",26055910,юридична особа
СВОБОДА,"Київ, просп. Перемоги, буд. 67",70,2018-12-07,1870352,Банківські послуги,Інші витрати,243173,Центральний офіс,00013215,Україна,Послуги банку,260031804900,current,378.35,"ПАТ ""Банк український капітал""",22868414,юридична особа
СВОБОДА,"Київ, просп. Перемоги, буд. 67",70,2018-12-07,1871281,Банківські послуги,Інші витрати,243172,Центральний офіс,00013215,Україна,Послуги банку,260031804900,current,33.00,"ПАТ ""Банк український капітал""",22868414,юридична особа
СВОБОДА,"Львівська обл., Львів",61,2018-12-07,18,Військовий збір,Податкові платежі,242052,Львівська обласна організація,25561538,Львівська область,Військовий збір,26002010004365,current,80.85,УДКСУ у Галицькому районі м. Львова,38007573,юридична особа
СВОБОДА,"Київ, вул. Олександра Кошиця, буд. 11",61,2018-12-07,53,Військовий збір,Податкові платежі,242004,Центральний офіс,00013215,Україна,Військовий збір за листопад 2018 р.;;;,260031804900,current,705.01,УДКСУ в Дарницькому районі,38021179,юридична особа
СВОБОДА,"Львівська обл., Львів",62,2018-12-07,16,Сплата ЄСВ,Податкові платежі,241810,Львівська обласна організація,25561538,Львівська область,Єдиний внесок,26002010004365,current,1185.78,Галицька ОДПІ ГУ ДФС у Львівській області,39508163,юридична особа
СВОБОДА,"Львівська обл., Львів",62,2018-12-07,17,Сплата ЄСВ,Податкові платежі,241809,Львівська обласна організація,25561538,Львівська область,Єдиний внесок х декретних Кіт І.Ю.,26002010004365,current,6780.59,Галицька ОДПІ ГУ ДФС у Львівській області,39508163,юридична особа
СВОБОДА,"Київ, вул. Олександра Кошиця, буд. 3",62,2018-12-07,52,Сплата ЄСВ,Податкові платежі,241761,Центральний офіс,00013215,Україна,Єдиний соціальний внесок за листопад 2018,260031804900,current,8762.23,ДПІ у Дарницькому р-ні м. Києва,39479227,юридична особа
СВОБОДА,"Львівська обл., Львів",63,2018-12-07,15,Податок на доходи,Податкові платежі,241572,Львівська обласна організація,25561538,Львівська область,ПДФО,26002010004365,current,970.20,УДКСУ у Галицькому районі м. Львова,38007573,юридична особа
СВОБОДА,"Київ, вул. Олександра Кошиця, буд. 11",63,2018-12-07,51,Податок на доходи,Податкові платежі,241524,Центральний офіс,00013215,Україна,ПДФО за листопад 2018,260031804900,current,8460.10,УДКСУ в Дарницькому районі,38021179,юридична особа
СВОБОДА,"Львівська обл., Львів",84,2018-12-07,МА9289280,"Заробітна плата, премії","Заробітна плата, лікарняні, вагітності, відрядження, компенсації",241007,Центральний офіс,00013215,Україна,Зарплата за листопад 2018 р.,260031804900,current,1446.29,Вайда Ярина Михайлівна,,фізична особа
СВОБОДА,"Львівська обл., Львів",84,2018-12-07,МА9289280,"Заробітна плата, премії","Заробітна плата, лікарняні, вагітності, відрядження, компенсації",241006,Центральний офіс,00013215,Україна,Зарплата за листопад 2018 р.,260031804900,current,1446.29,Мельничук Любомир Анатолійович,,фізична особа
СВОБОДА,Київ,84,2018-12-07,МА9289280,"Заробітна плата, премії","Заробітна плата, лікарняні, вагітності, відрядження, компенсації",241005,Центральний офіс,00013215,Україна,Зарплата за листопад 2018 р.,260031804900,current,1446.29,Мохник Андрій Володимирович,,фізична особа
СВОБОДА,"Львівська обл., Львів",84,2018-12-07,МА9289280,"Заробітна плата, премії","Заробітна плата, лікарняні, вагітності, відрядження, компенсації",241004,Центральний офіс,00013215,Україна,Зарплата за листопад 2018 р.,260031804900,current,9346.48,Пелешак Ярослав Антонович,,фізична особа
СВОБОДА,"Львівська обл., Львів",84,2018-12-07,МА9289280,"Заробітна плата, премії","Заробітна плата, лікарняні, вагітності, відрядження, компенсації",241003,Центральний офіс,00013215,Україна,Зарплата за листопад 2018 р.,260031804900,current,10465.00,Кошулинський Руслан Володимирович,,фізична особа
СВОБОДА,Київ,84,2018-12-07,МА9289280,"Заробітна плата, премії","Заробітна плата, лікарняні, вагітності, відрядження, компенсації",241002,Центральний офіс,00013215,Україна,Зарплата за листопад 2018 р.,260031804900,current,13685.00,Тягнибок Олег Ярославович,,фізична особа
СВОБОДА,"Київ, бульв. Тараса Шевченка, буд. 18",76,2018-12-07,45,Послуги зв’язку,Послуги зв’язку,240390,Центральний офіс,00013215,Україна,Оплата за телекомунікаційні послуги,260031804900,current,270.98,"ПАТ ""Укртелеком""",21560766,юридична особа
СВОБОДА,"Київ, вул. Смоленська, буд. 31-33",76,2018-12-07,49,Послуги зв’язку,Послуги зв’язку,240389,Центральний офіс,00013215,Україна,Оплата за телекомунікаційні послуги,260031804900,current,86.40,"ПрАТ ""Датагруп""",31720260,юридична особа
СВОБОДА,"Львівська обл., Львів",79,2018-12-07,19,"Оренда будинків і приміщень та експлуатаційні витрати (прибирання, страхування орендованих будинків, охорона, сигналізація, ремонт, вивіз сміття, тощо)",Оренда нерухомості,240009,Львівська обласна організація,25561538,Львівська область,Відшкодування витрат за прибирання території,26002010004365,current,43.39,"КП ЛОР ""Нерухомість та майно""",33358550,юридична особа
СВОБОДА,"Івано-Франківська обл., Надворнянський р-н, Надвірна",79,2018-12-07,12,"Оренда будинків і приміщень та експлуатаційні витрати (прибирання, страхування орендованих будинків, охорона, сигналізація, ремонт, вивіз сміття, тощо)",Оренда нерухомості,239973,Надвірнянська районна організація,26055910,Івано-Франківська область,Оплата за оренду,26000300009742,current,300.00,"ТОВ ""Радіосервіс""",13659309,юридична особа
СВОБОДА,"Івано-Франківська обл., Івано-Франківськ, вул. Незалежності, буд. 53",58,2018-12-07,50,"Виготовлення друкованих матеріалів (плакатів, листівок, буклетів та інших агітаційних матеріалів)",Друкована агітація,239614,Центральний офіс,00013215,Україна,Оплата за друк газети,260031804900,current,103200.00,"ТОВ ""Місто НВ""",30106695,юридична особа
СВОБОДА,"Київ, вул. Лугова, буд. 1А",58,2018-12-07,55,"Виготовлення друкованих матеріалів (плакатів, листівок, буклетів та інших агітаційних матеріалів)",Друкована агітація,239613,Центральний офіс,00013215,Україна,Оплата за друк газети,260031804900,current,25000.80,"ТОВ ""Полі-прінт""",32108259,юридична особа
СВОБОДА,"Львівська обл., Яворівський р-н, Яворів, площа Ринок, буд. 14",58,2018-12-07,47,"Виготовлення друкованих матеріалів (плакатів, листівок, буклетів та інших агітаційних матеріалів)",Друкована агітація,239612,Центральний офіс,00013215,Україна,Оплата за друк газети,260031804900,current,22314.60,"ТОВ ""ВД ""Молода Галичина""",32148930,юридична особа
СВОБОДА,"Львівська обл., Яворівський р-н, Яворів, площа Ринок, буд. 14",58,2018-12-07,48,"Виготовлення друкованих матеріалів (плакатів, листівок, буклетів та інших агітаційних матеріалів)",Друкована агітація,239611,Центральний офіс,00013215,Україна,Оплата за друк газети,260031804900,current,21519.82,"ТОВ ""ВД ""Молода Галичина""",32148930,юридична особа
СВОБОДА,"Львівська обл., Яворівський р-н, Яворів, площа Ринок, буд. 14",58,2018-12-07,46,"Виготовлення друкованих матеріалів (плакатів, листівок, буклетів та інших агітаційних матеріалів)",Друкована агітація,239610,Центральний офіс,00013215,Україна,Оплата за друк газети,260031804900,current,11904.60,"ТОВ ""ВД ""Молода Галичина""",32148930,юридична особа
СВОБОДА,Київ,70,2018-12-06,12661,Банківські послуги,Інші витрати,243308,Івано-Франківська обласна організація,26055441,Івано-Франківська область,Комісія за платежі за межі банку,260030450601,current,50.00,"ПАТ ""Банк інвестиції та заощаджень""",33695095,юридична особа
СВОБОДА,"Полтавська обл., Полтава, вул. Соборності, буд. 14",79,2018-12-06,49,"Оренда будинків і приміщень та експлуатаційні витрати (прибирання, страхування орендованих будинків, охорона, сигналізація, ремонт, вивіз сміття, тощо)",Оренда нерухомості,240029,Полтавська обласна організація,36984343,Полтавська область,Оренда приміщення,26005054629028,current,10554.65,"ТОВ ""Агрополіс на Жовтневій""",38561467,юридична особа
СВОБОДА,"Івано-Франківська обл., Івано-Франківськ",58,2018-12-06,1,"Виготовлення друкованих матеріалів (плакатів, листівок, буклетів та інших агітаційних матеріалів)",Друкована агітація,239630,Івано-Франківська обласна організація,26055441,Івано-Франківська область,Оплата за друк,260030450601,current,2000.00,"ТОВ ""Місто НВ""",30106695,юридична особа
СВОБОДА,"Київ, просп. Визволителів, буд. 3",82,2018-12-04,44,"Гонорари, в тому числі за надані консультаційні послуги","Гонорари, в тому числі за надані консультаційні послуги",244635,Центральний офіс,00013215,Україна,Оплата за консультаційні послуги,260031804900,current,490.00,"ТОВ ""Київська бухгалтерська служба""",33299265,юридична особа
СВОБОДА,"Київ, вул. Михайла Грушевського, буд. 1Д",70,2018-12-04,103,Банківські послуги,Інші витрати,243662,Камʼянець-Подільська районна організація,25803823,Хмельницька область,Комiсiя РКО вiд зарплати за листопада 2018р.,26005052312438,current,3.74,"ПАТ КБ ""Приватбанк""",14360570,юридична особа
СВОБОДА,"Київ, вул. Михайла Грушевського, буд. 1Д",70,2018-12-04,C4O1LNEJNY,Банківські послуги,Інші витрати,243567,Тернопільська обласна організація,35708383,Тернопільська область,"комісія за виконання платежів в національній валюті, згідно з відкритою офертою банку № б\н від 09.10.2015 та тарифів банку, без ПДВ",26000055115389,current,3.00,"ПАТ КБ ""Приватбанк""",14360570,юридична особа
СВОБОДА,"Київ, вул. Михайла Грушевського, буд. 1Д",70,2018-12-04,C4O1LMCEZY,Банківські послуги,Інші витрати,243372,Київська міська організація,25665516,Київ,"КОМIСIЯ ЗА ВИКОНАННЯ ПЛАТЕЖIВ В НАЦIОНАЛЬНIЙ ВАЛЮТI, ЗГIДНО З ВIДКРИТОЮ ОФЕРТОЮ БАНКУ N Б/Н ВIД 08.05.2018 ТА ТАРИФIВ БАНКУ, БЕЗ ПДВ",26004052617992,current,3.00,"ПАТ КБ ""Приватбанк""",14360570,юридична особа
СВОБОДА,"Київ, вул. Михайла Грушевського, буд. 1Д",70,2018-12-04,C4O1LO7TGX,Банківські послуги,Інші витрати,243253,Дніпропетровська обласна організація,26511459,Дніпропетровська область,Комісія за виконання платежів в післяопераційний час,26005050264582,current,40.00,"ПАТ КБ ""Приватбанк""",14360570,юридична особа
СВОБОДА,"Київ, вул. Михайла Грушевського, буд. 1Д",70,2018-12-04,C4O1LO7TGY,Банківські послуги,Інші витрати,243252,Дніпропетровська обласна організація,26511459,Дніпропетровська область,Комісія за виконання платежів,26005050264582,current,3.00,"ПАТ КБ ""Приватбанк""",14360570,юридична особа
СВОБОДА,"Київ, просп. Перемоги, буд. 67",70,2018-12-04,1840975,Банківські послуги,Інші витрати,243171,Центральний офіс,00013215,Україна,Послуги банку,260031804900,current,3.00,"ПАТ ""Банк український капітал""",22868414,юридична особа
СВОБОДА,"Хмельницька обл., Камʼянець-Подільський",84,2018-12-04,102,"Заробітна плата, премії","Заробітна плата, лікарняні, вагітності, відрядження, компенсації",241181,Камʼянець-Подільська районна організація,25803823,Хмельницька область,Зарплата за листопад 2018р.,26005052312438,current,1497.01,Посітко Михайло Володимирович,,фізична особа
СВОБОДА,"Тернопільська обл., Тернопіль, бульв. Тараса Шевченка, буд. 21",79,2018-12-04,73,"Оренда будинків і приміщень та експлуатаційні витрати (прибирання, страхування орендованих будинків, охорона, сигналізація, ремонт, вивіз сміття, тощо)",Оренда нерухомості,240054,Тернопільська обласна організація,35708383,Тернопільська область,за оренду згідно рахунку №3037 від 31.10.2018,26000055115389,current,11586.00,Управління обліку та контролю за використанням комунального майна Тернопільської міської ради,37519833,юридична особа
СВОБОДА,"Київ, вул. Бориса Грінченка, буд. 7",79,2018-12-04,14,"Оренда будинків і приміщень та експлуатаційні витрати (прибирання, страхування орендованих будинків, охорона, сигналізація, ремонт, вивіз сміття, тощо)",Оренда нерухомості,239983,Київська міська організація,25665516,Київ,"ОПЛАТА ЗА ОРЕНДУ ПРИМIЩЕННЯ 12.12.2018 Р, ЗГIДНО ДОГОВОРУ ОПЕРАТИВНОЇ ОРЕНДИ N АI879 ВIД 03.12.2018Р.",26004052617992,current,12000.00,Національна спілка архітекторів України,00016395,юридична особа
СВОБОДА,"Київ, вул. Магнітогорська, буд. 1",58,2018-12-04,13,"Виготовлення друкованих матеріалів (плакатів, листівок, буклетів та інших агітаційних матеріалів)",Друкована агітація,239632,Київська міська організація,25665516,Київ,"ОПЛАТА ЗА ГАЗЕТУ, ЗГIДНО РАХУНКУ НА ОПЛАТУ N18-2119 ВIД 23.11.2018 РОКУ.",26004052617992,current,4992.00,"ТОВ ""Новий друк""",22891092,юридична особа
СВОБОДА,"Дніпропетровська обл., Дніпро́, вул. Барикадна, буд. 15А",58,2018-12-04,26,"Виготовлення друкованих матеріалів (плакатів, листівок, буклетів та інших агітаційних матеріалів)",Друкована агітація,239622,Дніпропетровська обласна організація,26511459,Дніпропетровська область,Олата за рекламну кампанію згідно договору №1-28918,26005050264582,current,20000.00,"ТОВ ""Сілл""",40043500,юридична особа
СВОБОДА,"Київ, вул. Михайла Грушевського, буд. 1Д",70,2018-12-03,AS8bux97lp,Банківські послуги,Інші витрати,243731,Чернівецька обласна організація,33971064,Чернівецька область,"Комісія за обслуговування рахунку за листопад 2018 р. згідно договору банківського рахунку від 29.09.2017, без ПДВ",26006051509840,current,100.00,"ПАТ КБ ""Приватбанк""",14360570,юридична особа
СВОБОДА,"Чернівецька обл., Чернівці, Головна вул., 119",70,2018-12-03,6552201725,Банківські послуги,Інші витрати,243705,Чернівецька міська організація,33917562,Чернівецька область,"49 за надання довідок, дублікатів дов ФЧЕРНІВЕЦЬКЕ ОВЛАСН АТОЩАД М.ЧЕРНІВЦІ Сплата комісії згідно тарифу",26002300454404,current,50.00,"Чернівецька обласна філія АТ ""Ощадбанк""",09356307,юридична особа
СВОБОДА,"Київ, вул. Михайла Грушевського, буд. 1Д",70,2018-12-03,AS8buwvccp,Банківські послуги,Інші витрати,243661,Камʼянець-Подільська районна організація,25803823,Хмельницька область,Комісія за обслуговування рахунку за листопад 2018р.,26005052312438,current,100.00,"ПАТ КБ ""Приватбанк""",14360570,юридична особа
СВОБОДА,"Київ, вул. Михайла Грушевського, буд. 1Д",70,2018-12-03,AS8BUTBJTP,Банківські послуги,Інші витрати,243571,Харківська міська організація,25850709,Харківська область,"Комiсiя за обслуговування рахунку за листопад 2018 р. згiдно договору банкiвського рахунку вiд 22.03.2016, без ПДВ.",26001052218244,current,100.00,"ПАТ КБ ""Приватбанк""",14360570,юридична особа
СВОБОДА,"Київ, вул. Михайла Грушевського, буд. 1Д",70,2018-12-03,AS8buuoglp,Банківські послуги,Інші витрати,243566,Тернопільська обласна організація,35708383,Тернопільська область,"комісія за обслуговування рахунку за листопад 2018 р. згідно договору банківського рахунку від 09.10.2015, без ПДВ",26000055115389,current,100.00,"ПАТ КБ ""Приватбанк""",14360570,юридична особа
СВОБОДА,"Київ, вул. Госпітальна, буд. 12Г",70,2018-12-03,6152445818,Банківські послуги,Інші витрати,243556,Рівненська обласна організація,26353285,Рівненська область,Коміс.за розрах.обсл.рахунку 26006300976830 з 01.11.2018 по 30.11.2018,26006300976830,current,15.00,"АТ ""Ощадбанк""",00032129,юридична особа
СВОБОДА,"Київ, вул. Михайла Грушевського, буд. 1Д",70,2018-12-03,AS8buus08p,Банківські послуги,Інші витрати,243540,Полтавська обласна організація,36984343,Полтавська область,Комісія за обслуговування рахунку,26005054629028,current,50.00,"ПАТ КБ ""Приватбанк""",14360570,юридична особа
СВОБОДА,"Київ, вул. Михайла Грушевського, буд. 1Д",70,2018-12-03,АSbux332p,Банківські послуги,Інші витрати,243441,Бродівська районна організація,25249769,Львівська область,оплата рахунку за листопад згідно банк.договору,26001300453260,current,100.00,"ПАТ КБ ""Приватбанк""",14360570,юридична особа
СВОБОДА,"Київ, вул. Архітектора Вербицького, буд. 18",70,2018-12-03,2044980450,Банківські послуги,Інші витрати,243423,Київська обласна організація,36282647,Київська область,Погашення абонплати за листопад 2018р.,26002011700361,current,190.00,"Київська обласна організація Всеукраїнське обʼєднання ""Свобода""",36282647,юридична особа
СВОБОДА,"Київ, вул. Михайла Грушевського, буд. 1Д",70,2018-12-03,AS8BUX4UPP,Банківські послуги,Інші витрати,243371,Київська міська організація,25665516,Київ,"КОМIСIЯ ЗА ОБСЛУГОВУВАННЯ РАХУНКУ ЗА ЛИСТОПАД 2018 Р. ЗГIДНО ДОГОВОРУ БАНКIВСЬКОГО РАХУНКУ ВIД 08.05.2018, БЕЗ ПДВ.",26004052617992,current,100.00,"ПАТ КБ ""Приватбанк""",14360570,юридична особа
СВОБОДА,"Івано-Франківська обл., Івано-Франківськ",70,2018-12-03,6152855210,Банківські послуги,Інші витрати,243349,Надвірнянська районна організація,26055910,Івано-Франківська область,Комісія за обслуговування поточного рахунку,26000300009742,current,20.00,"Надвірнянська районна організація Всеукраїнське обʼєднання ""Свобода""",26055910,юридична особа
СВОБОДА,"Київ, вул. Михайла Грушевського, буд. 1Д",70,2018-12-03,AN8bu06vtp,Банківські послуги,Інші витрати,243289,Городенківська районна організація,36247801,Івано-Франківська область,Комісія за обслуговування недіючого рахунку,26007052520606,current,100.00,"ПАТ КБ ""Приватбанк""",14360570,юридична особа
СВОБОДА,"Київ, вул. Михайла Грушевського, буд. 1Д",70,2018-12-03,AN8bu02q4p,Банківські послуги,Інші витрати,243278,Житомирська районна організація,36710660,Житомирська область,"комісія за обслуговув.недіючого рах.№ 200045055816119 за листопад 2018, без ПДВ",26004055810119,current,100.00,"ПАТ КБ ""Приватбанк""",14360570,юридична особа
СВОБОДА,"Київ, вул. Михайла Грушевського, буд. 1Д",70,2018-12-03,AS86R95AWP,Банківські послуги,Інші витрати,243273,Криничанська районна організація,38673191,Дніпропетровська область,Комісія за обслуговування рахунку,26002050262941,current,100.00,"ПАТ КБ ""Приватбанк""",14360570,юридична особа
СВОБОДА,"Київ, вул. Михайла Грушевського, буд. 1Д",70,2018-12-03,AN8bu06stp,Банківські послуги,Інші витрати,243189,Вінницька обласна організація,33911707,Вінницька область,"Комісія за обслуговування недіючого рахунку №26006055327445 за жовтень 2018 р., згідно тарифів банку, без ПДВ",26006055327445,current,100.00,"ПАТ КБ ""Приватбанк""",14360570,юридична особа
СВОБОДА,"Київська обл., Богуславський р-н, Богуслав, вул. Миколаївська, буд. 30А",49,2018-12-03,374,Публікування матеріалів у друкованих ЗМІ,Реклама в друкованих ЗМІ,239284,Київська обласна організація,36282647,Київська область,Оплата за оголошення в газеті рах №559 від 03.12.2018,26002011700361,current,1197.00,"ТОВ “Редакція ""Вісті Богуславщини""",,юридична особа
СВОБОДА,"Львівська обл., Львів",70,2018-11-30,1805006,Банківські послуги,Інші витрати,243498,Львівська обласна організація,25561538,Львівська область,оплата за обслуговування тарифного пакету згідно дог,26002010004365,current,175.00,"ПАТ ""Банк український капітал""",22868414,юридична особа
СВОБОДА,"Київ, вул. Михайла Грушевського, буд. 1Д",70,2018-11-30,BUO1L5EURY,Банківські послуги,Інші витрати,243272,Криничанська районна організація,38673191,Дніпропетровська область,Комісія за виконання платежів,26002050262941,current,3.00,"ПАТ КБ ""Приватбанк""",14360570,юридична особа
СВОБОДА,"Київ, вул. Генерала Алмазова, буд. 18",70,2018-11-30,О0124_6468,Банківські послуги,Інші витрати,243181,Центральний офіс,00013215,Україна,Списання комісії банку,260031804900,current,200.00,"АКБ ""Індустріалбанк""",13857564,юридична особа
СВОБОДА,"Київ, просп. Перемоги, буд. 67",70,2018-11-30,1805007,Банківські послуги,Інші витрати,243170,Центральний офіс,00013215,Україна,Послуги банку,260031804900,current,175.00,"ПАТ ""Банк український капітал""",22868414,юридична особа
СВОБОДА,"Дніпропетровська обл., Криничанський р-н, Кринички, вул. Центральна, буд. 1",79,2018-11-30,24,"Оренда будинків і приміщень та експлуатаційні витрати (прибирання, страхування орендованих будинків, охорона, сигналізація, ремонт, вивіз сміття, тощо)",Оренда нерухомості,239950,Криничанська районна організація,38673191,Дніпропетровська область,Орендна плата за приміщення за жовтень-листопад 2018,26002050262941,current,1200.00,"ПРИВАТНА АГРОФІРМА ""КОЛОС""",21912975,юридична особа
СВОБОДА,"Київ, вул. Миколи Лєскова, буд. 9",70,2018-11-29,б/н,Банківські послуги,Інші витрати,243678,Красилівська районна організація,36923668,Хмельницька область,Комісія за користування пакетом послуг з 30.10.2018 по 28.11.2018,26005483329,current,100.00,"АТ ""Райффайзен банк Аваль""",14305909,юридична особа
СВОБОДА,"Львівська обл., Львів",70,2018-11-29,1790795,Банківські послуги,Інші витрати,243497,Львівська обласна організація,25561538,Львівська область,Оплата за проведення розрах.в зі спис.коштів,26002010004365,current,12.00,"ПАТ ""Банк український капітал""",22868414,юридична особа
СВОБОДА,"Київ, вул. Архітектора Вербицького, буд. 18",70,2018-11-29,2042266766,Банківські послуги,Інші витрати,243422,Київська обласна організація,36282647,Київська область,Погашення комісії за РКО дог.№ 26002011700361 від 24.09.2015р.,26002011700361,current,6.00,"Київська обласна організація Всеукраїнське обʼєднання ""Свобода""",36282647,юридична особа
СВОБОДА,"Київ, просп. Перемоги, буд. 67",70,2018-11-29,1790796,Банківські послуги,Інші витрати,243169,Центральний офіс,00013215,Україна,Послуги банку,260031804900,current,21.00,"ПАТ ""Банк український капітал""",22868414,юридична особа
СВОБОДА,"Київська обл., Біла Церква, вул. Ярослава Мудрого, буд. 36",61,2018-11-29,370,Військовий збір,Податкові платежі,242028,Київська обласна організація,36282647,Київська область,"Військовий збір 1,5% з заробітної платиза листопад 2018р.",26002011700361,current,104.71,Білоцерківське УДКСУ Київської області,38009832,юридична особа
СВОБОДА,"Київська обл., Біла Церква, площа Перемоги, буд. 12",62,2018-11-29,369,Сплата ЄСВ,Податкові платежі,241785,Київська обласна організація,36282647,Київська область,Внески ЄСВ 22% з заробітної плати за листопад 2018р.,26002011700361,current,1535.74,Білоцерківська ОДНІ М. Біла Церква,39468482,юридична особа
СВОБОДА,"Київська обл., Біла Церква, вул. Ярослава Мудрого, буд. 36",63,2018-11-29,368,Податок на доходи,Податкові платежі,241548,Київська обласна організація,36282647,Київська область,Оплата ПДФО з авансу заробітної плати за листопад 2018р.,26002011700361,current,1256.51,Білоцерківське УДКСУ Київської області,38009832,юридична особа
СВОБОДА,,84,2018-11-29,373,"Заробітна плата, премії","Заробітна плата, лікарняні, вагітності, відрядження, компенсації",241064,Київська обласна організація,36282647,Київська область,Перерахування на картку картку з\п за листопад 2018р.Номер рахунка 26250005283962,26002011700361,current,2997.02,Сабій Ігор Михайлович,,фізична особа
СВОБОДА,,84,2018-11-29,372,"Заробітна плата, премії","Заробітна плата, лікарняні, вагітності, відрядження, компенсації",241063,Київська обласна організація,36282647,Київська область,Перерахування на картку з\п за листопад 2018р.Номер рахунка 26258006998214,26002011700361,current,1498.51,Філюк Ольга Валеріївна,,фізична особа
СВОБОДА,,84,2018-11-29,371,"Заробітна плата, премії","Заробітна плата, лікарняні, вагітності, відрядження, компенсації",241062,Київська обласна організація,36282647,Київська область,Перерахування на картку з/ п за листопад 2018р. Номер рахунка 26259005283963,26002011700361,current,1123.88,Однолько Тетяна Анатоліївна,,фізична особа
СВОБОДА,"Львівська обл., Львів",76,2018-11-29,11,Послуги зв’язку,Послуги зв’язку,240402,Львівська обласна організація,25561538,Львівська область,Оплата за послуги на грудень 2018р. згідно рахунку,26002010004365,current,105.00,"ТОВ ""Бізнес і технології""",31442320,юридична особа
СВОБОДА,"Київ, вул. Рогнідинська, буд. 4А",76,2018-11-29,37,Послуги зв’язку,Послуги зв’язку,240388,Центральний офіс,00013215,Україна,Оплата за послуги доступу до мережі Інтернет,260031804900,current,2400.00,"ТОВ ""Інтертелеком""",22927111,юридична особа
СВОБОДА,"Львівська обл., Львів",79,2018-11-29,13,"Оренда будинків і приміщень та експлуатаційні витрати (прибирання, страхування орендованих будинків, охорона, сигналізація, ремонт, вивіз сміття, тощо)",Оренда нерухомості,240008,Львівська обласна організація,25561538,Львівська область,Оплата за розподіл природного газу,26002010004365,current,120.66,"ПАТ ""Львівгаз""",03349039,юридична особа
СВОБОДА,"Львівська обл., Львів",79,2018-11-29,12,"Оренда будинків і приміщень та експлуатаційні витрати (прибирання, страхування орендованих будинків, охорона, сигналізація, ремонт, вивіз сміття, тощо)",Оренда нерухомості,240007,Львівська обласна організація,25561538,Львівська область,Оплата за постачання природного газу,26002010004365,current,6960.22,"ТОВ ""Львівгаз збут""",39594527,юридична особа
СВОБОДА,"Львівська обл., Львів",79,2018-11-29,14,"Оренда будинків і приміщень та експлуатаційні витрати (прибирання, страхування орендованих будинків, охорона, сигналізація, ремонт, вивіз сміття, тощо)",Оренда нерухомості,240006,Львівська обласна організація,25561538,Львівська область,Відшкодування витрат за прибирання території,26002010004365,current,42.31,"КП ЛОР ""Нерухомість та майно""",33358550,юридична особа
СВОБОДА,"Київ, вул. Лугова, буд. 1А",58,2018-11-29,39,"Виготовлення друкованих матеріалів (плакатів, листівок, буклетів та інших агітаційних матеріалів)",Друкована агітація,239609,Центральний офіс,00013215,Україна,Оплата за друк газети,260031804900,current,25000.80,"ТОВ ""Полі-прінт""",32108259,юридична особа
СВОБОДА,"Львівська обл., Яворівський р-н, Яворів, площа Ринок, буд. 14",58,2018-11-29,41,"Виготовлення друкованих матеріалів (плакатів, листівок, буклетів та інших агітаційних матеріалів)",Друкована агітація,239608,Центральний офіс,00013215,Україна,Оплата за друк газети,260031804900,current,22314.60,"ТОВ ""ВД ""Молода Галичина""",32148930,юридична особа
СВОБОДА,"Львівська обл., Яворівський р-н, Яворів, площа Ринок, буд. 14",58,2018-11-29,40,"Виготовлення друкованих матеріалів (плакатів, листівок, буклетів та інших агітаційних матеріалів)",Друкована агітація,239607,Центральний офіс,00013215,Україна,Оплата за друк газети,260031804900,current,22314.60,"ТОВ ""ВД ""Молода Галичина""",32148930,юридична особа
СВОБОДА,"Львівська обл., Яворівський р-н, Яворів, площа Ринок, буд. 14",58,2018-11-29,43,"Виготовлення друкованих матеріалів (плакатів, листівок, буклетів та інших агітаційних матеріалів)",Друкована агітація,239606,Центральний офіс,00013215,Україна,Оплата за друк газети,260031804900,current,10410.00,"ТОВ ""ВД ""Молода Галичина""",32148930,юридична особа
СВОБОДА,"Львівська обл., Яворівський р-н, Яворів, площа Ринок, буд. 14",58,2018-11-29,42,"Виготовлення друкованих матеріалів (плакатів, листівок, буклетів та інших агітаційних матеріалів)",Друкована агітація,239605,Центральний офіс,00013215,Україна,Оплата за друк газети,260031804900,current,960.00,"ТОВ ""ВД ""Молода Галичина""",32148930,юридична особа
СВОБОДА,"Київ, вул. Вʼячеслава Чорновола, буд. 41, 201",53,2018-11-29,38,Витрати на розміщення зовнішньої реклами,Зовнішня реклама,239311,Центральний офіс,00013215,Україна,Оплата за розміщення зовнішньої реклами,260031804900,current,6000.00,"ТОВ ""ДМ-плакат""",33344527,юридична особа
СВОБОДА,"Львівська обл., Львів",59,2018-11-28,7,Грошова застава,Грошова застава,244483,Львівська обласна організація,25561538,Львівська область,для кандидатат на посаду міського голови,26002010004365,current,1692.00,Бібрська міська виборча комісія,33892040,юридична особа
СВОБОДА,"Львівська обл., Львів",59,2018-11-28,8,Грошова застава,Грошова застава,244482,Львівська обласна організація,25561538,Львівська область,для виборчих списків кандедатів в депутати,26002010004365,current,1692.00,Бібрська міська виборча комісія,33892040,юридична особа
СВОБОДА,"Львівська обл., Львів",59,2018-11-28,9,Грошова застава,Грошова застава,244481,Львівська обласна організація,25561538,Львівська область,для кандидатат на посаду міського голови,26002010004365,current,1949.00,Радехівська міська виборча комісія,34104481,юридична особа
СВОБОДА,"Львівська обл., Львів",59,2018-11-28,10,Грошова застава,Грошова застава,244480,Львівська обласна організація,25561538,Львівська область,для виборчих списків кандедатів в депутати,26002010004365,current,1949.00,Радехівська міська виборча комісія,34104481,юридична особа
СВОБОДА,"Київ, вул. Михайла Грушевського, буд. 1Д",70,2018-11-28,BSO1L06AFY,Банківські послуги,Інші витрати,243730,Чернівецька обласна організація,33971064,Чернівецька область,"Комісія за виконання платежів в національній валюті, згідно з відкритою офертою банку N б/н від 29.09.2017 та тарифів банку, без ПДВ.",26006051509840,current,3.00,"ПАТ КБ ""Приватбанк""",14360570,юридична особа
СВОБОДА,"Львівська обл., Львів",70,2018-11-28,1777573,Банківські послуги,Інші витрати,243496,Львівська обласна організація,25561538,Львівська область,Оплата за проведення розрах.в зі спис.коштів,26002010004365,current,12.00,"ПАТ ""Банк український капітал""",22868414,юридична особа
СВОБОДА,"Чернівецька обл., Чернівці, вул. Кобилянської, буд. 3",79,2018-11-28,26,"Оренда будинків і приміщень та експлуатаційні витрати (прибирання, страхування орендованих будинків, охорона, сигналізація, ремонт, вивіз сміття, тощо)",Оренда нерухомості,240080,Чернівецька обласна організація,33971064,Чернівецька область,"*;101;33971064;погашення заборг. по оренд.платі за корист.майном що перебув в ком.власн.вул.Шевченка 41, зг.дог N108 та N109 від 29.04.2015р.;;;",26006051509840,current,3700.00,УДКСУ у м. Чернівці,37978173,юридична особа
СВОБОДА,"Чернівецька обл., Хотинський р-н, Хотин, вул. Незалежності, буд. 54",59,2018-11-27,24,Грошова застава,Грошова застава,244489,Чернівецька обласна організація,33971064,Чернівецька область,"*;101;33971064;Кошти на заставу від виборч.списку кандид. у депутати на виборах Хотин.міськ.ОТГ від Хотинс.міськ.парт.орг. Всеукр.обʼеднання ""СВОБОДА"";;;",26006051509840,current,1440.00,Хотинська міська виборча комісія,34090825,юридична особа
СВОБОДА,"Чернівецька обл., Хотинський р-н, Хотин, вул. Незалежності, буд. 54",59,2018-11-27,25,Грошова застава,Грошова застава,244488,Чернівецька обласна організація,33971064,Чернівецька область,"*;101;33971064;Кошти на заставу від Музики Романа Ярославови-ча,канд.на посаду Хотин.міськ. головиОТГ від Хотинс.міськ.парт.орг. Всеукр.обʼеднання ""СВОБОДА;;;",26006051509840,current,1440.00,Хотинська міська виборча комісія,34090825,юридична особа
СВОБОДА,"Тернопільська обл., Монастириський р-н, Монастириська, вул. Шевченка, буд. 19",59,2018-11-27,70,Грошова застава,Грошова застава,244486,Тернопільська обласна організація,35708383,Тернопільська область,"грошова застава за кандидатів в депутати до Монастириської міської ради від МРПО ВО "" Свобода""",26000055115389,current,1144.00,Монастирська МВК,34039816,юридична особа
СВОБОДА,"Тернопільська обл., Гусятинський р-н, Копичинці, вул. 2 січня, буд. 29",59,2018-11-27,71,Грошова застава,Грошова застава,244485,Тернопільська обласна організація,35708383,Тернопільська область,"грошова застава за кандидатів в депутати до Копичинецької міської ради від ГРО ВО "" Свобода""",26000055115389,current,1413.00,Копичинецька міська виборча комісія,33866326,юридична особа
СВОБОДА,"Тернопільська обл., Монастириський р-н, Монастириська, вул. Шевченка, буд. 19",59,2018-11-27,69,Грошова застава,Грошова застава,244484,Тернопільська обласна організація,35708383,Тернопільська область,"грошова застава за кандидата на міського голову Монастириська за поданням МРПО ВО "" Свобода""",26000055115389,current,1144.00,Монастирська МВК,34039816,юридична особа
СВОБОДА,"Київ, вул. Михайла Грушевського, буд. 1Д",70,2018-11-27,BR01KSMWZY,Банківські послуги,Інші витрати,243729,Чернівецька обласна організація,33971064,Чернівецька область,"Комісія за виконання платежів в національній валюті, згідно з відкритою офертою банку N б/н від 29.09.2017 та тарифів банку, без ПДВ.",26006051509840,current,3.00,"ПАТ КБ ""Приватбанк""",14360570,юридична особа
СВОБОДА,"Київ, вул. Михайла Грушевського, буд. 1Д",70,2018-11-27,BR01KSMWYY,Банківські послуги,Інші витрати,243728,Чернівецька обласна організація,33971064,Чернівецька область,"Комісія за виконання платежів в національній валюті, згідно з відкритою офертою банку N б/н від 29.09.2017 та тарифів банку, без ПДВ.",26006051509840,current,3.00,"ПАТ КБ ""Приватбанк""",14360570,юридична особа
СВОБОДА,"Київ, вул. Михайла Грушевського, буд. 1Д",70,2018-11-27,BRO1KVUL0Y,Банківські послуги,Інші витрати,243565,Тернопільська обласна організація,35708383,Тернопільська область,"комісія за виконання платежів в національній валюті, згідно з відкритою офертою банку № б\н від 09.10.2015 та тарифів банку, без ПДВ",26000055115389,current,3.00,"ПАТ КБ ""Приватбанк""",14360570,юридична особа
СВОБОДА,"Київ, вул. Михайла Грушевського, буд. 1Д",70,2018-11-27,BRO1KVUIZY,Банківські послуги,Інші витрати,243564,Тернопільська обласна організація,35708383,Тернопільська область,"комісія за виконання платежів в національній валюті, згідно з відкритою офертою банку № б\н від 09.10.2015 та тарифів банку, без ПДВ",26000055115389,current,3.00,"ПАТ КБ ""Приватбанк""",14360570,юридична особа
СВОБОДА,"Київ, вул. Михайла Грушевського, буд. 1Д",70,2018-11-27,BRO1KVUIKY,Банківські послуги,Інші витрати,243563,Тернопільська обласна організація,35708383,Тернопільська область,"комісія за виконання платежів в національній валюті, згідно з відкритою офертою банку № б\н від 09.10.2015 та тарифів банку, без ПДВ",26000055115389,current,3.00,"ПАТ КБ ""Приватбанк""",14360570,юридична особа
СВОБОДА,"Київ, вул. Архітектора Вербицького, буд. 18",70,2018-11-27,2040164444,Банківські послуги,Інші витрати,243421,Київська обласна організація,36282647,Київська область,Погашення комісії за РКО дог.№ 26002011700361 від 24.09.2015р.,26002011700361,current,2.00,"Київська обласна організація Всеукраїнське обʼєднання ""Свобода""",36282647,юридична особа
СВОБОДА,"Рівненська обл., Рівне, вул. Соборна, буд. 12А",79,2018-11-27,42,"Оренда будинків і приміщень та експлуатаційні витрати (прибирання, страхування орендованих будинків, охорона, сигналізація, ремонт, вивіз сміття, тощо)",Оренда нерухомості,240051,Рівненська обласна організація,26353285,Рівненська область,Орендна плата за листопад 2018 за орендовані приміщення згідно договору оренди №2055,26006300976830,current,981.24,Управління комунальною власністю виконавчого комітету Рівненської міської ради,26259563,юридична особа
СВОБОДА,"Рівненська обл., Рівне, вул. Князя Володимира, буд. 71",79,2018-11-27,41,"Оренда будинків і приміщень та експлуатаційні витрати (прибирання, страхування орендованих будинків, охорона, сигналізація, ремонт, вивіз сміття, тощо)",Оренда нерухомості,240050,Рівненська обласна організація,26353285,Рівненська область,Згідно рахунку №8594591268,26006300976830,current,914.49,Рівнеобленерго,05424874,юридична особа
СВОБОДА,"Київська обл., Богуславський р-н, Богуслав, вул. Миколаївська, буд. 30А",49,2018-11-27,367,Публікування матеріалів у друкованих ЗМІ,Реклама в друкованих ЗМІ,239283,Київська обласна організація,36282647,Київська область,Оплата за оголошення в газеті рах № 3546 від 23.11.2018,26002011700361,current,247.68,"ТОВ “Редакція ""Вісті Богуславщини""",,юридична особа
СВОБОДА,"Київ, вул. Оноре де Бальзака, буд. 8В, 109",70,2018-11-24,12,Банківські послуги,Інші витрати,243370,Київська міська організація,25665516,Київ,"ФIНСУВАННЯ СТАТУТНОЇ ДIЯЛЬНОСТI ДЕСНЯНСЬКОЇ РАЙОННОЇ У М. КИЄВI ОРГАНIЗАЦIЇ ВО ""СВОБОДА"" (НА СПЛАТУ КОМIСIЇ БАНКА ЗА ВIДКРИТТЯ РАХУНКУ)",26004052617992,current,100.00,"Деснянська районна організація Всеукраїнське обʼєднання ""Свобода""",38293650,юридична особа
СВОБОДА,"Київ, вул. Михайла Грушевського, буд. 1Д",70,2018-11-24,LHGCT00071,Банківські послуги,Інші витрати,243364,Деснянська районна організація,38293650,Київ,ПОГАШЕННЯ ЗАБОРГОВАНОСТI ЗА РОЗРАХУНКОВОКАСОВЕ ОБСЛУГОВУВАННЯ,26009052624258,current,100.00,"ПАТ КБ ""Приватбанк""",14360570,юридична особа
СВОБОДА,"Київ, вул. Михайла Грушевського, буд. 1Д",70,2018-11-23,BNO1KJS6NY,Банківські послуги,Інші витрати,243440,Бродівська районна організація,25249769,Львівська область,комісія за викогаггя платежів в нац.валюті,26001300453260,current,3.00,"ПАТ КБ ""Приватбанк""",14360570,юридична особа
СВОБОДА,"Київ, вул. Архітектора Вербицького, буд. 18",70,2018-11-23,2037375904,Банківські послуги,Інші витрати,243420,Київська обласна організація,36282647,Київська область,Погашення комісії за РКО дог.№ 26002011700361 від 24.09.2015р.,26002011700361,current,12.00,"Київська обласна організація Всеукраїнське обʼєднання ""Свобода""",36282647,юридична особа
СВОБОДА,"Київ, просп. Перемоги, буд. 67",70,2018-11-23,1734558,Банківські послуги,Інші витрати,243168,Центральний офіс,00013215,Україна,Послуги банку,260031804900,current,418.60,"ПАТ ""Банк український капітал""",22868414,юридична особа
СВОБОДА,"Київ, просп. Перемоги, буд. 67",70,2018-11-23,1735479,Банківські послуги,Інші витрати,243167,Центральний офіс,00013215,Україна,Послуги банку,260031804900,current,6.00,"ПАТ ""Банк український капітал""",22868414,юридична особа
СВОБОДА,"Львівська обл., Львів",84,2018-11-23,МА9289279,"Заробітна плата, премії","Заробітна плата, лікарняні, вагітності, відрядження, компенсації",241001,Центральний офіс,00013215,Україна,Аванс за листопад 2018 р.,260031804900,current,1610.00,Вайда Ярина Михайлівна,,фізична особа
СВОБОДА,"Львівська обл., Львів",84,2018-11-23,МА9289279,"Заробітна плата, премії","Заробітна плата, лікарняні, вагітності, відрядження, компенсації",241000,Центральний офіс,00013215,Україна,Аванс за листопад 2018 р.,260031804900,current,1610.00,Мельничук Любомир Анатолійович,,фізична особа
СВОБОДА,Київ,84,2018-11-23,МА9289279,"Заробітна плата, премії","Заробітна плата, лікарняні, вагітності, відрядження, компенсації",240999,Центральний офіс,00013215,Україна,Аванс за листопад 2018 р.,260031804900,current,1610.00,Мохник Андрій Володимирович,,фізична особа
СВОБОДА,"Львівська обл., Львів",84,2018-11-23,МА9289279,"Заробітна плата, премії","Заробітна плата, лікарняні, вагітності, відрядження, компенсації",240998,Центральний офіс,00013215,Україна,Аванс за листопад 2018 р.,260031804900,current,10465.00,Пелешак Ярослав Антонович,,фізична особа
СВОБОДА,"Львівська обл., Львів",84,2018-11-23,МА9289279,"Заробітна плата, премії","Заробітна плата, лікарняні, вагітності, відрядження, компенсації",240997,Центральний офіс,00013215,Україна,Аванс за листопад 2018 р.,260031804900,current,12075.00,Кошулинський Руслан Володимирович,,фізична особа
СВОБОДА,Київ,84,2018-11-23,МА9289279,"Заробітна плата, премії","Заробітна плата, лікарняні, вагітності, відрядження, компенсації",240996,Центральний офіс,00013215,Україна,Аванс за листопад 2018 р.,260031804900,current,14490.00,Тягнибок Олег Ярославович,,фізична особа
СВОБОДА,"Львівська обл., Бродівський р-н, Броди, вул. Залізнична, буд. 42",79,2018-11-23,1,"Оренда будинків і приміщень та експлуатаційні витрати (прибирання, страхування орендованих будинків, охорона, сигналізація, ремонт, вивіз сміття, тощо)",Оренда нерухомості,239984,Бродівська районна організація,25249769,Львівська область,Орендна плата за користування приміщенням,26001300453260,current,1063.52,Бродівська міська рада,37904651,юридична особа
СВОБОДА,"Івано-Франківська обл., Івано-Франківськ, вул. Незалежності, буд. 53",58,2018-11-23,15,"Виготовлення друкованих матеріалів (плакатів, листівок, буклетів та інших агітаційних матеріалів)",Друкована агітація,239604,Центральний офіс,00013215,Україна,Оплата за друк газети,260031804900,current,84000.00,"ТОВ ""Місто НВ""",30106695,юридична особа
СВОБОДА,"Київська обл., Богуславський р-н, Богуслав, вул. Миколаївська, буд. 30А",49,2018-11-23,366,Публікування матеріалів у друкованих ЗМІ,Реклама в друкованих ЗМІ,239282,Київська обласна організація,36282647,Київська область,Оплата за оголошення в газеті рах № 3546 від 23.11.2018 Повернення платежу,26002011700361,current,247.68,"ТОВ “Редакція ""Вісті Богуславщини""",,юридична особа
СВОБОДА,"Київ, вул. Євгена Коновальця, буд. 32Г, 249",51,2018-11-23,36,Оплата ефірного часу на ТБ,Телереклама,239214,Центральний офіс,00013215,Україна,Оплата за послуги по розміщенню реклами,260031804900,current,12600.00,"ТОВ ""Преміум Медіа Груп""",34716807,юридична особа
СВОБОДА,"Київ, площа Лесі Українки, буд. 1",59,2018-11-22,363,Грошова застава,Грошова застава,244479,Київська обласна організація,36282647,Київська область,"Внесення грошової застави Миронівською РО ВО""Свобода""",26002011700361,current,1919.00,Миронівська міська виборча комісія,33958834,юридична особа
СВОБОДА,"Львівська обл., Львів",70,2018-11-22,1722464,Банківські послуги,Інші витрати,243495,Львівська обласна організація,25561538,Львівська область,Оплата за проведення розрах.в зі спис.кошт.в післяопер.час,26002010004365,current,30.00,"ПАТ ""Банк український капітал""",22868414,юридична особа
СВОБОДА,"Київ, вул. Михайла Грушевського, буд. 1Д",70,2018-11-22,LHIA500101,Банківські послуги,Інші витрати,243439,Бродівська районна організація,25249769,Львівська область,погашення заборгованості за розрахунково-касове обслуговування,26001300453260,current,100.00,"ПАТ КБ ""Приватбанк""",14360570,юридична особа
СВОБОДА,"Київ, вул. Архітектора Вербицького, буд. 18",70,2018-11-22,2035102463,Банківські послуги,Інші витрати,243419,Київська обласна організація,36282647,Київська область,Погашення комісії за РКО дог.№ 26002011700361 від 24.09.2015р.,26002011700361,current,6.00,"Київська обласна організація Всеукраїнське обʼєднання ""Свобода""",36282647,юридична особа
СВОБОДА,"Київ, вул. Архітектора Вербицького, буд. 18",70,2018-11-22,2035101348,Банківські послуги,Інші витрати,243418,Київська обласна організація,36282647,Київська область,Погашення комісії за РКО дог.№ 26002011700361 від 24.09.2015р.,26002011700361,current,5.00,"Київська обласна організація Всеукраїнське обʼєднання ""Свобода""",36282647,юридична особа
СВОБОДА,"Львівська обл., Львів",61,2018-11-22,6,Військовий збір,Податкові платежі,242051,Львівська обласна організація,25561538,Львівська область,Військовий збір,26002010004365,current,90.00,УДКСУ у Галицькому районі м. Львова,38007573,юридична особа
СВОБОДА,"Львівська обл., Львів",62,2018-11-22,5,Сплата ЄСВ,Податкові платежі,241808,Львівська обласна організація,25561538,Львівська область,Єдиний внесок,26002010004365,current,1320.00,Галицька ОДПІ ГУ ДФС у Львівській області,39508163,юридична особа
СВОБОДА,"Львівська обл., Львів",63,2018-11-22,4,Податок на доходи,Податкові платежі,241571,Львівська обласна організація,25561538,Львівська область,ПДФО,26002010004365,current,1080.00,УДКСУ у Галицькому районі м. Львова,38007573,юридична особа
СВОБОДА,"Київська обл., Фастів, вул. Толстого, буд. 3, 58",72,2018-11-22,365,"Придбання, ремонт офісної техніки та програмного забезпечення (Бухгалтерські програми, Ліга.закон, домени)",Придбання офісної техніки та програмного забезпечення,240274,Київська обласна організація,36282647,Київська область,Оплата за постачання примірника та пакетів оновлень компютерної програми М.Е.Doc,26002011700361,current,900.00,Потапенко Андрій Йосипович,2380807994,фізична особа
СВОБОДА,"Київ, вул. Михайла Грушевського, буд. 1Д",70,2018-11-20,101,Банківські послуги,Інші витрати,243660,Камʼянець-Подільська районна організація,25803823,Хмельницька область,Комісія РКО від зарплати за а першу половину листопада 2018р.,26005052312438,current,3.75,"ПАТ КБ ""Приватбанк""",14360570,юридична особа
СВОБОДА,"Київ, вул. Михайла Грушевського, буд. 1Д",70,2018-11-20,BKO1K3Z08Y,Банківські послуги,Інші витрати,243659,Камʼянець-Подільська районна організація,25803823,Хмельницька область,Комісія за виконання платежів в націон.валюті,26005052312438,current,3.00,"ПАТ КБ ""Приватбанк""",14360570,юридична особа
СВОБОДА,"Київ, вул. Михайла Грушевського, буд. 1Д",70,2018-11-20,BKO1K3VM9Y,Банківські послуги,Інші витрати,243658,Камʼянець-Подільська районна організація,25803823,Хмельницька область,Комісія за виконання платежів в націон.валюті,26005052312438,current,3.00,"ПАТ КБ ""Приватбанк""",14360570,юридична особа
СВОБОДА,"Київ, вул. Михайла Грушевського, буд. 1Д",70,2018-11-20,BKO1K3TL8Y,Банківські послуги,Інші витрати,243657,Камʼянець-Подільська районна організація,25803823,Хмельницька область,Комісія за виконання платежів в націон.валюті,26005052312438,current,3.00,"ПАТ КБ ""Приватбанк""",14360570,юридична особа
СВОБОДА,"Київ, вул. Архітектора Вербицького, буд. 18",70,2018-11-20,2032946976,Банківські послуги,Інші витрати,243417,Київська обласна організація,36282647,Київська область,Погашення комісії за РКО дог.№ 26002011700361 від 24.09.2015р.,26002011700361,current,7.91,"Київська обласна організація Всеукраїнське обʼєднання ""Свобода""",36282647,юридична особа
СВОБОДА,"Київ, вул. Архітектора Вербицького, буд. 18",70,2018-11-20,2032941848,Банківські послуги,Інші витрати,243416,Київська обласна організація,36282647,Київська область,Погашення комісії за РКО дог.№ 26002011700361 від 24.09.2015р.,26002011700361,current,6.00,"Київська обласна організація Всеукраїнське обʼєднання ""Свобода""",36282647,юридична особа
СВОБОДА,"Київ, вул. Миколи Лєскова, буд. 9",70,2018-11-20,bn,Банківські послуги,Інші витрати,243208,Волинська обласна організація,25943855,Волинська область,Комісія за надання виписки на папер носії з 27.09.18 по 29.10.18 по рах №26008234296 без ПДВ,26008234296,current,50.00,"АТ ""Райффайзен банк Аваль""",14305909,юридична особа
СВОБОДА,"Київ, вул. Миколи Лєскова, буд. 9",70,2018-11-20,bn,Банківські послуги,Інші витрати,243207,Волинська обласна організація,25943855,Волинська область,Комісія за вих.перекази в нац.валюті з використанням системи Клієнт-Банк на інші банки за період з 27.09.2018 по 29.10.18 по рах №26008234296 1*3=3 грн без ПДВ,26008234296,current,3.00,"АТ ""Райффайзен банк Аваль""",14305909,юридична особа
СВОБОДА,"Київ, вул. Миколи Лєскова, буд. 9",70,2018-11-20,bn,Банківські послуги,Інші витрати,243206,Волинська обласна організація,25943855,Волинська область,Комісія за користуванням пакетом послуг з 27.09.18 по 29.10.18 по рах №26008234296 без ПДВ,26008234296,current,100.00,"АТ ""Райффайзен банк Аваль""",14305909,юридична особа
СВОБОДА,"Хмельницька обл., Хмельницький",61,2018-11-20,98,Військовий збір,Податкові платежі,242065,Камʼянець-Подільська районна організація,25803823,Хмельницька область,Військовий збір від зарплати за першу половину листопада 2018 р.,26005052312438,current,56.00,УК у Камʼянець-Подільському районі Чернівецької області,37971377,юридична особа
СВОБОДА,"Київська обл., Біла Церква, вул. Ярослава Мудрого, буд. 36",61,2018-11-20,358,Військовий збір,Податкові платежі,242027,Київська обласна організація,36282647,Київська область,"Військовий збір 1,5% з заробітної плати аванс за листопад 2018р.",26002011700361,current,104.71,Білоцерківське УДКСУ Київської області,38009832,юридична особа
СВОБОДА,"Хмельницька обл., Камʼянець-Подільський, вул. Огієнка, буд. 74",62,2018-11-20,97,Сплата ЄСВ,Податкові платежі,241823,Камʼянець-Подільська районна організація,25803823,Хмельницька область,ЄСВ від зарплати за листопад 2018р.,26005052312438,current,600.00,Камʼянець-Подільська ОДПІ ГУ ДФС у Хмельницькій обалсті,39563952,юридична особа
СВОБОДА,"Київська обл., Біла Церква, площа Перемоги, буд. 12",62,2018-11-20,359,Сплата ЄСВ,Податкові платежі,241784,Київська обласна організація,36282647,Київська область,Внески ЄСВ 22% з заробітної плати аванс за листопад 2018р.,26002011700361,current,1535.74,Білоцерківська ОДНІ М. Біла Церква,39468482,юридична особа
СВОБОДА,"Хмельницька обл., Хмельницький",63,2018-11-20,99,Податок на доходи,Податкові платежі,241585,Камʼянець-Подільська районна організація,25803823,Хмельницька область,ПДФО від зарплати за першу половину листопада 2018 р.,26005052312438,current,671.00,УК у Камʼянець-Подільському районі Чернівецької області,37971377,юридична особа
СВОБОДА,"Київська обл., Біла Церква, вул. Ярослава Мудрого, буд. 36",63,2018-11-20,357,Податок на доходи,Податкові платежі,241547,Київська обласна організація,36282647,Київська область,Оплата ПДФО з авансу заробітної плати аванс за листопад 2018р.,26002011700361,current,1256.51,Білоцерківське УДКСУ Київської області,38009832,юридична особа
СВОБОДА,"Хмельницька обл., Камʼянець-Подільський",84,2018-11-20,100,"Заробітна плата, премії","Заробітна плата, лікарняні, вагітності, відрядження, компенсації",241180,Камʼянець-Подільська районна організація,25803823,Хмельницька область,Зарплата за за першу половину листопада 2018р.,26005052312438,current,1500.00,Посітко Михайло Володимирович,,фізична особа
СВОБОДА,,84,2018-11-20,360,"Заробітна плата, премії","Заробітна плата, лікарняні, вагітності, відрядження, компенсації",241061,Київська обласна організація,36282647,Київська область,Перерахування на картку картку з\п аванс за листопад 2018р.Номер рахунка 26250005283962,26002011700361,current,2997.02,Сабій Ігор Михайлович,,фізична особа
СВОБОДА,,84,2018-11-20,361,"Заробітна плата, премії","Заробітна плата, лікарняні, вагітності, відрядження, компенсації",241060,Київська обласна організація,36282647,Київська область,Перерахування на картку з\п аванс за листопад 2018р.Номер рахунка 26258006998214,26002011700361,current,1498.51,Філюк Ольга Валеріївна,,фізична особа
СВОБОДА,,84,2018-11-20,362,"Заробітна плата, премії","Заробітна плата, лікарняні, вагітності, відрядження, компенсації",241059,Київська обласна організація,36282647,Київська область,Перерахування на картку з/ п аванс за листопад 2018р. Номер рахунка 26259005283963,26002011700361,current,1123.88,Однолько Тетяна Анатоліївна,,фізична особа
СВОБОДА,"Волинська обл., Луцьк",79,2018-11-20,2,"Оренда будинків і приміщень та експлуатаційні витрати (прибирання, страхування орендованих будинків, охорона, сигналізація, ремонт, вивіз сміття, тощо)",Оренда нерухомості,239914,Волинська обласна організація,25943855,Волинська область,За оренду приміщення згідно рахунку,26008234296,current,847.00,"КП ""ІАЦ ""Волиньенергософт""",05433614,юридична особа
СВОБОДА,"Київ, вул. Архітектора Вербицького, буд. 18",70,2018-11-19,2031826244,Банківські послуги,Інші витрати,243415,Київська обласна організація,36282647,Київська область,Погашення абонплати за жовтень 2018р.,26002011700361,current,190.00,"Київська обласна організація Всеукраїнське обʼєднання ""Свобода""",36282647,юридична особа
СВОБОДА,"Київ, вул. Архітектора Вербицького, буд. 18",70,2018-11-19,2031833042,Банківські послуги,Інші витрати,243414,Київська обласна організація,36282647,Київська область,Погашення комісії за РКО дог.№ 26002011700361 від 24.09.2015р.,26002011700361,current,6.00,"Київська обласна організація Всеукраїнське обʼєднання ""Свобода""",36282647,юридична особа
СВОБОДА,"Київська обл., Біла Церква, вул. Ярослава Мудрого, буд. 36",61,2018-11-19,354,Військовий збір,Податкові платежі,242026,Київська обласна організація,36282647,Київська область,"Військовий збір 1,5% з заробітної плати за жовтень 2018р.",26002011700361,current,120.08,Білоцерківське УДКСУ Київської області,38009832,юридична особа
СВОБОДА,"Київська обл., Біла Церква, площа Перемоги, буд. 12",62,2018-11-19,356,Сплата ЄСВ,Податкові платежі,241783,Київська обласна організація,36282647,Київська область,Внески ЄСВ 22% з заробітної плати за жовтень2018р.,26002011700361,current,1761.15,Білоцерківська ОДНІ М. Біла Церква,39468482,юридична особа
СВОБОДА,"Київська обл., Біла Церква, вул. Ярослава Мудрого, буд. 36",63,2018-11-19,292,Податок на доходи,Податкові платежі,241546,Київська обласна організація,36282647,Київська область,Оплата ПДФО з авансу заробітної плати за жовтень2018р.,26002011700361,current,1440.94,Білоцерківське УДКСУ Київської області,38009832,юридична особа
СВОБОДА,,84,2018-11-19,353,"Заробітна плата, премії","Заробітна плата, лікарняні, вагітності, відрядження, компенсації",241058,Київська обласна організація,36282647,Київська область,Перерахування на картку заробітну плату за жовтень 2018р. Номер рахунка 26259005283963,26002011700361,current,2247.76,Однолько Тетяна Анатоліївна,,фізична особа
СВОБОДА,,84,2018-11-19,351,"Заробітна плата, премії","Заробітна плата, лікарняні, вагітності, відрядження, компенсації",241057,Київська обласна організація,36282647,Київська область,Перерахування на картку з\п за жовтень 2018р.Номер рахунка 26258006998214,26002011700361,current,1634.74,Філюк Ольга Валеріївна,,фізична особа
СВОБОДА,,84,2018-11-19,352,"Заробітна плата, премії","Заробітна плата, лікарняні, вагітності, відрядження, компенсації",241056,Київська обласна організація,36282647,Київська область,Перерахування на картку картку з\п за жовтень 2018р.Номер рахунка 26250005283962,26002011700361,current,853.03,Сабій Ігор Михайлович,,фізична особа
СВОБОДА,"Київ, просп. Перемоги, буд. 67",70,2018-11-16,1610423,Банківські послуги,Інші витрати,243166,Центральний офіс,00013215,Україна,Послуги банку,260031804900,current,48.07,"ПАТ ""Банк український капітал""",22868414,юридична особа
СВОБОДА,"Київ, просп. Перемоги, буд. 67",70,2018-11-16,1610423,Банківські послуги,Інші витрати,243165,Центральний офіс,00013215,Україна,Послуги банку,260031804900,current,9.00,"ПАТ ""Банк український капітал""",22868414,юридична особа
СВОБОДА,"Київ, вул. Олександра Кошиця, буд. 11",61,2018-11-16,13,Військовий збір,Податкові платежі,242003,Центральний офіс,00013215,Україна,Військовий збір за вересень 2018 р.;;;,260031804900,current,780.00,УДКСУ в Дарницькому районі,38021179,юридична особа
СВОБОДА,"Київ, вул. Олександра Кошиця, буд. 3",62,2018-11-16,12,Сплата ЄСВ,Податкові платежі,241760,Центральний офіс,00013215,Україна,Єдиний соціальний внесок за вересень 2018,260031804900,current,9673.30,ДПІ у Дарницькому р-ні м. Києва,39479227,юридична особа
СВОБОДА,"Київ, вул. Олександра Кошиця, буд. 11",63,2018-11-16,11,Податок на доходи,Податкові платежі,241523,Центральний офіс,00013215,Україна,ПДФО за вересень 2018,260031804900,current,9360.00,УДКСУ в Дарницькому районі,38021179,юридична особа
СВОБОДА,"Івано-Франківська обл., Івано-Франківськ, вул. Незалежності, буд. 53",58,2018-11-16,15,"Виготовлення друкованих матеріалів (плакатів, листівок, буклетів та інших агітаційних матеріалів)",Друкована агітація,239603,Центральний офіс,00013215,Україна,Оплата за друк газети,260031804900,current,103690.00,"ТОВ ""Місто НВ""",30106695,юридична особа
СВОБОДА,"Київ, вул. Лугова, буд. 1А",58,2018-11-16,219_1,"Виготовлення друкованих матеріалів (плакатів, листівок, буклетів та інших агітаційних матеріалів)",Друкована агітація,239602,Центральний офіс,00013215,Україна,Оплата за друк газети,260031804900,current,25000.80,"ТОВ ""Полі-прінт""",32108259,юридична особа
СВОБОДА,"Київ, вул. Лугова, буд. 1А",58,2018-11-16,219,"Виготовлення друкованих матеріалів (плакатів, листівок, буклетів та інших агітаційних матеріалів)",Друкована агітація,239601,Центральний офіс,00013215,Україна,Оплата за друк газети,260031804900,current,25000.80,"ТОВ ""Полі-прінт""",32108259,юридична особа
СВОБОДА,"Київ, вул. Михайла Грушевського, буд. 1Д",70,2018-11-15,LHF9S00049,Банківські послуги,Інші витрати,243251,Дніпропетровська обласна організація,26511459,Дніпропетровська область,Погашення заборгованості за розрахунково-касове обслуговування,26005050264582,current,85.84,"ПАТ КБ ""Приватбанк""",14360570,юридична особа
СВОБОДА,"Івано-Франківська обл., Івано-Франківськ",70,2018-11-14,7693164110,Банківські послуги,Інші витрати,243348,Надвірнянська районна організація,26055910,Івано-Франківська область,Погашення нарахованої комісії за внесення готівки,26000300009742,current,19.00,"Надвірнянська районна організація Всеукраїнське обʼєднання ""Свобода""",26055910,юридична особа
СВОБОДА,"Івано-Франківська обл., Івано-Франківськ",70,2018-11-13,7602421310,Банківські послуги,Інші витрати,243347,Надвірнянська районна організація,26055910,Івано-Франківська область,Погашення нарахованої комісії за внесення готівки,26000300009742,current,5.00,"Надвірнянська районна організація Всеукраїнське обʼєднання ""Свобода""",26055910,юридична особа
СВОБОДА,"Івано-Франківська обл., Надворнянський р-н, Надвірна",79,2018-11-13,11,"Оренда будинків і приміщень та експлуатаційні витрати (прибирання, страхування орендованих будинків, охорона, сигналізація, ремонт, вивіз сміття, тощо)",Оренда нерухомості,239972,Надвірнянська районна організація,26055910,Івано-Франківська область,Оплата за оренду,26000300009742,current,300.00,"ТОВ ""Радіосервіс""",13659309,юридична особа
СВОБОДА,"Львівська обл., Львів",70,2018-11-08,1615217,Банківські послуги,Інші витрати,243494,Львівська обласна організація,25561538,Львівська область,плата за касове обслуговування,26002010004365,current,55.48,"ПАТ ""Банк український капітал""",22868414,юридична особа
СВОБОДА,"Львівська обл., Перемишлянський р-н, Великі Глібовичі",84,2018-11-08,МА9289326,"Заробітна плата, премії","Заробітна плата, лікарняні, вагітності, відрядження, компенсації",241161,Львівська обласна організація,25561538,Львівська область,зарплата за липень 2018,26002010004365,current,1387.01,Іванський Іван Анатолійович,,фізична особа
СВОБОДА,"Вінницька обл., Іллінецький р-н, Жорнище",84,2018-11-08,МА9289326,"Заробітна плата, премії","Заробітна плата, лікарняні, вагітності, відрядження, компенсації",241160,Львівська обласна організація,25561538,Львівська область,зарплата за липень 2018,26002010004365,current,1387.01,Дембовська Юлія Дмитрівна,,фізична особа
СВОБОДА,"Львівська обл., Львів",84,2018-11-08,МА9289326,"Заробітна плата, премії","Заробітна плата, лікарняні, вагітності, відрядження, компенсації",241159,Львівська обласна організація,25561538,Львівська область,зарплата за липень 2018,26002010004365,current,1387.01,Скиба Наталя Михайлівна,,фізична особа
СВОБОДА,"Львівська обл., Львів",84,2018-11-08,МА9289326,"Заробітна плата, премії","Заробітна плата, лікарняні, вагітності, відрядження, компенсації",241158,Львівська обласна організація,25561538,Львівська область,зарплата за липень 2018,26002010004365,current,1387.01,Кошулинський Руслан Володимирович,,фізична особа
СВОБОДА,"Харківська обл., Харків, вул. Чернишевська, буд. 59",79,2018-11-08,25,"Оренда будинків і приміщень та експлуатаційні витрати (прибирання, страхування орендованих будинків, охорона, сигналізація, ремонт, вивіз сміття, тощо)",Оренда нерухомості,240059,Харківська міська організація,25850709,Харківська область,Оренда примiщення згiдно договору N 3 вiд 04.01.2016 та відшкодування витрат за споживчі комунальні послуги за серпень-жовтень 2018 року. Без ПДВ,26001052218244,current,27000.00,Харківська обласна організація Національної спілки письменників України,14072262,юридична особа
СВОБОДА,"Київ, вул. Михайла Грушевського, буд. 1Д",70,2018-11-07,B7O1IPPRLY,Банківські послуги,Інші витрати,243562,Тернопільська обласна організація,35708383,Тернопільська область,"комісія за виконання платежів в національній валюті, згідно з відкритою офертою банку № б\н від 09.10.2015 та тарифів банку, без ПДВ",26000055115389,current,3.00,"ПАТ КБ ""Приватбанк""",14360570,юридична особа
СВОБОДА,"Львівська обл., Львів",70,2018-11-07,1612720,Банківські послуги,Інші витрати,243493,Львівська обласна організація,25561538,Львівська область,Оплата за проведення розрах.в зі опер.час в системі,26002010004365,current,9.00,"ПАТ ""Банк український капітал""",22868414,юридична особа
СВОБОДА,"Львівська обл., Львів",70,2018-11-07,1610330,Банківські послуги,Інші витрати,243492,Львівська обласна організація,25561538,Львівська область,плата за оформлення чекової книжки,26002010004365,current,100.00,"ПАТ ""Банк український капітал""",22868414,юридична особа
СВОБОДА,"Київ, просп. Перемоги, буд. 67",70,2018-11-07,1610423,Банківські послуги,Інші витрати,243164,Центральний офіс,00013215,Україна,Послуги банку,260031804900,current,270.55,"ПАТ ""Банк український капітал""",22868414,юридична особа
СВОБОДА,"Київ, просп. Перемоги, буд. 67",70,2018-11-07,1612721,Банківські послуги,Інші витрати,243163,Центральний офіс,00013215,Україна,Послуги банку,260031804900,current,9.00,"ПАТ ""Банк український капітал""",22868414,юридична особа
СВОБОДА,"Тернопільська обл., Тернопіль",60,2018-11-07,67,Інші податки,Податкові платежі,242212,Тернопільська обласна організація,35708383,Тернопільська область,"за скорочені терміни проведення змін державної реєстрації МРПО ВО ""Свобода""",26000055115389,current,2650.00,УДКСУ у м. Тернопіль,37977726,юридична особа
СВОБОДА,"Київ, вул. Олександра Кошиця, буд. 11",61,2018-11-07,13,Військовий збір,Податкові платежі,242002,Центральний офіс,00013215,Україна,Військовий збір за вересень 2018 р.;;;,260031804900,current,504.14,УДКСУ в Дарницькому районі,38021179,юридична особа
СВОБОДА,"Київ, вул. Олександра Кошиця, буд. 3",62,2018-11-07,12,Сплата ЄСВ,Податкові платежі,241759,Центральний офіс,00013215,Україна,Єдиний соціальний внесок за вересень 2018,260031804900,current,6373.30,ДПІ у Дарницькому р-ні м. Києва,39479227,юридична особа
СВОБОДА,"Київ, вул. Олександра Кошиця, буд. 11",63,2018-11-07,11,Податок на доходи,Податкові платежі,241522,Центральний офіс,00013215,Україна,ПДФО за вересень 2018,260031804900,current,6049.50,УДКСУ в Дарницькому районі,38021179,юридична особа
СВОБОДА,"Львівська обл., Львів",84,2018-11-07,МА9289278,"Заробітна плата, премії","Заробітна плата, лікарняні, вагітності, відрядження, компенсації",240995,Центральний офіс,00013215,Україна,Зарплата за жовтень 2018 р.,260031804900,current,1387.01,Вайда Ярина Михайлівна,,фізична особа
СВОБОДА,"Львівська обл., Львів",84,2018-11-07,МА9289278,"Заробітна плата, премії","Заробітна плата, лікарняні, вагітності, відрядження, компенсації",240994,Центральний офіс,00013215,Україна,Зарплата за жовтень 2018 р.,260031804900,current,1387.01,Мельничук Любомир Анатолійович,,фізична особа
СВОБОДА,Київ,84,2018-11-07,МА9289278,"Заробітна плата, премії","Заробітна плата, лікарняні, вагітності, відрядження, компенсації",240993,Центральний офіс,00013215,Україна,Зарплата за жовтень 2018 р.,260031804900,current,1387.01,Мохник Андрій Володимирович,,фізична особа
СВОБОДА,"Львівська обл., Львів",84,2018-11-07,МА9289278,"Заробітна плата, премії","Заробітна плата, лікарняні, вагітності, відрядження, компенсації",240992,Центральний офіс,00013215,Україна,Зарплата за жовтень 2018 р.,260031804900,current,9208.66,Пелешак Ярослав Антонович,,фізична особа
СВОБОДА,Київ,84,2018-11-07,МА9289278,"Заробітна плата, премії","Заробітна плата, лікарняні, вагітності, відрядження, компенсації",240991,Центральний офіс,00013215,Україна,Зарплата за жовтень 2018 р.,260031804900,current,13685.00,Тягнибок Олег Ярославович,,фізична особа
СВОБОДА,"Київ, просп. Перемоги, буд. 67",70,2018-11-06,,Банківські послуги,Інші витрати,243162,Центральний офіс,00013215,Україна,Послуги банку,260031804900,current,18.00,"ПАТ ""Банк український капітал""",22868414,юридична особа
СВОБОДА,"Львівська обл., Львів",60,2018-11-06,5,Інші податки,Податкові платежі,242207,Львівська міська організація,23884355,Львівська область,земельний податок за вересень 2018р.,26003010005352,current,762.50,УДКСУ у Личаківському районі м. Львова,38007620,юридична особа
СВОБОДА,"Львівська обл., Львів",60,2018-11-06,6,Інші податки,Податкові платежі,242206,Львівська міська організація,23884355,Львівська область,земельний податок за жовтень 2018р.,26003010005352,current,692.50,УДКСУ у Личаківському районі м. Львова,38007620,юридична особа
СВОБОДА,"Львівська обл., Львів",61,2018-11-06,3,Військовий збір,Податкові платежі,242050,Львівська обласна організація,25561538,Львівська область,Військовий збір,26002010004365,current,103.40,УДКСУ у Галицькому районі м. Львова,38007573,юридична особа
СВОБОДА,"Львівська обл., Львів",62,2018-11-06,2,Сплата ЄСВ,Податкові платежі,241807,Львівська обласна організація,25561538,Львівська область,Єдиний внесок,26002010004365,current,1516.24,Галицька ОДПІ ГУ ДФС у Львівській області,39508163,юридична особа
СВОБОДА,"Львівська обл., Львів",63,2018-11-06,1,Податок на доходи,Податкові платежі,241570,Львівська обласна організація,25561538,Львівська область,ПДФО,26002010004365,current,1240.65,УДКСУ у Галицькому районі м. Львова,38007573,юридична особа
СВОБОДА,"Київ, бульв. Тараса Шевченка, буд. 18",76,2018-11-06,23,Послуги зв’язку,Послуги зв’язку,240387,Центральний офіс,00013215,Україна,Оплата за телекомунікаційні послуги,260031804900,current,1033.71,"ПАТ ""Укртелеком""",21560766,юридична особа
СВОБОДА,"Київ, бульв. Тараса Шевченка, буд. 18",76,2018-11-06,25,Послуги зв’язку,Послуги зв’язку,240386,Центральний офіс,00013215,Україна,Оплата за телекомунікаційні послуги,260031804900,current,591.90,"ПАТ ""Укртелеком""",21560766,юридична особа
СВОБОДА,"Київ, бульв. Тараса Шевченка, буд. 18",76,2018-11-06,22,Послуги зв’язку,Послуги зв’язку,240385,Центральний офіс,00013215,Україна,Оплата за телекомунікаційні послуги,260031804900,current,531.73,"ПАТ ""Укртелеком""",21560766,юридична особа
СВОБОДА,"Київ, бульв. Тараса Шевченка, буд. 18",76,2018-11-06,24,Послуги зв’язку,Послуги зв’язку,240384,Центральний офіс,00013215,Україна,Оплата за телекомунікаційні послуги,260031804900,current,286.50,"ПАТ ""Укртелеком""",21560766,юридична особа
СВОБОДА,"Київ, вул. Смоленська, буд. 31-33",76,2018-11-06,21,Послуги зв’язку,Послуги зв’язку,240383,Центральний офіс,00013215,Україна,Оплата за телекомунікаційні послуги,260031804900,current,86.40,"ПрАТ ""Датагруп""",31720260,юридична особа
СВОБОДА,"Львівська обл., Яворівський р-н, Яворів, площа Ринок, буд. 14",58,2018-11-06,18,"Виготовлення друкованих матеріалів (плакатів, листівок, буклетів та інших агітаційних матеріалів)",Друкована агітація,239600,Центральний офіс,00013215,Україна,Оплата за друк газети,260031804900,current,3336.00,"ТОВ ""ВД ""Молода Галичина""",32148930,юридична особа
СВОБОДА,"Київ, вул. Михайла Грушевського, буд. 1Д",70,2018-11-05,96,Банківські послуги,Інші витрати,243656,Камʼянець-Подільська районна організація,25803823,Хмельницька область,Комiсiя РКО вiд зарплати за жовтень 2018р,26005052312438,current,3.74,"ПАТ КБ ""Приватбанк""",14360570,юридична особа
СВОБОДА,"Хмельницька обл., Камʼянець-Подільський",84,2018-11-05,95,"Заробітна плата, премії","Заробітна плата, лікарняні, вагітності, відрядження, компенсації",241179,Камʼянець-Подільська районна організація,25803823,Хмельницька область,Зарплата за жовтень 2018р.,26005052312438,current,1497.01,Посітко Михайло Володимирович,,фізична особа
СВОБОДА,"Харківська обл., Харків, вул. Чернишевська, буд. 59",79,2018-11-05,24,"Оренда будинків і приміщень та експлуатаційні витрати (прибирання, страхування орендованих будинків, охорона, сигналізація, ремонт, вивіз сміття, тощо)",Оренда нерухомості,240058,Харківська міська організація,25850709,Харківська область,Оренда примiщення згiдно договору N 3 вiд 04.01.2016 та відшкодування витрат за споживчі комунальні послуги за січень-липень 2018 року. Без ПДВ,26001052218244,current,60000.00,Харківська обласна організація Національної спілки письменників України,14072262,юридична особа
СВОБОДА,"Київ, вул. Михайла Грушевського, буд. 1Д",70,2018-11-01,AS8avt7kkp,Банківські послуги,Інші витрати,243727,Чернівецька обласна організація,33971064,Чернівецька область,"Комісія за обслуговування рахунку за жовтень 2018 р. згідно договору банківського рахунку від 29.09.2017, без ПДВ",26006051509840,current,100.00,"ПАТ КБ ""Приватбанк""",14360570,юридична особа
СВОБОДА,"Черкаська обл., Черкаси, вул. Лазарєва, буд. 6, 301",70,2018-11-01,AN8b108pjp,Банківські послуги,Інші витрати,243696,Черкаська районна організація,36994922,Черкаська область,"Комiсiя за обслуговування недiючого рахунку № 26004051533017 за жовтень 2018 р., згiдно тарифiв банку, без ПДВ",26004051533017,current,40.00,"Черкаська районна організація Всеукраїнське обʼєднання ""Свобода""",36994922,юридична особа
СВОБОДА,"Хмельницька обл., Хмельницький, Камʼянецька вул., 46",70,2018-11-01,2509015423,Банківські послуги,Інші витрати,243686,Хмельницька обласна організація,33953574,Хмельницька область,Списання щомісячної плати за обслуговування ТП Мій бізнес за жовтень 2018р.,26003300884471,current,149.00,"Хмельницька обласна філія АТ ""Ощадбанк""",09315357,юридична особа
СВОБОДА,"Київ, вул. Михайла Грушевського, буд. 1Д",70,2018-11-01,AS8avti6jp,Банківські послуги,Інші витрати,243655,Камʼянець-Подільська районна організація,25803823,Хмельницька область,Комісія за обслуговування рахунку за жовтень 2018р.,26005052312438,current,100.00,"ПАТ КБ ""Приватбанк""",14360570,юридична особа
СВОБОДА,"Київ, вул. Михайла Грушевського, буд. 1Д",70,2018-11-01,AS8avry6op,Банківські послуги,Інші витрати,243591,Херсонська обласна організація,33929866,Херсонська область,Комісія за обслуговування рахунку за жовтень,26009052211045,current,100.00,"ПАТ КБ ""Приватбанк""",14360570,юридична особа
СВОБОДА,"Київ, вул. Михайла Грушевського, буд. 1Д",70,2018-11-01,AS8AVRWX6P,Банківські послуги,Інші витрати,243576,Харківська обласна організація,26283202,Харківська область,"КОМIСIЯ ЗА ОБСЛУГОВУВАННЯ РАХУНКУ ЗА ЖОВТЕНЬ 2018 Р. ЗГIДНО ДОГОВОРУ БАНКIВСЬКОГО РАХУНКУ ВIД 09.09.2016, БЕЗ ПДВ.",26009052224423,current,100.00,"ПАТ КБ ""Приватбанк""",14360570,юридична особа
СВОБОДА,"Київ, вул. Михайла Грушевського, буд. 1Д",70,2018-11-01,AS8AVSB3HP,Банківські послуги,Інші витрати,243570,Харківська міська організація,25850709,Харківська область,"Комiсiя за обслуговування рахунку за жовтень 2018 р. згiдно договору банкiвського рахунку вiд 22.03.2016, без ПДВ.",26001052218244,current,100.00,"ПАТ КБ ""Приватбанк""",14360570,юридична особа
СВОБОДА,"Київ, вул. Госпітальна, буд. 12Г",70,2018-11-01,2513871618,Банківські послуги,Інші витрати,243555,Рівненська обласна організація,26353285,Рівненська область,Коміс.за розрах.обсл.рахунку 26006300976830 з 29.09.2018 по 31.10.2018,26006300976830,current,15.00,"АТ ""Ощадбанк""",00032129,юридична особа
СВОБОДА,"Київ, вул. Михайла Грушевського, буд. 1Д",70,2018-11-01,АS8avmlu3p,Банківські послуги,Інші витрати,243520,Турківська районна організація,36787707,Львівська область,Комісія за обслуговування рахунку за жовтень 2018,26007053720227,current,100.00,"ПАТ КБ ""Приватбанк""",14360570,юридична особа
СВОБОДА,"Київ, вул. Михайла Грушевського, буд. 1Д",70,2018-11-01,AS8AVSRF8P,Банківські послуги,Інші витрати,243369,Київська міська організація,25665516,Київ,"КОМIСIЯ ЗА ОБСЛУГОВУВАННЯ РАХУНКУ ЗА ЖОВТЕНЬ 2018 Р. ЗГIДНО ДОГОВОРУ БАНКIВСЬКОГО РАХУНКУ ВIД 08.05.2018, БЕЗ ПДВ.",26004052617992,current,100.00,"ПАТ КБ ""Приватбанк""",14360570,юридична особа
СВОБОДА,"Івано-Франківська обл., Івано-Франківськ",70,2018-11-01,2515124010,Банківські послуги,Інші витрати,243346,Надвірнянська районна організація,26055910,Івано-Франківська область,Комісія за обслуговування поточного рахунку,26000300009742,current,1.00,"Надвірнянська районна організація Всеукраїнське обʼєднання ""Свобода""",26055910,юридична особа
СВОБОДА,"Івано-Франківська обл., Івано-Франківськ",70,2018-11-01,2506736210,Банківські послуги,Інші витрати,243345,Надвірнянська районна організація,26055910,Івано-Франківська область,Списання щомісячної плати за обслуговування ТП Моя громада,26000300009742,current,49.00,"Надвірнянська районна організація Всеукраїнське обʼєднання ""Свобода""",26055910,юридична особа
СВОБОДА,"Київ, вул. Михайла Грушевського, буд. 1Д",70,2018-11-01,AN8b105n1p,Банківські послуги,Інші витрати,243288,Городенківська районна організація,36247801,Івано-Франківська область,Комісія за обслуговування недіючого рахунку,26007052520606,current,100.00,"ПАТ КБ ""Приватбанк""",14360570,юридична особа
СВОБОДА,"Київ, вул. Михайла Грушевського, буд. 1Д",70,2018-11-01,AN8b103sbp,Банківські послуги,Інші витрати,243277,Житомирська районна організація,36710660,Житомирська область,"комісія за обслуговув.недіючого рах.№ 200045055816119 за жовтень 2018, без ПДВ",26004055810119,current,100.00,"ПАТ КБ ""Приватбанк""",14360570,юридична особа
СВОБОДА,"Київ, вул. Михайла Грушевського, буд. 1Д",70,2018-11-01,AS8avjoh2p,Банківські послуги,Інші витрати,243250,Дніпропетровська обласна організація,26511459,Дніпропетровська область,Комісія за обслуговування рахунку за жовтень 2018 року,26005050264582,current,14.16,"ПАТ КБ ""Приватбанк""",14360570,юридична особа
СВОБОДА,"Київ, вул. Михайла Грушевського, буд. 1Д",70,2018-11-01,AN8b1057wp,Банківські послуги,Інші витрати,243188,Вінницька обласна організація,33911707,Вінницька область,"Комісія за обслуговування недіючого рахунку №26006055327445 за жовтень 2018 р., згідно тарифів банку, без ПДВ",26006055327445,current,100.00,"ПАТ КБ ""Приватбанк""",14360570,юридична особа
СВОБОДА,"Київ, вул. Генерала Алмазова, буд. 18",70,2018-10-31,О0124_5613,Банківські послуги,Інші витрати,243490,Львівська обласна організація,25561538,Львівська область,"Списання комісії банку за переказ коштів за межі банку за системою ""Клієнт-Банк""",26002010004365,current,120.00,"АКБ ""Індустріалбанк""",13857564,юридична особа
СВОБОДА,"Київ, вул. Генерала Алмазова, буд. 18",70,2018-10-31,О0124_9105,Банківські послуги,Інші витрати,243489,Львівська обласна організація,25561538,Львівська область,Списання комісії банку за обслуговування тарифного пакету,26002010004365,current,50.00,"АКБ ""Індустріалбанк""",13857564,юридична особа
СВОБОДА,Київ,70,2018-10-31,10779,Банківські послуги,Інші витрати,243307,Івано-Франківська обласна організація,26055441,Івано-Франківська область,Комісія за ведення поточного рахунку,260030450601,current,200.00,"ПАТ ""Банк інвестиції та заощаджень""",33695095,юридична особа
СВОБОДА,"Київ, вул. Генерала Алмазова, буд. 18",70,2018-10-31,О0124_6468,Банківські послуги,Інші витрати,243183,Центральний офіс,00013215,Україна,Списання комісії банку,260031804900,current,200.00,"АКБ ""Індустріалбанк""",13857564,юридична особа
СВОБОДА,"Київ, вул. Генерала Алмазова, буд. 18",70,2018-10-31,О0124_5172,Банківські послуги,Інші витрати,243182,Центральний офіс,00013215,Україна,Списання комісії банку,260031804900,current,120.00,"АКБ ""Індустріалбанк""",13857564,юридична особа
СВОБОДА,"Львівська обл., Львів",79,2018-10-31,90,"Оренда будинків і приміщень та експлуатаційні витрати (прибирання, страхування орендованих будинків, охорона, сигналізація, ремонт, вивіз сміття, тощо)",Оренда нерухомості,240005,Львівська обласна організація,25561538,Львівська область,Оплата за постачання природного газу,26002010004365,current,6806.14,"ТОВ ""Львівгаз збут""",39594527,юридична особа
СВОБОДА,"Київ, вул. Михайла Грушевського, буд. 1Д",70,2018-10-30,AU01H04N1Y,Банківські послуги,Інші витрати,243726,Чернівецька обласна організація,33971064,Чернівецька область,"Комісія за виконання платежів в національній валюті, згідно з відкритою офертою банку N б/н від 29.09.2017 та тарифів банку, без ПДВ.",26006051509840,current,3.00,"ПАТ КБ ""Приватбанк""",14360570,юридична особа
СВОБОДА,"Київ, вул. Миколи Лєскова, буд. 9",70,2018-10-30,б/н,Банківські послуги,Інші витрати,243677,Красилівська районна організація,36923668,Хмельницька область,Комісія за користування пакетом послуг з 27.09.2018 по 29.10.2018,26005483329,current,100.00,"АТ ""Райффайзен банк Аваль""",14305909,юридична особа
СВОБОДА,"Чернівецька обл., Чернівці, вул. Кобилянської, буд. 3",79,2018-10-30,23,"Оренда будинків і приміщень та експлуатаційні витрати (прибирання, страхування орендованих будинків, охорона, сигналізація, ремонт, вивіз сміття, тощо)",Оренда нерухомості,240079,Чернівецька обласна організація,33971064,Чернівецька область,"*;101;33971064;погашення заборг. по оренд.платі за корист.майном що перебув в ком.власн.вул.Шевченка 41, зг.дог N108 та N109 від 29.04.2015р.;;;",26006051509840,current,3600.00,УДКСУ у м. Чернівці,37978173,юридична особа
СВОБОДА,"Київ, вул. Михайла Грушевського, буд. 1Д",70,2018-10-26,AQO1HFLU9Y,Банківські послуги,Інші витрати,243368,Київська міська організація,25665516,Київ,"КОМIСIЯ ЗА ВИКОНАННЯ ПЛАТЕЖIВ В НАЦIОНАЛЬНIЙ ВАЛЮТI, ЗГIДНО З ВIДКРИТОЮ ОФЕРТОЮ БАНКУ N Б/Н ВIД 08.05.2018 ТА ТАРИФIВ БАНКУ, БЕЗ ПДВ",26004052617992,current,3.00,"ПАТ КБ ""Приватбанк""",14360570,юридична особа
СВОБОДА,"Київ, вул. Михайла Грушевського, буд. 1Д",70,2018-10-26,AQO1HFJ80Y,Банківські послуги,Інші витрати,243367,Київська міська організація,25665516,Київ,"КОМIСIЯ ЗА ВИКОНАННЯ ПЛАТЕЖIВ В НАЦIОНАЛЬНIЙ ВАЛЮТI, ЗГIДНО З ВIДКРИТОЮ ОФЕРТОЮ БАНКУ N Б/Н ВIД 08.05.2018 ТА ТАРИФIВ БАНКУ, БЕЗ ПДВ.",26004052617992,current,3.00,"ПАТ КБ ""Приватбанк""",14360570,юридична особа
СВОБОДА,"Рівненська обл., Рівне, вул. Князя Володимира, буд. 71",79,2018-10-26,39,"Оренда будинків і приміщень та експлуатаційні витрати (прибирання, страхування орендованих будинків, охорона, сигналізація, ремонт, вивіз сміття, тощо)",Оренда нерухомості,240049,Рівненська обласна організація,26353285,Рівненська область,Згідно рахунку №8790275310,26006300976830,current,101.10,Рівнеобленерго,05424874,юридична особа
СВОБОДА,"Рівненська обл., Рівне, вул. Соборна, буд. 12А",79,2018-10-26,40,"Оренда будинків і приміщень та експлуатаційні витрати (прибирання, страхування орендованих будинків, охорона, сигналізація, ремонт, вивіз сміття, тощо)",Оренда нерухомості,240048,Рівненська обласна організація,26353285,Рівненська область,Орендна плата за жовтень 2018 за орендовані приміщення згідно договору оренди №2055,26006300976830,current,965.03,Управління комунальною власністю виконавчого комітету Рівненської міської ради,26259563,юридична особа
СВОБОДА,"Київ, вул. Ямська, буд. 59",79,2018-10-26,1,"Оренда будинків і приміщень та експлуатаційні витрати (прибирання, страхування орендованих будинків, охорона, сигналізація, ремонт, вивіз сміття, тощо)",Оренда нерухомості,239982,Київська міська організація,25665516,Київ,"ОПЛАТА ЗА ПРИБИРАННЯ ТА ВИВЕЗЕННЯ СМIТТЯ, ЗГIДНО РАХУНКУ-ФАКТУРИ № СФ-0000244 ВIД 12 ЖОВТНЯ 2018 Р.",26004052617992,current,12012.02,"КП ""ШЕУ по ремонту та утриманню автомобільних шляхів та споруд на них Шевченківського району""",31868786,юридична особа
СВОБОДА,"Київ, вул. Магнітогорська, буд. 1",58,2018-10-26,2,"Виготовлення друкованих матеріалів (плакатів, листівок, буклетів та інших агітаційних матеріалів)",Друкована агітація,239631,Київська міська організація,25665516,Київ,"ОПЛАТА ЗА ГАЗЕТУ, ЗГIДНО РАХУНКУ НА ОПЛАТУ №18-1470 ВIД 17 СЕРПНЯ 2018 Р.",26004052617992,current,13152.00,"ТОВ ""Новий друк""",22891092,юридична особа
СВОБОДА,"Київ, вул. Генерала Алмазова, буд. 18",70,2018-10-23,О15134_0001,Банківські послуги,Інші витрати,243488,Львівська обласна організація,25561538,Львівська область,Списання комісії банку за видачу готівкових коштів з поточного рахунку по чеку №МА2036573,26002010004365,current,64.40,"АКБ ""Індустріалбанк""",13857564,юридична особа
СВОБОДА,"Київ, просп. Перемоги, буд. 67",70,2018-10-23,,Банківські послуги,Інші витрати,243161,Центральний офіс,00013215,Україна,Послуги банку,260031804900,current,15.00,"ПАТ ""Банк український капітал""",22868414,юридична особа
СВОБОДА,"Київ, просп. Перемоги, буд. 67",70,2018-10-23,,Банківські послуги,Інші витрати,243160,Центральний офіс,00013215,Україна,Послуги банку,260031804900,current,75.00,"ПАТ ""Банк український капітал""",22868414,юридична особа
СВОБОДА,"Київ, просп. Перемоги, буд. 67",70,2018-10-23,1399348,Банківські послуги,Інші витрати,243159,Центральний офіс,00013215,Україна,Послуги банку,260031804900,current,297.85,"ПАТ ""Банк український капітал""",22868414,юридична особа
СВОБОДА,"Львівська обл., Перемишлянський р-н, Великі Глібовичі",84,2018-10-23,МА2036573,"Заробітна плата, премії","Заробітна плата, лікарняні, вагітності, відрядження, компенсації",241157,Львівська обласна організація,25561538,Львівська область,аванс за жовтень 2018,26002010004365,current,1610.00,Іванський Іван Анатолійович,,фізична особа
СВОБОДА,"Вінницька обл., Іллінецький р-н, Жорнище",84,2018-10-23,МА2036573,"Заробітна плата, премії","Заробітна плата, лікарняні, вагітності, відрядження, компенсації",241156,Львівська обласна організація,25561538,Львівська область,аванс за жовтень 2018,26002010004365,current,1610.00,Дембовська Юлія Дмитрівна,,фізична особа
СВОБОДА,"Львівська обл., Львів",84,2018-10-23,МА2036573,"Заробітна плата, премії","Заробітна плата, лікарняні, вагітності, відрядження, компенсації",241155,Львівська обласна організація,25561538,Львівська область,аванс за жовтень 2018,26002010004365,current,1610.00,Скиба Наталя Михайлівна,,фізична особа
СВОБОДА,"Львівська обл., Львів",84,2018-10-23,МА2036573,"Заробітна плата, премії","Заробітна плата, лікарняні, вагітності, відрядження, компенсації",241154,Львівська обласна організація,25561538,Львівська область,аванс за жовтень 2018,26002010004365,current,1610.00,Кошулинський Руслан Володимирович,,фізична особа
СВОБОДА,"Львівська обл., Львів",84,2018-10-23,МА9289277,"Заробітна плата, премії","Заробітна плата, лікарняні, вагітності, відрядження, компенсації",240990,Центральний офіс,00013215,Україна,Аванс за жовтень2018 р.,260031804900,current,1610.00,Вайда Ярина Михайлівна,,фізична особа
СВОБОДА,"Львівська обл., Львів",84,2018-10-23,МА9289277,"Заробітна плата, премії","Заробітна плата, лікарняні, вагітності, відрядження, компенсації",240989,Центральний офіс,00013215,Україна,Аванс за жовтень2018 р.,260031804900,current,1610.00,Мельничук Любомир Анатолійович,,фізична особа
СВОБОДА,Київ,84,2018-10-23,МА9289277,"Заробітна плата, премії","Заробітна плата, лікарняні, вагітності, відрядження, компенсації",240988,Центральний офіс,00013215,Україна,Аванс за жовтень2018 р.,260031804900,current,1610.00,Мохник Андрій Володимирович,,фізична особа
СВОБОДА,"Львівська обл., Львів",84,2018-10-23,МА9289277,"Заробітна плата, премії","Заробітна плата, лікарняні, вагітності, відрядження, компенсації",240987,Центральний офіс,00013215,Україна,Аванс за жовтень2018 р.,260031804900,current,10465.00,Пелешак Ярослав Антонович,,фізична особа
СВОБОДА,Київ,84,2018-10-23,МА9289277,"Заробітна плата, премії","Заробітна плата, лікарняні, вагітності, відрядження, компенсації",240986,Центральний офіс,00013215,Україна,Аванс за жовтень2018 р.,260031804900,current,14490.00,Тягнибок Олег Ярославович,,фізична особа
СВОБОДА,"Київ, вул. Рогнідинська, буд. 4А",76,2018-10-23,16,Послуги зв’язку,Послуги зв’язку,240382,Центральний офіс,00013215,Україна,Оплата за послуги доступу до мережі Інтернет,260031804900,current,2400.00,"ТОВ ""Інтертелеком""",22927111,юридична особа
СВОБОДА,"Івано-Франківська обл., Івано-Франківськ, вул. Незалежності, буд. 53",58,2018-10-23,15,"Виготовлення друкованих матеріалів (плакатів, листівок, буклетів та інших агітаційних матеріалів)",Друкована агітація,239599,Центральний офіс,00013215,Україна,Оплата за друк газети,260031804900,current,84000.00,"ТОВ ""Місто НВ""",30106695,юридична особа
СВОБОДА,"Львівська обл., Яворівський р-н, Яворів, площа Ринок, буд. 14",58,2018-10-23,18,"Виготовлення друкованих матеріалів (плакатів, листівок, буклетів та інших агітаційних матеріалів)",Друкована агітація,239598,Центральний офіс,00013215,Україна,Оплата за друк газети,260031804900,current,22931.35,"ТОВ ""ВД ""Молода Галичина""",32148930,юридична особа
СВОБОДА,"Львівська обл., Яворівський р-н, Яворів, площа Ринок, буд. 14",58,2018-10-23,17,"Виготовлення друкованих матеріалів (плакатів, листівок, буклетів та інших агітаційних матеріалів)",Друкована агітація,239597,Центральний офіс,00013215,Україна,Оплата за друк газети,260031804900,current,22931.35,"ТОВ ""ВД ""Молода Галичина""",32148930,юридична особа
СВОБОДА,"Львівська обл., Яворівський р-н, Яворів, площа Ринок, буд. 14",58,2018-10-23,19,"Виготовлення друкованих матеріалів (плакатів, листівок, буклетів та інших агітаційних матеріалів)",Друкована агітація,239596,Центральний офіс,00013215,Україна,Оплата за друк газети,260031804900,current,22314.35,"ТОВ ""ВД ""Молода Галичина""",32148930,юридична особа
СВОБОДА,"Київ, вул. Михайла Грушевського, буд. 1Д",70,2018-10-22,94,Банківські послуги,Інші витрати,243654,Камʼянець-Подільська районна організація,25803823,Хмельницька область,Комісія РКО вiд зарплати за першу половину жовтня 2018р.,26005052312438,current,3.75,"ПАТ КБ ""Приватбанк""",14360570,юридична особа
СВОБОДА,"Львівська обл., Львів",61,2018-10-22,89,Військовий збір,Податкові платежі,242049,Львівська обласна організація,25561538,Львівська область,Військовий збір,26002010004365,current,120.00,УДКСУ у Галицькому районі м. Львова,38007573,юридична особа
СВОБОДА,"Львівська обл., Львів",62,2018-10-22,87,Сплата ЄСВ,Податкові платежі,241806,Львівська обласна організація,25561538,Львівська область,Єдиний внесок,26002010004365,current,1440.00,Галицька ОДПІ ГУ ДФС у Львівській області,39508163,юридична особа
СВОБОДА,"Львівська обл., Львів",63,2018-10-22,88,Податок на доходи,Податкові платежі,241569,Львівська обласна організація,25561538,Львівська область,ПДФО,26002010004365,current,1760.00,УДКСУ у Галицькому районі м. Львова,38007573,юридична особа
СВОБОДА,"Хмельницька обл., Камʼянець-Подільський",84,2018-10-22,93,"Заробітна плата, премії","Заробітна плата, лікарняні, вагітності, відрядження, компенсації",241178,Камʼянець-Подільська районна організація,25803823,Хмельницька область,Зарплата за першу половину жовтня 2018р.,26005052312438,current,1500.00,Посітко Михайло Володимирович,,фізична особа
СВОБОДА,"Київ, вул. Михайла Грушевського, буд. 1Д",70,2018-10-20,TZ000BSXFD,Банківські послуги,Інші витрати,243366,Київська міська організація,25665516,Київ,"КОМIСIЯ ЗА ОБСЛУГОВУВАННЯ РАХУНКIВ ЗГIДНО З ДОГОВОРОМ БАНКIВСЬКОГО РАХУНКУ ВIД 08.05.2018, БЕЗ ПДВ.",26004052617992,current,100.00,"ПАТ КБ ""Приватбанк""",14360570,юридична особа
СВОБОДА,"Київ, вул. Михайла Грушевського, буд. 1Д",70,2018-10-19,AJO1GK45YY,Банківські послуги,Інші витрати,243653,Камʼянець-Подільська районна організація,25803823,Хмельницька область,Комісія за виконання платежів в націон.валюті,26005052312438,current,3.00,"ПАТ КБ ""Приватбанк""",14360570,юридична особа
СВОБОДА,"Київ, вул. Михайла Грушевського, буд. 1Д",70,2018-10-19,AJO1GK38KY,Банківські послуги,Інші витрати,243652,Камʼянець-Подільська районна організація,25803823,Хмельницька область,Комісія за виконання платежів в націон.валюті,26005052312438,current,3.00,"ПАТ КБ ""Приватбанк""",14360570,юридична особа
СВОБОДА,"Київ, вул. Михайла Грушевського, буд. 1Д",70,2018-10-19,AJO1GK219Y,Банківські послуги,Інші витрати,243651,Камʼянець-Подільська районна організація,25803823,Хмельницька область,Комісія за виконання платежів в націон.валюті,26005052312438,current,3.00,"ПАТ КБ ""Приватбанк""",14360570,юридична особа
СВОБОДА,"Київ, вул. Андріївська, буд. 2/12",70,2018-10-19,__,Банківські послуги,Інші витрати,243365,Київська міська організація,25665516,Київ,За зовнішній платіж СЕП СІІ зг. Дог. № 1791268 від 14.04. 2008 без ПДВ,26004052617992,current,40.00,"АТ ""Укрсиббанк""",09807750,юридична особа
СВОБОДА,"Хмельницька обл., Хмельницький",61,2018-10-19,91,Військовий збір,Податкові платежі,242064,Камʼянець-Подільська районна організація,25803823,Хмельницька область,Військовий збір від зарплати за жовтень 2018Р.,26005052312438,current,56.00,УК у Камʼянець-Подільському районі Чернівецької області,37971377,юридична особа
СВОБОДА,"Хмельницька обл., Камʼянець-Подільський, вул. Огієнка, буд. 74",62,2018-10-19,92,Сплата ЄСВ,Податкові платежі,241822,Камʼянець-Подільська районна організація,25803823,Хмельницька область,ЄСВ від зарплати за жовтень 2018р.,26005052312438,current,600.00,Камʼянець-Подільська ОДПІ ГУ ДФС у Хмельницькій обалсті,39563952,юридична особа
СВОБОДА,"Хмельницька обл., Камʼянець-Подільський, вул. Огієнка, буд. 74",63,2018-10-19,90,Податок на доходи,Податкові платежі,241584,Камʼянець-Подільська районна організація,25803823,Хмельницька область,ПДФО від зарплати за жовтень 2018Р.,26005052312438,current,671.00,Камʼянець-Подільська ОДПІ ГУ ДФС у Хмельницькій обалсті,39563952,юридична особа
СВОБОДА,"Київ, вул. Архітектора Вербицького, буд. 18",70,2018-10-18,1998712352,Банківські послуги,Інші витрати,243413,Київська обласна організація,36282647,Київська область,Погашення комісії за РКО дог.№ 26002011700361 від 24.09.2015р.,26002011700361,current,5.00,"Київська обласна організація Всеукраїнське обʼєднання ""Свобода""",36282647,юридична особа
СВОБОДА,"Київ, вул. Архітектора Вербицького, буд. 18",70,2018-10-18,1998712352,Банківські послуги,Інші витрати,243412,Київська обласна організація,36282647,Київська область,Погашення комісії за РКО дог.№ 26002011700361 від 24.09.2015р.,26002011700361,current,4.00,"Київська обласна організація Всеукраїнське обʼєднання ""Свобода""",36282647,юридична особа
СВОБОДА,"Київська обл., Біла Церква, площа Перемоги, буд. 12",62,2018-10-18,293,Сплата ЄСВ,Податкові платежі,241782,Київська обласна організація,36282647,Київська область,Внески ЄСВ 22% з заробітної плати аванс за жовтень2018р.,26002011700361,current,1396.13,Білоцерківська ОДНІ М. Біла Церква,39468482,юридична особа
СВОБОДА,"Київська обл., Біла Церква, вул. Ярослава Мудрого, буд. 36",63,2018-10-18,292,Податок на доходи,Податкові платежі,241545,Київська обласна організація,36282647,Київська область,Оплата ПДФО з авансу заробітної плати аванс за жовтень2018р.,26002011700361,current,1142.28,Білоцерківське УДКСУ Київської області,38009832,юридична особа
СВОБОДА,,84,2018-10-18,295,"Заробітна плата, премії","Заробітна плата, лікарняні, вагітності, відрядження, компенсації",241055,Київська обласна організація,36282647,Київська область,Перерахування на картку картку з\п аванс за жовтень 2018р.Номер рахунка 26250005283962,26002011700361,current,2489.00,Сабій Ігор Михайлович,,фізична особа
СВОБОДА,,84,2018-10-18,296,"Заробітна плата, премії","Заробітна плата, лікарняні, вагітності, відрядження, компенсації",241054,Київська обласна організація,36282647,Київська область,Перерахування на картку картку з\п аванс за жовтень 2018р.Номер рахунка 26250005283962,26002011700361,current,2452.00,Сабій Ігор Михайлович,,фізична особа
СВОБОДА,,84,2018-10-18,294,"Заробітна плата, премії","Заробітна плата, лікарняні, вагітності, відрядження, компенсації",241053,Київська обласна організація,36282647,Київська область,Перерахування на картку з\п аванс за жовтень 2018р.Номер рахунка 26258006998214,26002011700361,current,1362.28,Філюк Ольга Валеріївна,,фізична особа
СВОБОДА,,84,2018-10-18,291,"Заробітна плата, премії","Заробітна плата, лікарняні, вагітності, відрядження, компенсації",241052,Київська обласна організація,36282647,Київська область,Перерахування на картку з\п за вересень 2018р. Номер рахунка 26259005283963,26002011700361,current,2000.00,Однолько Тетяна Анатоліївна,,фізична особа
СВОБОДА,"Хмельницька обл., Хмельницький, Камʼянецька вул., 2",79,2018-10-18,2,"Оренда будинків і приміщень та експлуатаційні витрати (прибирання, страхування орендованих будинків, охорона, сигналізація, ремонт, вивіз сміття, тощо)",Оренда нерухомості,240067,Хмельницька обласна організація,33953574,Хмельницька область,Оплата за послуги згідно рах. №375 від 05.10.2018р.,26003300884471,current,6253.14,Міське КП по утриманню нежитлових приміщень комунальної власності,30579655,юридична особа
СВОБОДА,"Харківська обл., Харків, вул. Чернишевська, буд. 59",79,2018-10-18,23,"Оренда будинків і приміщень та експлуатаційні витрати (прибирання, страхування орендованих будинків, охорона, сигналізація, ремонт, вивіз сміття, тощо)",Оренда нерухомості,240057,Харківська міська організація,25850709,Харківська область,Оренда примiщення згiдно договору N 3 вiд 04.01.2016 за листопад-грудень 2017 року. Без ПДВ,26001052218244,current,10000.00,Харківська обласна організація Національної спілки письменників України,14072262,юридична особа
СВОБОДА,"Київ, просп. Перемоги, буд. 67",70,2018-10-17,1399348_1,Банківські послуги,Інші витрати,243158,Центральний офіс,00013215,Україна,Послуги банку,260031804900,current,12.00,"ПАТ ""Банк український капітал""",22868414,юридична особа
СВОБОДА,"Київ, просп. Перемоги, буд. 67",70,2018-10-17,1399348,Банківські послуги,Інші витрати,243157,Центральний офіс,00013215,Україна,Послуги банку,260031804900,current,3.00,"ПАТ ""Банк український капітал""",22868414,юридична особа
СВОБОДА,"Київ, просп. Перемоги, буд. 67",70,2018-10-17,1399348,Банківські послуги,Інші витрати,243156,Центральний офіс,00013215,Україна,Послуги банку,260031804900,current,12.00,"ПАТ ""Банк український капітал""",22868414,юридична особа
СВОБОДА,"Київ, вул. Олександра Кошиця, буд. 11",61,2018-10-17,13,Військовий збір,Податкові платежі,242001,Центральний офіс,00013215,Україна,Військовий збір за вересень 2018 р.;;;,260031804900,current,555.00,УДКСУ в Дарницькому районі,38021179,юридична особа
СВОБОДА,"Київ, вул. Олександра Кошиця, буд. 3",62,2018-10-17,12,Сплата ЄСВ,Податкові платежі,241758,Центральний офіс,00013215,Україна,Єдиний соціальний внесок за вересень 2018,260031804900,current,6373.30,ДПІ у Дарницькому р-ні м. Києва,39479227,юридична особа
СВОБОДА,"Київ, вул. Олександра Кошиця, буд. 11",63,2018-10-17,11,Податок на доходи,Податкові платежі,241521,Центральний офіс,00013215,Україна,ПДФО за вересень 2018,260031804900,current,6660.00,УДКСУ в Дарницькому районі,38021179,юридична особа
СВОБОДА,"Львівська обл., Львів",76,2018-10-17,85,Послуги зв’язку,Послуги зв’язку,240401,Львівська обласна організація,25561538,Львівська область,Оплата за послуги на серпень 2018 р. згідно рахунку,26002010004365,current,105.00,"ТОВ ""Бізнес і технології""",31442320,юридична особа
СВОБОДА,"Харківська обл., Харків, вул. Чернишевська, буд. 59",79,2018-10-17,22,"Оренда будинків і приміщень та експлуатаційні витрати (прибирання, страхування орендованих будинків, охорона, сигналізація, ремонт, вивіз сміття, тощо)",Оренда нерухомості,240056,Харківська міська організація,25850709,Харківська область,Оренда примiщення згiдно договору N 3 вiд 04.01.2016 за жовтень 2017 року та вiдшкодування витрат за спожитi комунальнi послуги за жовтень 2017 року. Без ПДВ,26001052218244,current,10000.00,Харківська обласна організація Національної спілки письменників України,14072262,юридична особа
СВОБОДА,"Львівська обл., Львів",79,2018-10-17,86,"Оренда будинків і приміщень та експлуатаційні витрати (прибирання, страхування орендованих будинків, охорона, сигналізація, ремонт, вивіз сміття, тощо)",Оренда нерухомості,240004,Львівська обласна організація,25561538,Львівська область,Оплата за постачання природного газу,26002010004365,current,289.96,"ТОВ ""Львівгаз збут""",39594527,юридична особа
СВОБОДА,"Львівська обл., Львів, вул. Жовківська, буд. 22",79,2018-10-17,9,"Оренда будинків і приміщень та експлуатаційні витрати (прибирання, страхування орендованих будинків, охорона, сигналізація, ремонт, вивіз сміття, тощо)",Оренда нерухомості,239906,Центральний офіс,00013215,Україна,Плата за оренду приміщень,260031804900,current,6000.00,"ПП ""Система ЛЯ""",34462313,юридична особа
СВОБОДА,"Івано-Франківська обл., Івано-Франківськ, вул. Незалежності, буд. 53",58,2018-10-17,14,"Виготовлення друкованих матеріалів (плакатів, листівок, буклетів та інших агітаційних матеріалів)",Друкована агітація,239595,Центральний офіс,00013215,Україна,Оплата за друк газети,260031804900,current,60000.00,"ТОВ ""Місто НВ""",30106695,юридична особа
СВОБОДА,"Львівська обл., Яворівський р-н, Яворів, площа Ринок, буд. 14",58,2018-10-17,10,"Виготовлення друкованих матеріалів (плакатів, листівок, буклетів та інших агітаційних матеріалів)",Друкована агітація,239594,Центральний офіс,00013215,Україна,Оплата за друк газети,260031804900,current,22931.35,"ТОВ ""ВД ""Молода Галичина""",32148930,юридична особа
СВОБОДА,"Львівська обл., Яворівський р-н, Яворів, площа Ринок, буд. 14",58,2018-10-17,7,"Виготовлення друкованих матеріалів (плакатів, листівок, буклетів та інших агітаційних матеріалів)",Друкована агітація,239593,Центральний офіс,00013215,Україна,Оплата за друк газети,260031804900,current,22931.35,"ТОВ ""ВД ""Молода Галичина""",32148930,юридична особа
СВОБОДА,"Львівська обл., Яворівський р-н, Яворів, площа Ринок, буд. 14",58,2018-10-17,6,"Виготовлення друкованих матеріалів (плакатів, листівок, буклетів та інших агітаційних матеріалів)",Друкована агітація,239592,Центральний офіс,00013215,Україна,Оплата за друк газети,260031804900,current,22931.35,"ТОВ ""ВД ""Молода Галичина""",32148930,юридична особа
СВОБОДА,"Львівська обл., Львів",49,2018-10-17,8,Публікування матеріалів у друкованих ЗМІ,Реклама в друкованих ЗМІ,239277,Центральний офіс,00013215,Україна,Оплата за надання інформаційних послуг,260031804900,current,25200.00,Наумко Юрій Мирославович,,фізична особа
СВОБОДА,"Київ, вул. Архітектора Вербицького, буд. 18",70,2018-10-16,1996511592,Банківські послуги,Інші витрати,243411,Київська обласна організація,36282647,Київська область,Погашення комісії за РКО дог.№ 26002011700361 від 24.09.2015р.,26002011700361,current,32.00,"Київська обласна організація Всеукраїнське обʼєднання ""Свобода""",36282647,юридична особа
СВОБОДА,"Київська обл., Біла Церква, вул. Ярослава Мудрого, буд. 36",61,2018-10-16,283,Військовий збір,Податкові платежі,242025,Київська обласна організація,36282647,Київська область,"Військовий збір 1,5% з заробітної плати за вересень 2018р.",26002011700361,current,30.00,Білоцерківське УДКСУ Київської області,38009832,юридична особа
СВОБОДА,"Київська обл., Біла Церква, вул. Ярослава Мудрого, буд. 36",61,2018-10-16,282,Військовий збір,Податкові платежі,242024,Київська обласна організація,36282647,Київська область,"Військовий збір 1,5% з заробітної плати за жовтень 2018р.",26002011700361,current,95.19,Білоцерківське УДКСУ Київської області,38009832,юридична особа
СВОБОДА,"Київська обл., Біла Церква, площа Перемоги, буд. 12",62,2018-10-16,285,Сплата ЄСВ,Податкові платежі,241781,Київська обласна організація,36282647,Київська область,Внески ЄСВ 22% з заробітної плати аванс за вересень 2018р.,26002011700361,current,440.00,Білоцерківська ОДНІ М. Біла Церква,39468482,юридична особа
СВОБОДА,"Київська обл., Біла Церква, вул. Ярослава Мудрого, буд. 36",63,2018-10-16,284,Податок на доходи,Податкові платежі,241544,Київська обласна організація,36282647,Київська область,Оплата ПДФО з авансу заробітної плати за вересень 2018р.,26002011700361,current,360.00,Білоцерківське УДКСУ Київської області,38009832,юридична особа
СВОБОДА,"Київ, вул. Михайла Грушевського, буд. 1Д",70,2018-10-13,I1013SSUJW,Банківські послуги,Інші витрати,243590,Херсонська обласна організація,33929866,Херсонська область,Еквайрінгова комісія,26009052211045,current,9.60,"ПАТ КБ ""Приватбанк""",14360570,юридична особа
СВОБОДА,"Херсонська обл., Херсон, Бериславське шосе, 10, 20",83,2018-10-13,I1013SSUJD,"Виплати працівникам (не зарплата): лікарняні, вагітності, відрядження, компенсації ","Заробітна плата, лікарняні, вагітності, відрядження, компенсації",241424,Херсонська обласна організація,33929866,Херсонська область,"Добові, відрядження",26009052211045,current,600.00,Шумейко Володимир Андрійович,1876315533,фізична особа
СВОБОДА,"Херсонська обл., Херсон, вул. 3-я Польова, буд. 32",83,2018-10-13,I1013SSUJD,"Виплати працівникам (не зарплата): лікарняні, вагітності, відрядження, компенсації ","Заробітна плата, лікарняні, вагітності, відрядження, компенсації",241423,Херсонська обласна організація,33929866,Херсонська область,"Добові, відрядження",26009052211045,current,600.00,Гаврилко Олег Григорович,2183323173,фізична особа
СВОБОДА,"Київ, вул. Євгена Сверстюка, буд. 11",72,2018-10-12,240,"Придбання, ремонт офісної техніки та програмного забезпечення (Бухгалтерські програми, Ліга.закон, домени)",Придбання офісної техніки та програмного забезпечення,240273,Центральний офіс,00013215,Україна,Оплата за пдписку систему Головбух,260031804900,current,8460.00,"ТОВ ""МІЖНАРОДНИЙ ЦЕНТР ФІНАНСОВО-ЕКОНОМІЧНОГО РОЗВИТКУ-УКРАЇНА""",33542497,юридична особа
СВОБОДА,"Харківська обл., Харків, вул. Чернишевська, буд. 59",79,2018-10-12,20,"Оренда будинків і приміщень та експлуатаційні витрати (прибирання, страхування орендованих будинків, охорона, сигналізація, ремонт, вивіз сміття, тощо)",Оренда нерухомості,240064,Харківська обласна організація,26283202,Харківська область,ОРЕНДА ПРИМIЩЕННЯ ЗГIДНО З ДОГОВОРОМ N 4 ВIД 04.01.2016 ЗА ЧЕРВЕНЬ-ВЕРЕСЕНЬ 2018 РОКУ,26009052224423,current,10000.00,Харківська обласна організація Національної спілки письменників України,14072262,юридична особа
СВОБОДА,"Київ, вул. Кудрявська, буд. 23",79,2018-10-12,239,"Оренда будинків і приміщень та експлуатаційні витрати (прибирання, страхування орендованих будинків, охорона, сигналізація, ремонт, вивіз сміття, тощо)",Оренда нерухомості,239907,Центральний офіс,00013215,Україна,Оплата за вивезення ТПВ,260031804900,current,2802.49,"КП ""КИЇВКОМУНСЕРВІС""",33745659,юридична особа
СВОБОДА,"Київ, вул. Вʼячеслава Чорновола, буд. 41, 201",53,2018-10-12,238,Витрати на розміщення зовнішньої реклами,Зовнішня реклама,239313,Центральний офіс,00013215,Україна,Оплата за розміщення зовнішньої реклами,260031804900,current,15000.00,"ТОВ ""ДМ-плакат""",33344527,юридична особа
СВОБОДА,"Київ, просп. Перемоги, буд. 67",70,2018-10-11,1399348,Банківські послуги,Інші витрати,243155,Центральний офіс,00013215,Україна,Послуги банку,260031804900,current,270.55,"ПАТ ""Банк український капітал""",22868414,юридична особа
СВОБОДА,"Львівська обл., Львів",84,2018-10-11,МА9289276,"Заробітна плата, премії","Заробітна плата, лікарняні, вагітності, відрядження, компенсації",240985,Центральний офіс,00013215,Україна,Зарплата за вересень 2018 р.,260031804900,current,1387.01,Вайда Ярина Михайлівна,,фізична особа
СВОБОДА,Київ,84,2018-10-11,МА9289276,"Заробітна плата, премії","Заробітна плата, лікарняні, вагітності, відрядження, компенсації",240984,Центральний офіс,00013215,Україна,Зарплата за вересень 2018 р.,260031804900,current,1387.01,Мохник Андрій Володимирович,,фізична особа
СВОБОДА,"Львівська обл., Львів",84,2018-10-11,МА9289276,"Заробітна плата, премії","Заробітна плата, лікарняні, вагітності, відрядження, компенсації",240983,Центральний офіс,00013215,Україна,Зарплата за вересень 2018 р.,260031804900,current,1387.01,Мельничук Любомир Анатолійович,,фізична особа
СВОБОДА,"Львівська обл., Львів",84,2018-10-11,МА9289276,"Заробітна плата, премії","Заробітна плата, лікарняні, вагітності, відрядження, компенсації",240982,Центральний офіс,00013215,Україна,Зарплата за вересень 2018 р.,260031804900,current,9208.66,Пелешак Ярослав Антонович,,фізична особа
СВОБОДА,Київ,84,2018-10-11,МА9289276,"Заробітна плата, премії","Заробітна плата, лікарняні, вагітності, відрядження, компенсації",240981,Центральний офіс,00013215,Україна,Зарплата за вересень 2018 р.,260031804900,current,13685.00,Тягнибок Олег Ярославович,,фізична особа
СВОБОДА,"Івано-Франківська обл., Івано-Франківськ",70,2018-10-10,2721787810,Банківські послуги,Інші витрати,243344,Надвірнянська районна організація,26055910,Івано-Франківська область,Списання щомісячної плати за обслуговування ТП Моя громада,26000300009742,current,25.00,"Надвірнянська районна організація Всеукраїнське обʼєднання ""Свобода""",26055910,юридична особа
СВОБОДА,"Київ, вул. Госпітальна, буд. 12Г",70,2018-10-09,2607025118,Банківські послуги,Інші витрати,243554,Рівненська обласна організація,26353285,Рівненська область,"За надання довідок, дублікатів довідок",26006300976830,current,50.00,"АТ ""Ощадбанк""",00032129,юридична особа
СВОБОДА,"Івано-Франківська обл., Івано-Франківськ",70,2018-10-09,2608503210,Банківські послуги,Інші витрати,243343,Надвірнянська районна організація,26055910,Івано-Франківська область,Погашення нарахованої комісії за внесення готівки,26000300009742,current,5.00,"Надвірнянська районна організація Всеукраїнське обʼєднання ""Свобода""",26055910,юридична особа
СВОБОДА,"Івано-Франківська обл., Івано-Франківськ",70,2018-10-09,2102912410,Банківські послуги,Інші витрати,243342,Надвірнянська районна організація,26055910,Івано-Франківська область,Списання щомісячної плати за обслуговування ТП Моя громада,26000300009742,current,24.00,"Надвірнянська районна організація Всеукраїнське обʼєднання ""Свобода""",26055910,юридична особа
СВОБОДА,Київ,70,2018-10-09,12802,Банківські послуги,Інші витрати,243306,Івано-Франківська обласна організація,26055441,Івано-Франківська область,Комісія за платежі за межі банку,260030450601,current,50.00,"ПАТ ""Банк інвестиції та заощаджень""",33695095,юридична особа
СВОБОДА,"Київ, вул. Миколи Лєскова, буд. 9",70,2018-10-09,bn,Банківські послуги,Інші витрати,243205,Волинська обласна організація,25943855,Волинська область,Комісія за виписку на папер носії з 29.03.18 по 26.07.18по рах №26008234296,26008234296,current,50.00,"АТ ""Райффайзен банк Аваль""",14305909,юридична особа
СВОБОДА,"Київ, вул. Миколи Лєскова, буд. 9",70,2018-10-09,bn,Банківські послуги,Інші витрати,243204,Волинська обласна організація,25943855,Волинська область,Комісія за вих.перекази в нац.валюті на папер.носії поза межами Банку з 27.02.2018 по 28.03.18 по рах №26008234296 1*50=50 грн без ПДВ,26008234296,current,50.00,"АТ ""Райффайзен банк Аваль""",14305909,юридична особа
СВОБОДА,"Київ, вул. Миколи Лєскова, буд. 9",70,2018-10-09,bn,Банківські послуги,Інші витрати,243203,Волинська обласна організація,25943855,Волинська область,Комісія за виписку на папер носії з 27.02.18 по 28.03.18,26008234296,current,44.17,"АТ ""Райффайзен банк Аваль""",14305909,юридична особа
СВОБОДА,"Київ, вул. Миколи Лєскова, буд. 9",70,2018-10-09,bn,Банківські послуги,Інші витрати,243202,Волинська обласна організація,25943855,Волинська область,Комісія за користуванням пакетом послуг з 27.02.18 по 28.03.18 по рах №26008234296 без ПДВ,26008234296,current,100.00,"АТ ""Райффайзен банк Аваль""",14305909,юридична особа
СВОБОДА,"Київ, вул. Миколи Лєскова, буд. 9",70,2018-10-09,1,Банківські послуги,Інші витрати,243201,Волинська обласна організація,25943855,Волинська область,"Комісія за довідку про рух коштів, залишоек коштів та ін.",26008234296,current,150.00,"АТ ""Райффайзен банк Аваль""",14305909,юридична особа
СВОБОДА,"Івано-Франківська обл., Надворнянський р-н, Надвірна",79,2018-10-09,10,"Оренда будинків і приміщень та експлуатаційні витрати (прибирання, страхування орендованих будинків, охорона, сигналізація, ремонт, вивіз сміття, тощо)",Оренда нерухомості,239971,Надвірнянська районна організація,26055910,Івано-Франківська область,Оплата за оренду,26000300009742,current,300.00,"ТОВ ""Радіосервіс""",13659309,юридична особа
СВОБОДА,"Волинська обл., Луцьк",79,2018-10-09,1,"Оренда будинків і приміщень та експлуатаційні витрати (прибирання, страхування орендованих будинків, охорона, сигналізація, ремонт, вивіз сміття, тощо)",Оренда нерухомості,239913,Волинська обласна організація,25943855,Волинська область,"За оренду приміщення згідно акту звірки у т.ч. ПДВ 20%-592,64",26008234296,current,3555.83,"КП ""ІАЦ ""Волиньенергософт""",05433614,юридична особа
СВОБОДА,"Івано-Франківська обл., Івано-Франківськ",51,2018-10-09,1,Оплата ефірного часу на ТБ,Телереклама,239222,Івано-Франківська обласна організація,26055441,Івано-Франківська область,За рекламні послуги,260030450601,current,1641.60,"Івано-Франківське обласне телебачення ""Галичина""",13641427,юридична особа
СВОБОДА,"Львівська обл., Львів",70,2018-10-08,1392317,Банківські послуги,Інші витрати,243491,Львівська обласна організація,25561538,Львівська область,плата за надання довідки про стан рахунку,26002010004365,current,100.00,"ПАТ ""Банк український капітал""",22868414,юридична особа
СВОБОДА,"Київ, вул. Генерала Алмазова, буд. 18",70,2018-10-08,О5135_0007,Банківські послуги,Інші витрати,243487,Львівська обласна організація,25561538,Львівська область,Сплата нарахованої комісії за надання довідки про наявність відкритих рахунків,26002010004365,current,30.00,"АКБ ""Індустріалбанк""",13857564,юридична особа
СВОБОДА,"Київ, вул. Генерала Алмазова, буд. 18",70,2018-10-08,О5135_0005,Банківські послуги,Інші витрати,243486,Львівська обласна організація,25561538,Львівська область,Сплата нарахованої комісії за надання інформації про рух грошових коштів за поточним рахунком,26002010004365,current,30.00,"АКБ ""Індустріалбанк""",13857564,юридична особа
СВОБОДА,"Закарпатська обл., Ужгород",70,2018-10-08,6805_1,Банківські послуги,Інші витрати,243287,Закарпатська обласна організація,34022740,Закарпатська область,Плата за надання довідки про рух коштів,26006924422414,current,100.00,"АБ ""Укргазбанк""",23697280,юридична особа
СВОБОДА,"Київ, вул. Генерала Алмазова, буд. 18",70,2018-10-08,О5135_0009,Банківські послуги,Інші витрати,243185,Центральний офіс,00013215,Україна,Списання комісії банку,260031804900,current,30.00,"АКБ ""Індустріалбанк""",13857564,юридична особа
СВОБОДА,"Київ, вул. Генерала Алмазова, буд. 18",70,2018-10-08,О5135_0011,Банківські послуги,Інші витрати,243184,Центральний офіс,00013215,Україна,Списання комісії банку,260031804900,current,30.00,"АКБ ""Індустріалбанк""",13857564,юридична особа
СВОБОДА,"Київ, просп. Перемоги, буд. 67",70,2018-10-08,1356788,Банківські послуги,Інші витрати,243154,Центральний офіс,00013215,Україна,Плата за надання довідки,260031804900,current,100.00,"ПАТ ""Банк український капітал""",22868414,юридична особа
СВОБОДА,"Київ, просп. Перемоги, буд. 67",70,2018-10-08,1356788,Банківські послуги,Інші витрати,243153,Центральний офіс,00013215,Україна,Плата за оформлення чекової книжки,260031804900,current,100.00,"ПАТ ""Банк український капітал""",22868414,юридична особа
СВОБОДА,"Київ, просп. Перемоги, буд. 67",70,2018-10-08,1356788,Банківські послуги,Інші витрати,243152,Центральний офіс,00013215,Україна,Послуги банку,260031804900,current,6.00,"ПАТ ""Банк український капітал""",22868414,юридична особа
СВОБОДА,"Київ, вул. Смоленська, буд. 31-33",76,2018-10-08,5,Послуги зв’язку,Послуги зв’язку,240381,Центральний офіс,00013215,Україна,Оплата за телекомунікаційні послуги,260031804900,current,86.40,"ПрАТ ""Датагруп""",31720260,юридична особа
СВОБОДА,"Київ, вул. Лугова, буд. 1А",58,2018-10-08,4,"Виготовлення друкованих матеріалів (плакатів, листівок, буклетів та інших агітаційних матеріалів)",Друкована агітація,239591,Центральний офіс,00013215,Україна,Оплата за друк газети,260031804900,current,25000.80,"ТОВ ""Полі-прінт""",32108259,юридична особа
СВОБОДА,"Київ, вул. Генерала Алмазова, буд. 18",70,2018-10-05,О5134_0013,Банківські послуги,Інші витрати,243485,Львівська обласна організація,25561538,Львівська область,Списання комісії банку за видачу готівкових коштів з поточного рахунку по чеку №МА2036572,26002010004365,current,70.45,"АКБ ""Індустріалбанк""",13857564,юридична особа
СВОБОДА,"Київ, просп. Перемоги, буд. 67",70,2018-10-05,1356788,Банківські послуги,Інші витрати,243151,Центральний офіс,00013215,Україна,Послуги банку,260031804900,current,33.78,"ПАТ ""Банк український капітал""",22868414,юридична особа
СВОБОДА,"Львівська обл., Львів",61,2018-10-05,84,Військовий збір,Податкові платежі,242048,Львівська обласна організація,25561538,Львівська область,Військовий збір,26002010004365,current,131.30,УДКСУ у Галицькому районі м. Львова,38007573,юридична особа
СВОБОДА,"Київ, вул. Олександра Кошиця, буд. 11",61,2018-10-05,3,Військовий збір,Податкові платежі,242000,Центральний офіс,00013215,Україна,Військовий збір за вересень 2018 р.;;;,260031804900,current,504.14,УДКСУ в Дарницькому районі,38021179,юридична особа
СВОБОДА,"Львівська обл., Львів",62,2018-10-05,83,Сплата ЄСВ,Податкові платежі,241805,Львівська обласна організація,25561538,Львівська область,Єдиний внесок,26002010004365,current,1925.37,Галицька ОДПІ ГУ ДФС у Львівській області,39508163,юридична особа
СВОБОДА,"Київ, вул. Олександра Кошиця, буд. 3",62,2018-10-05,2,Сплата ЄСВ,Податкові платежі,241757,Центральний офіс,00013215,Україна,Єдиний соціальний внесок за вересень 2018,260031804900,current,5839.23,ДПІ у Дарницькому р-ні м. Києва,39479227,юридична особа
СВОБОДА,"Львівська обл., Львів",63,2018-10-05,82,Податок на доходи,Податкові платежі,241568,Львівська обласна організація,25561538,Львівська область,ПДФО,26002010004365,current,1575.30,УДКСУ у Галицькому районі м. Львова,38007573,юридична особа
СВОБОДА,"Київ, вул. Олександра Кошиця, буд. 11",63,2018-10-05,1,Податок на доходи,Податкові платежі,241520,Центральний офіс,00013215,Україна,ПДФО за вересень 2018,260031804900,current,6049.50,УДКСУ в Дарницькому районі,38021179,юридична особа
СВОБОДА,"Львівська обл., Перемишлянський р-н, Великі Глібовичі",84,2018-10-05,МА2036572,"Заробітна плата, премії","Заробітна плата, лікарняні, вагітності, відрядження, компенсації",241153,Львівська обласна організація,25561538,Львівська область,зарплата за вересень 2018,26002010004365,current,1387.01,Іванський Іван Анатолійович,,фізична особа
СВОБОДА,"Вінницька обл., Іллінецький р-н, Жорнище",84,2018-10-05,МА2036572,"Заробітна плата, премії","Заробітна плата, лікарняні, вагітності, відрядження, компенсації",241152,Львівська обласна організація,25561538,Львівська область,зарплата за вересень 2018,26002010004365,current,1387.01,Дембовська Юлія Дмитрівна,,фізична особа
СВОБОДА,"Львівська обл., Львів",84,2018-10-05,МА2036572,"Заробітна плата, премії","Заробітна плата, лікарняні, вагітності, відрядження, компенсації",241151,Львівська обласна організація,25561538,Львівська область,зарплата за вересень 2018,26002010004365,current,1387.01,Скиба Наталя Михайлівна,,фізична особа
СВОБОДА,"Львівська обл., Пустомитівський р-н, Сокільники",84,2018-10-05,МА2036572,"Заробітна плата, премії","Заробітна плата, лікарняні, вагітності, відрядження, компенсації",241150,Львівська обласна організація,25561538,Львівська область,зарплата за вересень 2018,26002010004365,current,1497.05,Кіт Ірина Юріївна,,фізична особа
СВОБОДА,"Львівська обл., Львів",84,2018-10-05,МА2036572,"Заробітна плата, премії","Заробітна плата, лікарняні, вагітності, відрядження, компенсації",241149,Львівська обласна організація,25561538,Львівська область,зарплата за вересень 2018,26002010004365,current,1387.01,Кошулинський Руслан Володимирович,,фізична особа
СВОБОДА,"Київ, вул. Михайла Грушевського, буд. 1Д",70,2018-10-02,89,Банківські послуги,Інші витрати,243650,Камʼянець-Подільська районна організація,25803823,Хмельницька область,Комісія РКО від зарплати за жовтень 2018р.,26005052312438,current,3.74,"ПАТ КБ ""Приватбанк""",14360570,юридична особа
СВОБОДА,"Хмельницька обл., Камʼянець-Подільський",84,2018-10-02,88,"Заробітна плата, премії","Заробітна плата, лікарняні, вагітності, відрядження, компенсації",241177,Камʼянець-Подільська районна організація,25803823,Хмельницька область,Зарплата за вересень 2018р.,26005052312438,current,1497.01,Посітко Михайло Володимирович,,фізична особа
СВОБОДА,"Волинська обл., Іваничівський р-н, Іваничі, вул. Залізнична, буд. 41",79,2018-10-02,4,"Оренда будинків і приміщень та експлуатаційні витрати (прибирання, страхування орендованих будинків, охорона, сигналізація, ремонт, вивіз сміття, тощо)",Оренда нерухомості,239937,Іваничівська районна організація,37040075,Волинська область,За оренду приміщення за 2018 рік зг актів звірки,26007060728374,current,2020.80,Виробниче управління житлово-комунального господарства,03339271,юридична особа
СВОБОДА,"Львівська обл., Яворівський р-н, Яворів, площа Ринок, буд. 14",58,2018-10-02,237,"Виготовлення друкованих матеріалів (плакатів, листівок, буклетів та інших агітаційних матеріалів)",Друкована агітація,239620,Центральний офіс,00013215,Україна,Оплата за друк газети,260031804900,current,22963.00,"ТОВ ""ВД ""Молода Галичина""",32148930,юридична особа
СВОБОДА,"Київ, вул. Вʼячеслава Чорновола, буд. 41, 201",53,2018-10-02,236,Витрати на розміщення зовнішньої реклами,Зовнішня реклама,239314,Центральний офіс,00013215,Україна,Оплата за розміщення зовнішньої реклами,260031804900,current,5400.00,"ТОВ ""ДМ-плакат""",33344527,юридична особа
СВОБОДА,"Київ, вул. Михайла Грушевського, буд. 1Д",70,2018-10-01,AS89s9m2vp,Банківські послуги,Інші витрати,243725,Чернівецька обласна організація,33971064,Чернівецька область,"Комісія за обслуговування рахунку за вересень 2018 р. згідно договору банківського рахунку від 29.09.2017, без ПДВ",26006051509840,current,100.00,"ПАТ КБ ""Приватбанк""",14360570,юридична особа
СВОБОДА,"Чернівецька обл., Кіцманський р-н, Кіцмань, вул. Незалежності, буд. 32",70,2018-10-01,8672947525,Банківські послуги,Інші витрати,243699,Кіцманська районна організація,36747124,Чернівецька область,"Абонплата КРПО ВО ""Свобода"" ФЧЕРНІВЕЦЬКЕ ОБЛАСН АТ ОЩАД М.ЧЕРНІВЦІ Списання щомісячної плати за обслуговування ТП Моя громада за вересень 2018 р.",26003300524526,current,49.00,"Кіцманська районна організація Всеукраїнське обʼєднання ""Свобода""",36747124,юридична особа
СВОБОДА,"Київ, вул. Михайла Грушевського, буд. 1Д",70,2018-10-01,AS89s968dp,Банківські послуги,Інші витрати,243649,Камʼянець-Подільська районна організація,25803823,Хмельницька область,Комісія за обслуговування рахунку за вересень 2018р.,26005052312438,current,100.00,"ПАТ КБ ""Приватбанк""",14360570,юридична особа
СВОБОДА,"Київ, вул. Госпітальна, буд. 12Г",70,2018-10-01,8673986718,Банківські послуги,Інші витрати,243553,Рівненська обласна організація,26353285,Рівненська область,Коміс.за розрах.обсл.рахунку 26006300976830 з 01.09.2018 по 28.09.2018,26006300976830,current,15.00,"АТ ""Ощадбанк""",00032129,юридична особа
СВОБОДА,"Київ, вул. Михайла Грушевського, буд. 1Д",70,2018-10-01,AS89s9igip,Банківські послуги,Інші витрати,243539,Полтавська обласна організація,36984343,Полтавська область,Комісія за обслуговування рахунку,26005054629028,current,50.00,"ПАТ КБ ""Приватбанк""",14360570,юридична особа
СВОБОДА,"Київ, вул. Михайла Грушевського, буд. 1Д",70,2018-10-01,А1О1ЕН0Q7Y,Банківські послуги,Інші витрати,243519,Турківська районна організація,36787707,Львівська область,Комісія за виконання платежів у нац.валюті,26007053720227,current,3.00,"ПАТ КБ ""Приватбанк""",14360570,юридична особа
СВОБОДА,"Київ, вул. Михайла Грушевського, буд. 1Д",70,2018-10-01,А1О1ЕGZSLY,Банківські послуги,Інші витрати,243518,Турківська районна організація,36787707,Львівська область,Комісія за виконання платежів у нац.валюті,26007053720227,current,3.00,"ПАТ КБ ""Приватбанк""",14360570,юридична особа
СВОБОДА,"Київ, вул. Михайла Грушевського, буд. 1Д",70,2018-10-01,AS89S7x89p,Банківські послуги,Інші витрати,243508,Самбірська районна організація,33865148,Львівська область,"Комісія за обслуговування рахунку за вересень, згідно договору",26008053801792,current,100.00,"ПАТ КБ ""Приватбанк""",14360570,юридична особа
СВОБОДА,"Київ, вул. Михайла Грушевського, буд. 1Д",70,2018-10-01,AN89s015bp,Банківські послуги,Інші витрати,243427,Обухівська міська організація,36890931,Київська область,"Комiсiя за обслуговування недiючого рахунку № 26001053172441 за вересень 2018 р., згiдно тарифiв банку, без ПДВ",26001053172441,current,15.00,"ПАТ КБ ""Приватбанк""",14360570,юридична особа
СВОБОДА,"Київ, вул. Архітектора Вербицького, буд. 18",70,2018-10-01,1980849217,Банківські послуги,Інші витрати,243410,Київська обласна організація,36282647,Київська область,Погашення абонплати за вересень 2018р.,26002011700361,current,190.00,"Київська обласна організація Всеукраїнське обʼєднання ""Свобода""",36282647,юридична особа
СВОБОДА,"Київ, вул. Архітектора Вербицького, буд. 18",70,2018-10-01,278,Банківські послуги,Інші витрати,243408,Київська обласна організація,36282647,Київська область,Обробка даних та видача сертивікату ключа ЕЦП,26002011700361,current,658.00,"ТОВ ""Центр сертифікації ключів ""Україна""",36865753,юридична особа
СВОБОДА,"Київ, вул. Архітектора Вербицького, буд. 18",70,2018-10-01,274,Банківські послуги,Інші витрати,243407,Київська обласна організація,36282647,Київська область,Плата за довідку,26002011700361,current,100.00,"ПАТ ""Укрсоцбанк""",00039019,юридична особа
СВОБОДА,"Івано-Франківська обл., Івано-Франківськ",70,2018-10-01,8674792510,Банківські послуги,Інші витрати,243341,Надвірнянська районна організація,26055910,Івано-Франківська область,Комісія за обслуговування поточного рахунку,26000300009742,current,20.00,"Надвірнянська районна організація Всеукраїнське обʼєднання ""Свобода""",26055910,юридична особа
СВОБОДА,"Київ, вул. Михайла Грушевського, буд. 1Д",70,2018-10-01,AN89s09app,Банківські послуги,Інші витрати,243276,Житомирська районна організація,36710660,Житомирська область,"комісія за обслуговув.недіючого рах.№ 200045055816119 за вересень 2018, без ПДВ",26004055810119,current,100.00,"ПАТ КБ ""Приватбанк""",14360570,юридична особа
СВОБОДА,"Київ, вул. Михайла Грушевського, буд. 1Д",70,2018-10-01,AS89s8r7jp,Банківські послуги,Інші витрати,243271,Криничанська районна організація,38673191,Дніпропетровська область,Комісія за обслуговування рахунку,26002050262941,current,100.00,"ПАТ КБ ""Приватбанк""",14360570,юридична особа
СВОБОДА,"Київ, вул. Михайла Грушевського, буд. 1Д",70,2018-10-01,A1O1EI1YKY,Банківські послуги,Інші витрати,243249,Дніпропетровська обласна організація,26511459,Дніпропетровська область,Комісія за виконання платежів,26005050264582,current,3.00,"ПАТ КБ ""Приватбанк""",14360570,юридична особа
СВОБОДА,"Київська обл., Біла Церква, вул. Ярослава Мудрого, буд. 36",61,2018-10-01,275,Військовий збір,Податкові платежі,242023,Київська обласна організація,36282647,Київська область,"Військовий збір 1,5% з заробітної плати за вересень 2018р.",26002011700361,current,76.79,Білоцерківське УДКСУ Київської області,38009832,юридична особа
СВОБОДА,"Київська обл., Біла Церква, площа Перемоги, буд. 12",62,2018-10-01,277,Сплата ЄСВ,Податкові платежі,241780,Київська обласна організація,36282647,Київська область,Внески ЄСВ 22% з заробітної плати за вересень 2018р.,26002011700361,current,1126.21,Білоцерківська ОДНІ М. Біла Церква,39468482,юридична особа
СВОБОДА,"Київська обл., Біла Церква, вул. Ярослава Мудрого, буд. 36",63,2018-10-01,276,Податок на доходи,Податкові платежі,241543,Київська обласна організація,36282647,Київська область,Оплата ПДФО з авансу заробітної плати за вересень 2018р.,26002011700361,current,921.44,Білоцерківське УДКСУ Київської області,38009832,юридична особа
СВОБОДА,,84,2018-10-01,280,"Заробітна плата, премії","Заробітна плата, лікарняні, вагітності, відрядження, компенсації",241051,Київська обласна організація,36282647,Київська область,Перерахування на картку заробітну плату за вересень 2018р. Номер рахунка 26250005283962,26002011700361,current,2997.02,Сабій Ігор Михайлович,,фізична особа
СВОБОДА,,84,2018-10-01,279,"Заробітна плата, премії","Заробітна плата, лікарняні, вагітності, відрядження, компенсації",241050,Київська обласна організація,36282647,Київська область,Перерахування на картку заробітну плату за вересень 2018р. Номер рахунка 26259005283963,26002011700361,current,1123.88,Однолько Тетяна Анатоліївна,,фізична особа
СВОБОДА,"Львівська обл., Турківський р-н, Турка",79,2018-10-01,5,"Оренда будинків і приміщень та експлуатаційні витрати (прибирання, страхування орендованих будинків, охорона, сигналізація, ремонт, вивіз сміття, тощо)",Оренда нерухомості,240015,Турківська районна організація,36787707,Львівська область,оренда плата за приміщення,26007053720227,current,1290.00,Відділ культури і туризму Турківської РДА,26057411,юридична особа
СВОБОДА,"Дніпропетровська обл., Дніпро́, вул. Михайла Грушевського, буд. 1",79,2018-10-01,23,"Оренда будинків і приміщень та експлуатаційні витрати (прибирання, страхування орендованих будинків, охорона, сигналізація, ремонт, вивіз сміття, тощо)",Оренда нерухомості,239940,Дніпропетровська обласна організація,26511459,Дніпропетровська область,"Оплата оренди приміщення згідно договору №05-10/18 від 28.09.2018, в т.ч.ПДВ",26005050264582,current,2000.02,ДНІПРОПЕТРОВСЬКА ОБЛАСНА ОРГАНІЗАЦІЯ СПІЛКИ АРХІТЕКТОРІВ УКРАЇНИ,05389936,юридична особа
СВОБОДА,"Київська обл., Фастів, вул. Толстого, буд. 3, 58",49,2018-10-01,281,Публікування матеріалів у друкованих ЗМІ,Реклама в друкованих ЗМІ,239281,Київська обласна організація,36282647,Київська область,Оплата за Інформаційно-консультаційні послуги у сфері інформації,26002011700361,current,360.00,Потапенко Андрій Йосипович,2380807994,фізична особа
СВОБОДА,"Львівська обл., Турківський р-н, Турка, вул. Мицкевича, буд. 8",50,2018-10-01,4,Оплата ефірного часу на радіо,Реклама на радіо,239257,Турківська районна організація,36787707,Львівська область,за надання ефіру для розміщення привітанння,26007053720227,current,100.00,"Студія радіомовлення ""Карпатський Гомін""",25236287,юридична особа
СВОБОДА,"Київ, вул. Михайла Грушевського, буд. 1Д",70,2018-09-28,9SO1EA3PFY,Банківські послуги,Інші витрати,243724,Чернівецька обласна організація,33971064,Чернівецька область,"Комісія за виконання платежів в національній валюті, згідно з відкритою офертою банку N б/н від 29.09.2017 та тарифів банку, без ПДВ.",26006051509840,current,3.00,"ПАТ КБ ""Приватбанк""",14360570,юридична особа
СВОБОДА,"Чернівецька обл., Чернівці, Головна вул., 119",70,2018-09-28,8586168725,Банківські послуги,Інші витрати,243704,Чернівецька міська організація,33917562,Чернівецька область,"06 за обробку документів, субʼєктів го ФЧЕРНІВЕЦЬКЕ ОБЛАСН АТОЩАД М.ЧЕРНІВЦІ Сплата комісії згідно тарифу",26002300454404,current,20.00,"Чернівецька обласна філія АТ ""Ощадбанк""",09356307,юридична особа
СВОБОДА,"Чернівецька обл., Кіцманський р-н, Кіцмань, вул. Незалежності, буд. 32",70,2018-09-28,8548763025,Банківські послуги,Інші витрати,243698,Кіцманська районна організація,36747124,Чернівецька область,104- 29 інші доходи від суб.господ. ФЧЕРНІВЕЦЬКЕ ОБЛАСН АТ ОЩАД М.ЧЕРНІВЦІ Сплата комісії за смс-інформування за 09.2018р,26003300524526,current,1.25,"Чернівецька обласна філія АТ ""Ощадбанк""",09356307,юридична особа
СВОБОДА,Київ,70,2018-09-28,1356787,Банківські послуги,Інші витрати,243484,Львівська обласна організація,25561538,Львівська область,Плата за відкриття поточного рахунку,26002010004365,current,100.00,"ПАТ ""Банк ""Український капітал""",,юридична особа
СВОБОДА,"Київ, вул. Генерала Алмазова, буд. 18",70,2018-09-28,О0124_3441,Банківські послуги,Інші витрати,243483,Львівська обласна організація,25561538,Львівська область,"Списання комісії банку за переказ коштів за межі банку за системою ""Клієнт-Банк""",26002010004365,current,120.00,"АКБ ""Індустріалбанк""",13857564,юридична особа
СВОБОДА,"Київ, вул. Генерала Алмазова, буд. 18",70,2018-09-28,О0124_1847,Банківські послуги,Інші витрати,243482,Львівська обласна організація,25561538,Львівська область,Списання комісії банку за обслуговування тарифного пакету,26002010004365,current,50.00,"АКБ ""Індустріалбанк""",13857564,юридична особа
СВОБОДА,Київ,70,2018-09-28,9552,Банківські послуги,Інші витрати,243361,Тисменицька районна організація,36083799,Івано-Франківська область,Комісія за ведення поточного рахунку,260002805501,current,50.00,"ПАТ ""Банк інвестиції та заощаджень""",33695095,юридична особа
СВОБОДА,Київ,70,2018-09-28,2537,Банківські послуги,Інші витрати,243305,Івано-Франківська обласна організація,26055441,Івано-Франківська область,Комісія за ведення поточного рахунку,260030450601,current,100.00,"ПАТ ""Банк інвестиції та заощаджень""",33695095,юридична особа
СВОБОДА,"Київ, просп. Перемоги, буд. 67",70,2018-09-28,1356788,Банківські послуги,Інші витрати,243150,Центральний офіс,00013215,Україна,Плата за відкриття поточного рахунку,260031804900,current,100.00,"ПАТ ""Банк український капітал""",22868414,юридична особа
СВОБОДА,"Київ, вул. Генерала Алмазова, буд. 18",70,2018-09-28,О0124_6115,Банківські послуги,Інші витрати,243149,Центральний офіс,00013215,Україна,Списання комісії банку,260031804900,current,8.00,"АКБ ""Індустріалбанк""",13857564,юридична особа
СВОБОДА,"Київ, вул. Генерала Алмазова, буд. 18",70,2018-09-28,О0124_1042,Банківські послуги,Інші витрати,243148,Центральний офіс,00013215,Україна,Списання комісії банку,260031804900,current,100.00,"АКБ ""Індустріалбанк""",13857564,юридична особа
СВОБОДА,"Київ, вул. Генерала Алмазова, буд. 18",70,2018-09-28,О0124_1789,Банківські послуги,Інші витрати,243147,Центральний офіс,00013215,Україна,Списання комісії банку,260031804900,current,70.00,"АКБ ""Індустріалбанк""",13857564,юридична особа
СВОБОДА,"Чернівецька обл., Чернівці, вул. Кобилянської, буд. 3",79,2018-09-28,22,"Оренда будинків і приміщень та експлуатаційні витрати (прибирання, страхування орендованих будинків, охорона, сигналізація, ремонт, вивіз сміття, тощо)",Оренда нерухомості,240078,Чернівецька обласна організація,33971064,Чернівецька область,"*;101;33971064;Оренд.плата за коритув.майном, що перебуває в комун.власності Чернівці, вул.Шевченка 41, зг. дог N108 та N 109 від 29.04.2015 р. за вересень 2018 р.;;;",26006051509840,current,3600.00,УДКСУ у м. Чернівці,37978173,юридична особа
СВОБОДА,"Чернівецька обл., Кіцманський р-н, Кіцмань, вул. Івана Миколайчука, буд. 1",79,2018-09-28,1,"Оренда будинків і приміщень та експлуатаційні витрати (прибирання, страхування орендованих будинків, охорона, сигналізація, ремонт, вивіз сміття, тощо)",Оренда нерухомості,240068,Кіцманська районна організація,36747124,Чернівецька область,"Орендна плата та відшкодування за електроенергію за період 01.2018-09.2018рр зг. дог. оренди №182 від 16.03.2017р, рах. №1,5,9,12,15,18,21, 24,27 від 27.09.18р",26003300524526,current,1052.68,"Кіцманська районна організація ВФСТ ""Колос""",26466210,юридична особа
СВОБОДА,"Київ, вул. Миколи Лєскова, буд. 9",70,2018-09-27,б/н,Банківські послуги,Інші витрати,243676,Красилівська районна організація,36923668,Хмельницька область,Комісія за користування пакетом послуг з 30.08.2018 по 26.09.2018,26005483329,current,100.00,"АТ ""Райффайзен банк Аваль""",14305909,юридична особа
СВОБОДА,Київ,70,2018-09-27,13482,Банківські послуги,Інші витрати,243360,Тисменицька районна організація,36083799,Івано-Франківська область,Комісія за платежі за межі банку,260002805501,current,30.00,"ПАТ ""Банк інвестиції та заощаджень""",33695095,юридична особа
СВОБОДА,Київ,70,2018-09-27,13452,Банківські послуги,Інші витрати,243304,Івано-Франківська обласна організація,26055441,Івано-Франківська область,Комісія за платежі за межі банку,260030450601,current,105.00,"ПАТ ""Банк інвестиції та заощаджень""",33695095,юридична особа
СВОБОДА,"Івано-Франківська обл., Івано-Франківськ",79,2018-09-27,2,"Оренда будинків і приміщень та експлуатаційні витрати (прибирання, страхування орендованих будинків, охорона, сигналізація, ремонт, вивіз сміття, тощо)",Оренда нерухомості,239979,Тисменицька районна організація,36083799,Івано-Франківська область,Оплата за оренду,260002805501,current,1998.84,Івано-Франківська обласна рада,37951998,юридична особа
СВОБОДА,"Івано-Франківська обл., Івано-Франківськ",79,2018-09-27,1,"Оренда будинків і приміщень та експлуатаційні витрати (прибирання, страхування орендованих будинків, охорона, сигналізація, ремонт, вивіз сміття, тощо)",Оренда нерухомості,239978,Тисменицька районна організація,36083799,Івано-Франківська область,Оплата за комунальні послуги,260002805501,current,137.74,Комунальне підриємство обласної ради,39088370,юридична особа
СВОБОДА,"Івано-Франківська обл., Івано-Франківськ",79,2018-09-27,3,"Оренда будинків і приміщень та експлуатаційні витрати (прибирання, страхування орендованих будинків, охорона, сигналізація, ремонт, вивіз сміття, тощо)",Оренда нерухомості,239959,Івано-Франківська обласна організація,26055441,Івано-Франківська область,Оплата за оренду,260030450601,current,2733.21,Івано-Франківська обласна рада,37951998,юридична особа
СВОБОДА,"Івано-Франківська обл., Івано-Франківськ",79,2018-09-27,2,"Оренда будинків і приміщень та експлуатаційні витрати (прибирання, страхування орендованих будинків, охорона, сигналізація, ремонт, вивіз сміття, тощо)",Оренда нерухомості,239958,Івано-Франківська обласна організація,26055441,Івано-Франківська область,Оплата за комунальні послуги,260030450601,current,242.09,Комунальне підриємство обласної ради,39088370,юридична особа
СВОБОДА,"Івано-Франківська обл., Івано-Франківськ",58,2018-09-27,1,"Виготовлення друкованих матеріалів (плакатів, листівок, буклетів та інших агітаційних матеріалів)",Друкована агітація,239629,Івано-Франківська обласна організація,26055441,Івано-Франківська область,Оплата за друк,260030450601,current,432.00,"ТОВ ""Місто НВ""",30106695,юридична особа
СВОБОДА,"Полтавська обл., Полтава, вул. Соборності, буд. 14",79,2018-09-26,48,"Оренда будинків і приміщень та експлуатаційні витрати (прибирання, страхування орендованих будинків, охорона, сигналізація, ремонт, вивіз сміття, тощо)",Оренда нерухомості,240028,Полтавська обласна організація,36984343,Полтавська область,Оренда приміщення,26005054629028,current,10377.37,"ТОВ ""Агрополіс на Жовтневій""",38561467,юридична особа
СВОБОДА,"Полтавська обл., Полтава, вул. Соборності, буд. 14",79,2018-09-26,47,"Оренда будинків і приміщень та експлуатаційні витрати (прибирання, страхування орендованих будинків, охорона, сигналізація, ремонт, вивіз сміття, тощо)",Оренда нерухомості,240027,Полтавська обласна організація,36984343,Полтавська область,Оренда приміщення,26005054629028,current,14029.48,"ТОВ ""Агрополіс на Жовтневій""",38561467,юридична особа
СВОБОДА,"Івано-Франківська обл., Івано-Франківськ, вул. Незалежності, буд. 53",58,2018-09-26,235,"Виготовлення друкованих матеріалів (плакатів, листівок, буклетів та інших агітаційних матеріалів)",Друкована агітація,239590,Центральний офіс,00013215,Україна,Оплата за друк газети,260031804900,current,90000.00,"ТОВ ""Місто НВ""",30106695,юридична особа
СВОБОДА,"Львівська обл., Львів",82,2018-09-21,234,"Гонорари, в тому числі за надані консультаційні послуги","Гонорари, в тому числі за надані консультаційні послуги",244628,Центральний офіс,00013215,Україна,Нотаріальні послуги,26005010005349,current,2500.00,Магировська Олена Вікторівна,,фізична особа
СВОБОДА,"Київ, вул. Генерала Алмазова, буд. 18",70,2018-09-21,О1533_0006,Банківські послуги,Інші витрати,243481,Львівська обласна організація,25561538,Львівська область,Списання комісії банку за видачу готівкових коштів з поточного рахунку по чеку №МА2036571,26002010004365,current,120.75,"АКБ ""Індустріалбанк""",13857564,юридична особа
СВОБОДА,"Київ, вул. Генерала Алмазова, буд. 18",70,2018-09-21,О1533_0008,Банківські послуги,Інші витрати,243146,Центральний офіс,00013215,Україна,Списання комісії банку,260031804900,current,119.14,"АКБ ""Індустріалбанк""",13857564,юридична особа
СВОБОДА,"Київська обл., Київ, вул. Леоніда Первомайського, буд. 9А",60,2018-09-21,233,Інші податки,Податкові платежі,242200,Центральний офіс,00013215,Україна,Судовий збір,260031804900,current,1762.00,УДКСУ у Печерському районі м. Києва,38004897,юридична особа
СВОБОДА,"Львівська обл., Львів",61,2018-09-21,79,Військовий збір,Податкові платежі,242047,Львівська обласна організація,25561538,Львівська область,Військовий збір,26002010004365,current,255.00,УДКСУ у Галицькому районі м. Львова,38007573,юридична особа
СВОБОДА,"Київ, вул. Олександра Кошиця, буд. 11",61,2018-09-21,230,Військовий збір,Податкові платежі,241999,Центральний офіс,00013215,Україна,Військовий збір за вересень 2018 р.;;;,260031804900,current,555.00,УДКСУ в Дарницькому районі,38021179,юридична особа
СВОБОДА,"Львівська обл., Львів",62,2018-09-21,78,Сплата ЄСВ,Податкові платежі,241804,Львівська обласна організація,25561538,Львівська область,Єдиний внесок,26002010004365,current,3300.00,Галицька ОДПІ ГУ ДФС у Львівській області,39508163,юридична особа
СВОБОДА,"Київ, вул. Олександра Кошиця, буд. 3",62,2018-09-21,229,Сплата ЄСВ,Податкові платежі,241756,Центральний офіс,00013215,Україна,Єдиний соціальний внесок за вересень 2018,260031804900,current,6373.30,ДПІ у Дарницькому р-ні м. Києва,39479227,юридична особа
СВОБОДА,"Львівська обл., Львів",63,2018-09-21,77,Податок на доходи,Податкові платежі,241567,Львівська обласна організація,25561538,Львівська область,ПДФО,26002010004365,current,2700.00,УДКСУ у Галицькому районі м. Львова,38007573,юридична особа
СВОБОДА,"Київ, вул. Олександра Кошиця, буд. 11",63,2018-09-21,228,Податок на доходи,Податкові платежі,241519,Центральний офіс,00013215,Україна,ПДФО за вересень 2018 р,260031804900,current,6660.00,УДКСУ в Дарницькому районі,38021179,юридична особа
СВОБОДА,"Львівська обл., Пустомитівський р-н, Сокільники",84,2018-09-21,МА2036565,"Заробітна плата, премії","Заробітна плата, лікарняні, вагітності, відрядження, компенсації",241148,Львівська обласна організація,25561538,Львівська область,аванс за вересень 2018,26002010004365,current,5635.00,Кіт Ірина Юріївна,,фізична особа
СВОБОДА,"Львівська обл., Перемишлянський р-н, Великі Глібовичі",84,2018-09-21,МА2036565,"Заробітна плата, премії","Заробітна плата, лікарняні, вагітності, відрядження, компенсації",241147,Львівська обласна організація,25561538,Львівська область,аванс за вересень 2018,26002010004365,current,1610.00,Іванський Іван Анатолійович,,фізична особа
СВОБОДА,"Вінницька обл., Іллінецький р-н, Жорнище",84,2018-09-21,МА2036565,"Заробітна плата, премії","Заробітна плата, лікарняні, вагітності, відрядження, компенсації",241146,Львівська обласна організація,25561538,Львівська область,аванс за вересень 2018,26002010004365,current,1610.00,Дембовська Юлія Дмитрівна,,фізична особа
СВОБОДА,"Львівська обл., Львів",84,2018-09-21,МА2036565,"Заробітна плата, премії","Заробітна плата, лікарняні, вагітності, відрядження, компенсації",241145,Львівська обласна організація,25561538,Львівська область,аванс за вересень 2018,26002010004365,current,1610.00,Скиба Наталя Михайлівна,,фізична особа
СВОБОДА,"Львівська обл., Львів",84,2018-09-21,МА2036565,"Заробітна плата, премії","Заробітна плата, лікарняні, вагітності, відрядження, компенсації",241144,Львівська обласна організація,25561538,Львівська область,аванс за вересень 2018,26002010004365,current,1610.00,Кошулинський Руслан Володимирович,,фізична особа
СВОБОДА,"Львівська обл., Львів",84,2018-09-21,МА2036496,"Заробітна плата, премії","Заробітна плата, лікарняні, вагітності, відрядження, компенсації",240980,Центральний офіс,00013215,Україна,Аванс за вересень 2018 року,26005010005349,current,1610.00,Вайда Ярина Михайлівна,,фізична особа
СВОБОДА,Київ,84,2018-09-21,МА2036496,"Заробітна плата, премії","Заробітна плата, лікарняні, вагітності, відрядження, компенсації",240979,Центральний офіс,00013215,Україна,Аванс за вересень 2018 року,26005010005349,current,1610.00,Мохник Андрій Володимирович,,фізична особа
СВОБОДА,"Львівська обл., Львів",84,2018-09-21,МА2036496,"Заробітна плата, премії","Заробітна плата, лікарняні, вагітності, відрядження, компенсації",240978,Центральний офіс,00013215,Україна,Аванс за вересень 2018 року,26005010005349,current,1610.00,Мельничук Любомир Анатолійович,,фізична особа
СВОБОДА,"Львівська обл., Львів",84,2018-09-21,МА2036496,"Заробітна плата, премії","Заробітна плата, лікарняні, вагітності, відрядження, компенсації",240977,Центральний офіс,00013215,Україна,Аванс за вересень 2018 року,26005010005349,current,10465.00,Пелешак Ярослав Антонович,,фізична особа
СВОБОДА,Київ,84,2018-09-21,МА2036496,"Заробітна плата, премії","Заробітна плата, лікарняні, вагітності, відрядження, компенсації",240976,Центральний офіс,00013215,Україна,Аванс за вересень 2018 року,26005010005349,current,14490.00,Тягнибок Олег Ярославович,,фізична особа
СВОБОДА,"Львівська обл., Львів",76,2018-09-21,80,Послуги зв’язку,Послуги зв’язку,240400,Львівська обласна організація,25561538,Львівська область,Оплата за послуги на жовтень 2018р. згідно рахунку,26002010004365,current,105.00,"ТОВ ""Бізнес і технології""",31442320,юридична особа
СВОБОДА,"Київ, вул. Рогнідинська, буд. 4А",76,2018-09-21,231,Послуги зв’язку,Послуги зв’язку,240380,Центральний офіс,00013215,Україна,Оплата за послуги доступу до мережі Інтернет,260031804900,current,2400.00,"ТОВ ""Інтертелеком""",22927111,юридична особа
СВОБОДА,"Рівненська обл., Рівне, вул. Князя Володимира, буд. 71",79,2018-09-21,37,"Оренда будинків і приміщень та експлуатаційні витрати (прибирання, страхування орендованих будинків, охорона, сигналізація, ремонт, вивіз сміття, тощо)",Оренда нерухомості,240047,Рівненська обласна організація,26353285,Рівненська область,Згідно рахунку №8497172786,26006300976830,current,94.88,Рівнеобленерго,05424874,юридична особа
СВОБОДА,"Рівненська обл., Рівне, вул. Соборна, буд. 12А",79,2018-09-21,38,"Оренда будинків і приміщень та експлуатаційні витрати (прибирання, страхування орендованих будинків, охорона, сигналізація, ремонт, вивіз сміття, тощо)",Оренда нерухомості,240046,Рівненська обласна організація,26353285,Рівненська область,Орендна плата за вересень 2018 за орендовані приміщення згідно договору оренди №2055,26006300976830,current,947.11,Управління комунальною власністю виконавчого комітету Рівненської міської ради,26259563,юридична особа
СВОБОДА,"Львівська обл., Львів",79,2018-09-21,81,"Оренда будинків і приміщень та експлуатаційні витрати (прибирання, страхування орендованих будинків, охорона, сигналізація, ремонт, вивіз сміття, тощо)",Оренда нерухомості,240003,Львівська обласна організація,25561538,Львівська область,Оплата за постачання природного газу,26002010004365,current,213.15,"ТОВ ""Львівгаз збут""",39594527,юридична особа
СВОБОДА,"Львівська обл., Яворівський р-н, Яворів, площа Ринок, буд. 14",58,2018-09-21,232,"Виготовлення друкованих матеріалів (плакатів, листівок, буклетів та інших агітаційних матеріалів)",Друкована агітація,239589,Центральний офіс,00013215,Україна,Оплата за друк газети,260031804900,current,22963.00,"ТОВ ""ВД ""Молода Галичина""",32148930,юридична особа
СВОБОДА,"Київ, вул. Михайла Грушевського, буд. 1Д",70,2018-09-20,87,Банківські послуги,Інші витрати,243648,Камʼянець-Подільська районна організація,25803823,Хмельницька область,Комісія РКО від зарплати за а першу половину вересня 2018р.,26005052312438,current,3.75,"ПАТ КБ ""Приватбанк""",14360570,юридична особа
СВОБОДА,"Київ, вул. Михайла Грушевського, буд. 1Д",70,2018-09-20,9KO1DHXQ3Y,Банківські послуги,Інші витрати,243647,Камʼянець-Подільська районна організація,25803823,Хмельницька область,Комісія за виконання платежів в націон.валюті,26005052312438,current,3.00,"ПАТ КБ ""Приватбанк""",14360570,юридична особа
СВОБОДА,"Київ, вул. Михайла Грушевського, буд. 1Д",70,2018-09-20,9KO1DHWQVY,Банківські послуги,Інші витрати,243646,Камʼянець-Подільська районна організація,25803823,Хмельницька область,Комісія за виконання платежів в націон.валюті,26005052312438,current,3.00,"ПАТ КБ ""Приватбанк""",14360570,юридична особа
СВОБОДА,"Київ, вул. Михайла Грушевського, буд. 1Д",70,2018-09-20,9KO1DHVO0Y,Банківські послуги,Інші витрати,243645,Камʼянець-Подільська районна організація,25803823,Хмельницька область,Комісія за виконання платежів в націон.валюті,26005052312438,current,3.00,"ПАТ КБ ""Приватбанк""",14360570,юридична особа
СВОБОДА,"Хмельницька обл., Хмельницький",61,2018-09-20,84,Військовий збір,Податкові платежі,242063,Камʼянець-Подільська районна організація,25803823,Хмельницька область,Військовий збір від зарплати за вересень 2018 р.,26005052312438,current,56.00,УК у Камʼянець-Подільському районі Чернівецької області,37971377,юридична особа
СВОБОДА,"Хмельницька обл., Камʼянець-Подільський, вул. Огієнка, буд. 74",62,2018-09-20,106,Сплата ЄСВ,Податкові платежі,241824,Камʼянець-Подільська районна організація,25803823,Хмельницька область,ЄСВ від зарплати за першу половину грудня 2018р.,26005052312438,current,600.00,Камʼянець-Подільська ОДПІ ГУ ДФС у Хмельницькій обалсті,39563952,юридична особа
СВОБОДА,"Хмельницька обл., Камʼянець-Подільський, вул. Огієнка, буд. 74",62,2018-09-20,83,Сплата ЄСВ,Податкові платежі,241821,Камʼянець-Подільська районна організація,25803823,Хмельницька область,ЄСВ ВIД ЗАРПЛАТИ ЗА ВЕРЕСЕНЬ 2018Р.,26005052312438,current,600.00,Камʼянець-Подільська ОДПІ ГУ ДФС у Хмельницькій обалсті,39563952,юридична особа
СВОБОДА,"Хмельницька обл., Хмельницький",63,2018-09-20,85,Податок на доходи,Податкові платежі,241583,Камʼянець-Подільська районна організація,25803823,Хмельницька область,ПДФО вiд зарплати за вересень 2018р.,26005052312438,current,671.00,УК у Камʼянець-Подільському районі Чернівецької області,37971377,юридична особа
СВОБОДА,"Хмельницька обл., Камʼянець-Подільський",84,2018-09-20,86,"Заробітна плата, премії","Заробітна плата, лікарняні, вагітності, відрядження, компенсації",241176,Камʼянець-Подільська районна організація,25803823,Хмельницька область,Зарплата за першу половину вересеня 2018р.,26005052312438,current,1500.00,Посітко Михайло Володимирович,,фізична особа
СВОБОДА,"Київ, вул. Михайла Грушевського, буд. 1Д",70,2018-09-19,AN8930awxp,Банківські послуги,Інші витрати,243426,Обухівська міська організація,36890931,Київська область,"Комiсiя за обслуговування за серпень 2018 р., згiдно тарифiв банку, без ПДВ",26001053172441,current,100.00,"ПАТ КБ ""Приватбанк""",14360570,юридична особа
СВОБОДА,"Київ, вул. Михайла Грушевського, буд. 1Д",70,2018-09-19,AN893053dp,Банківські послуги,Інші витрати,243280,Житомирська районна організація,36710660,Житомирська область,"комісія за обслуговув.недіючого рах.№ 200045055816119 за серпень 2018, без ПДВ",26004055810119,current,100.00,"ПАТ КБ ""Приватбанк""",14360570,юридична особа
СВОБОДА,"Київ, вул. Михайла Грушевського, буд. 1Д",70,2018-09-19,AN89302mdp,Банківські послуги,Інші витрати,243275,Словʼянська міська організація,37011306,Донецька область,"комісія за обслуговув.недіючого рах.№ 26002053608738 за серпень 2018, без ПДВ",26002053608738,current,60.00,"ПАТ КБ ""Приватбанк""",14360570,юридична особа
СВОБОДА,"Київ, вул. Михайла Грушевського, буд. 1Д",70,2018-09-19,AN89301r9p,Банківські послуги,Інші витрати,243187,Бершадська міська організація,40412857,Вінницька область,"Комісія за обслуговування недіючого рахунку №26001055331599 за серпень 2018 р., згідно тарифів банку, без ПДВ",26001055331599,current,50.00,"ПАТ КБ ""Приватбанк""",14360570,юридична особа
СВОБОДА,"Львівська обл., Львів",82,2018-09-18,76,"Гонорари, в тому числі за надані консультаційні послуги","Гонорари, в тому числі за надані консультаційні послуги",244639,Львівська обласна організація,25561538,Львівська область,Оплата за нотаріальні послуги згідно рахунку,26002010004365,current,800.00,Галицька ОДПІ ГУ ДФС у Львівській області,39508163,юридична особа
СВОБОДА,"Київ, бульв. Тараса Шевченка, буд. 2",70,2018-09-18,1967512142,Банківські послуги,Інші витрати,243406,Київська обласна організація,36282647,Київська область,Погашення комісії за РКО дог.№ 26002011700361 від 24.09.2015р.,26002011700361,current,5.00,"Київська обласна організація Всеукраїнське обʼєднання ""Свобода""",36282647,юридична особа
СВОБОДА,"Львівська обл., Львів",60,2018-09-18,4,Інші податки,Податкові платежі,242205,Львівська міська організація,23884355,Львівська область,земельний податок за липень серпень 2018,26003010005352,current,762.50,УДКСУ у Личаківському районі м. Львова,38007620,юридична особа
СВОБОДА,,84,2018-09-18,271,"Заробітна плата, премії","Заробітна плата, лікарняні, вагітності, відрядження, компенсації",241049,Київська обласна організація,36282647,Київська область,Перерахування на картку з\п аванс за вересень2018р.Номер рахунка 26250005283962,26002011700361,current,2997.02,Сабій Ігор Михайлович,,фізична особа
СВОБОДА,,84,2018-09-18,270,"Заробітна плата, премії","Заробітна плата, лікарняні, вагітності, відрядження, компенсації",241048,Київська обласна організація,36282647,Київська область,Перерахування на картку з\п аванс за вересень 2018р. Номер рахунка 26259005283963,26002011700361,current,1123.88,Однолько Тетяна Анатоліївна,,фізична особа
СВОБОДА,"Київ, вул. Михайла Грушевського, буд. 1Д",70,2018-09-17,9FO1CUXYYY,Банківські послуги,Інші витрати,243270,Криничанська районна організація,38673191,Дніпропетровська область,Комісія за виконання платежів,26002050262941,current,3.00,"ПАТ КБ ""Приватбанк""",14360570,юридична особа
СВОБОДА,"Київська обл., Біла Церква, вул. Ярослава Мудрого, буд. 36",61,2018-09-17,267,Військовий збір,Податкові платежі,242022,Київська обласна організація,36282647,Київська область,"Військовий збір 1,5% з заробітної плати аванс за вересень2018р.",26002011700361,current,76.79,Білоцерківське УДКСУ Київської області,38009832,юридична особа
СВОБОДА,"Київська обл., Біла Церква, площа Перемоги, буд. 12",62,2018-09-17,269,Сплата ЄСВ,Податкові платежі,241779,Київська обласна організація,36282647,Київська область,Внески ЄСВ 22% з заробітної плати аванс за вересень 2018р.,26002011700361,current,1126.21,Білоцерківська ОДНІ М. Біла Церква,39468482,юридична особа
СВОБОДА,"Київська обл., Біла Церква, вул. Ярослава Мудрого, буд. 36",63,2018-09-17,268,Податок на доходи,Податкові платежі,241542,Київська обласна організація,36282647,Київська область,Оплата ПДФО з заробітної плати аванс за вересень 2018р.,26002011700361,current,921.44,Білоцерківське УДКСУ Київської області,38009832,юридична особа
СВОБОДА,"Дніпропетровська обл., Криничанський р-н, Кринички, вул. Центральна, буд. 1",79,2018-09-17,23,"Оренда будинків і приміщень та експлуатаційні витрати (прибирання, страхування орендованих будинків, охорона, сигналізація, ремонт, вивіз сміття, тощо)",Оренда нерухомості,239949,Криничанська районна організація,38673191,Дніпропетровська область,Орендна плата за приміщення за серпень-вересень 2018,26002050262941,current,1200.00,"ПРИВАТНА АГРОФІРМА ""КОЛОС""",21912975,юридична особа
СВОБОДА,"Івано-Франківська обл., Івано-Франківськ",79,2018-09-14,2,"Оренда будинків і приміщень та експлуатаційні витрати (прибирання, страхування орендованих будинків, охорона, сигналізація, ремонт, вивіз сміття, тощо)",Оренда нерухомості,239957,Івано-Франківська обласна організація,26055441,Івано-Франківська область,За комунальні послуги,260030450601,current,3710.00,Івано-Франківська філармонія ім. Іри Маланюк.,02225430,юридична особа
СВОБОДА,"Івано-Франківська обл., Івано-Франківськ",79,2018-09-14,1,"Оренда будинків і приміщень та експлуатаційні витрати (прибирання, страхування орендованих будинків, охорона, сигналізація, ремонт, вивіз сміття, тощо)",Оренда нерухомості,239956,Івано-Франківська обласна організація,26055441,Івано-Франківська область,За оренду залу,260030450601,current,1039.00,Івано-Франківська філармонія ім. Іри Маланюк.,02225430,юридична особа
СВОБОДА,"Київ, бульв. Тараса Шевченка, буд. 18",76,2018-09-13,226,Послуги зв’язку,Послуги зв’язку,240379,Центральний офіс,00013215,Україна,Оплата за телекомунікаційні послуги,260031804900,current,299.11,"ПАТ ""Укртелеком""",21560766,юридична особа
СВОБОДА,"Київ, вул. Смоленська, буд. 31-33",76,2018-09-13,225,Послуги зв’язку,Послуги зв’язку,240378,Центральний офіс,00013215,Україна,Оплата за телекомунікаційні послуги,260031804900,current,86.40,"ПрАТ ""Датагруп""",31720260,юридична особа
СВОБОДА,"Київ, бульв. Тараса Шевченка, буд. 18",76,2018-09-13,224,Послуги зв’язку,Послуги зв’язку,240377,Центральний офіс,00013215,Україна,Оплата за телекомунікаційні послуги,260031804900,current,171.22,"ПАТ ""Укртелеком""",21560766,юридична особа
СВОБОДА,"Львівська обл., Львів, вул. Жовківська, буд. 22",72,2018-09-13,227,"Придбання, ремонт офісної техніки та програмного забезпечення (Бухгалтерські програми, Ліга.закон, домени)",Придбання офісної техніки та програмного забезпечення,240272,Центральний офіс,00013215,Україна,Оплата компенсаційних платежів,260031804900,current,26.82,"ПП ""Система ЛЯ""",34462313,юридична особа
СВОБОДА,"Львівська обл., Червоноград",79,2018-09-13,9,"Оренда будинків і приміщень та експлуатаційні витрати (прибирання, страхування орендованих будинків, охорона, сигналізація, ремонт, вивіз сміття, тощо)",Оренда нерухомості,240018,Червоноградська міська організація,33963980,Львівська область,Оплата за оренду приміщення,26007073101005,current,600.86,"КП ""Червонограджитлокомунсервіс""",31616100,юридична особа
СВОБОДА,"Львівська обл., Львів",79,2018-09-13,75,"Оренда будинків і приміщень та експлуатаційні витрати (прибирання, страхування орендованих будинків, охорона, сигналізація, ремонт, вивіз сміття, тощо)",Оренда нерухомості,240002,Львівська обласна організація,25561538,Львівська область,Відшкодування витрат за прибирання території,26002010004365,current,41.28,"КП ЛОР ""Нерухомість та майно""",33358550,юридична особа
СВОБОДА,"Львівська обл., Яворівський р-н, Яворів, площа Ринок, буд. 14",58,2018-09-13,223,"Виготовлення друкованих матеріалів (плакатів, листівок, буклетів та інших агітаційних матеріалів)",Друкована агітація,239588,Центральний офіс,00013215,Україна,Оплата за друк газети,260031804900,current,22963.00,"ТОВ ""ВД ""Молода Галичина""",32148930,юридична особа
СВОБОДА,"Львівська обл., Яворівський р-н, Яворів, площа Ринок, буд. 14",58,2018-09-13,222,"Виготовлення друкованих матеріалів (плакатів, листівок, буклетів та інших агітаційних матеріалів)",Друкована агітація,239587,Центральний офіс,00013215,Україна,Оплата за друк газети,260031804900,current,22963.00,"ТОВ ""ВД ""Молода Галичина""",32148930,юридична особа
СВОБОДА,"Київ, вул. Лугова, буд. 1А",58,2018-09-13,220,"Виготовлення друкованих матеріалів (плакатів, листівок, буклетів та інших агітаційних матеріалів)",Друкована агітація,239586,Центральний офіс,00013215,Україна,Оплата за друк газети,260031804900,current,25000.80,"ТОВ ""Полі-прінт""",32108259,юридична особа
СВОБОДА,"Київ, вул. Лугова, буд. 1А",58,2018-09-13,219,"Виготовлення друкованих матеріалів (плакатів, листівок, буклетів та інших агітаційних матеріалів)",Друкована агітація,239585,Центральний офіс,00013215,Україна,Оплата за друк газети,260031804900,current,25000.80,"ТОВ ""Полі-прінт""",32108259,юридична особа
СВОБОДА,"Львівська обл., Львів, вул. Володимира Винниченка, буд. 6",51,2018-09-13,221,Оплата ефірного часу на ТБ,Телереклама,239213,Центральний офіс,00013215,Україна,Оплата за розміщення рекламного ролика,260031804900,current,3600.00,"ПП ""НТА-Незалежне телевізійне агенство""",30053161,юридична особа
СВОБОДА,"Івано-Франківська обл., Івано-Франківськ",70,2018-09-12,894581510,Банківські послуги,Інші витрати,243340,Надвірнянська районна організація,26055910,Івано-Франківська область,Списання щомісячної плати за обслуговування ТП Моя громада,26000300009742,current,27.00,"Надвірнянська районна організація Всеукраїнське обʼєднання ""Свобода""",26055910,юридична особа
СВОБОДА,"Івано-Франківська обл., Івано-Франківськ",70,2018-09-12,136403,Банківські послуги,Інші витрати,243293,Івано-Франківська міська організація,36498192,Івано-Франківська область,Оплата за ведення/обслуговування неактивного рахунку за період 01.09.18-30.09.18,26006000006997,current,300.00,"ПАТ ""ВіЕс Банк""",19358632,юридична особа
СВОБОДА,"Івано-Франківська обл., Івано-Франківськ",70,2018-09-12,136398,Банківські послуги,Інші витрати,243292,Івано-Франківська міська організація,36498192,Івано-Франківська область,Оплата за ведення/обслуговування неактивного рахунку за період 01.08.18-31.08.18,26006000006997,current,300.00,"ПАТ ""ВіЕс Банк""",19358632,юридична особа
СВОБОДА,"Івано-Франківська обл., Івано-Франківськ",70,2018-09-12,136381,Банківські послуги,Інші витрати,243291,Івано-Франківська міська організація,36498192,Івано-Франківська область,Оплата за ведення/обслуговування неактивного рахунку за період 01.07.18-31.07.18,26006000006997,current,300.00,"ПАТ ""ВіЕс Банк""",19358632,юридична особа
СВОБОДА,"Київ, вул. Михайла Грушевського, буд. 1Д",70,2018-09-11,9BO1CF3O6Х,Банківські послуги,Інші витрати,243507,Самбірська районна організація,33865148,Львівська область,Комісія за виконання платежу 8 від 11.09.2018,26008053801792,current,15.86,"ПАТ КБ ""Приватбанк""",14360570,юридична особа
СВОБОДА,"Київ, вул. Михайла Грушевського, буд. 1Д",70,2018-09-11,9BO1CF3O6Y,Банківські послуги,Інші витрати,243506,Самбірська районна організація,33865148,Львівська область,Комісія за виконання платежів в нац.валюті,26008053801792,current,3.00,"ПАТ КБ ""Приватбанк""",14360570,юридична особа
СВОБОДА,"Івано-Франківська обл., Івано-Франківськ",70,2018-09-11,828463410,Банківські послуги,Інші витрати,243339,Надвірнянська районна організація,26055910,Івано-Франківська область,Погашення нарахованої комісії за внесення готівки,26000300009742,current,5.00,"Надвірнянська районна організація Всеукраїнське обʼєднання ""Свобода""",26055910,юридична особа
СВОБОДА,"Львівська обл., Самбір",74,2018-09-11,8,"Придбання канцтоварів, паперу, інших предметів і матеріалів, а також госп товари",Придбання канцтоварів та госп. товарів,240286,Самбірська районна організація,33865148,Львівська область,Оплата за канцелярські товари згідно накладної,26008053801792,current,7930.00,Півторак В П,2728609335,фізична особа
СВОБОДА,"Івано-Франківська обл., Надворнянський р-н, Надвірна",79,2018-09-11,828780310,"Оренда будинків і приміщень та експлуатаційні витрати (прибирання, страхування орендованих будинків, охорона, сигналізація, ремонт, вивіз сміття, тощо)",Оренда нерухомості,239970,Надвірнянська районна організація,26055910,Івано-Франківська область,Оплата за оренду,26000300009742,current,300.00,"ТОВ ""Радіосервіс""",13659309,юридична особа
СВОБОДА,"Київ, вул. Генерала Алмазова, буд. 18",70,2018-09-07,О1533_0015,Банківські послуги,Інші витрати,243480,Львівська обласна організація,25561538,Львівська область,Списання комісії банку за видачу готівкових коштів з поточного рахунку по чеку №МА2036570,26002010004365,current,103.78,"АКБ ""Індустріалбанк""",13857564,юридична особа
СВОБОДА,"Івано-Франківська обл., Івано-Франківськ",70,2018-09-07,8982361210,Банківські послуги,Інші витрати,243338,Надвірнянська районна організація,26055910,Івано-Франківська область,Списання щомісячної плати за обслуговування ТП Моя громада,26000300009742,current,22.00,"Надвірнянська районна організація Всеукраїнське обʼєднання ""Свобода""",26055910,юридична особа
СВОБОДА,"Київ, вул. Генерала Алмазова, буд. 18",70,2018-09-07,O1533_0013,Банківські послуги,Інші витрати,243145,Центральний офіс,00013215,Україна,Списання комісії банку,260031804900,current,108.66,"АКБ ""Індустріалбанк""",13857564,юридична особа
СВОБОДА,"Львівська обл., Львів",61,2018-09-07,74,Військовий збір,Податкові платежі,242046,Львівська обласна організація,25561538,Львівська область,Військовий збір,26002010004365,current,193.40,УДКСУ у Галицькому районі м. Львова,38007573,юридична особа
СВОБОДА,"Київ, вул. Олександра Кошиця, буд. 11",61,2018-09-07,218,Військовий збір,Податкові платежі,241998,Центральний офіс,00013215,Україна,Військовий збір за серпень2018 р.;;;,260031804900,current,506.21,УДКСУ в Дарницькому районі,38021179,юридична особа
СВОБОДА,"Львівська обл., Львів",62,2018-09-07,73,Сплата ЄСВ,Податкові платежі,241803,Львівська обласна організація,25561538,Львівська область,Єдиний внесок,26002010004365,current,2836.24,Галицька ОДПІ ГУ ДФС у Львівській області,39508163,юридична особа
СВОБОДА,"Київ, вул. Олександра Кошиця, буд. 3",62,2018-09-07,217,Сплата ЄСВ,Податкові платежі,241755,Центральний офіс,00013215,Україна,Єдиний соціальний внесок за серпень 2018,260031804900,current,5869.71,ДПІ у Дарницькому р-ні м. Києва,39479227,юридична особа
СВОБОДА,"Львівська обл., Львів",63,2018-09-07,72,Податок на доходи,Податкові платежі,241566,Львівська обласна організація,25561538,Львівська область,ПДФО,26002010004365,current,2320.56,УДКСУ у Галицькому районі м. Львова,38007573,юридична особа
СВОБОДА,"Київ, вул. Олександра Кошиця, буд. 11",63,2018-09-07,216,Податок на доходи,Податкові платежі,241518,Центральний офіс,00013215,Україна,ПДФО за серпень 2018 р,260031804900,current,6074.44,УДКСУ в Дарницькому районі,38021179,юридична особа
СВОБОДА,"Львівська обл., Пустомитівський р-н, Сокільники",84,2018-09-07,МА2036564,"Заробітна плата, премії","Заробітна плата, лікарняні, вагітності, відрядження, компенсації",241143,Львівська обласна організація,25561538,Львівська область,зарплата за серпень 2018,26002010004365,current,4830.00,Кіт Ірина Юріївна,,фізична особа
СВОБОДА,"Львівська обл., Перемишлянський р-н, Великі Глібовичі",84,2018-09-07,МА2036564,"Заробітна плата, премії","Заробітна плата, лікарняні, вагітності, відрядження, компенсації",241142,Львівська обласна організація,25561538,Львівська область,зарплата за серпень 2018,26002010004365,current,1387.01,Іванський Іван Анатолійович,,фізична особа
СВОБОДА,"Вінницька обл., Іллінецький р-н, Жорнище",84,2018-09-07,МА2036564,"Заробітна плата, премії","Заробітна плата, лікарняні, вагітності, відрядження, компенсації",241141,Львівська обласна організація,25561538,Львівська область,зарплата за серпень 2018,26002010004365,current,1387.01,Дембовська Юлія Дмитрівна,,фізична особа
СВОБОДА,"Львівська обл., Львів",84,2018-09-07,МА2036564,"Заробітна плата, премії","Заробітна плата, лікарняні, вагітності, відрядження, компенсації",241140,Львівська обласна організація,25561538,Львівська область,зарплата за серпень 2018,26002010004365,current,1387.01,Скиба Наталя Михайлівна,,фізична особа
СВОБОДА,"Львівська обл., Львів",84,2018-09-07,МА2036564,"Заробітна плата, премії","Заробітна плата, лікарняні, вагітності, відрядження, компенсації",241139,Львівська обласна організація,25561538,Львівська область,зарплата за серпень 2018,26002010004365,current,1387.01,Кошулинський Руслан Володимирович,,фізична особа
СВОБОДА,"Львівська обл., Львів",84,2018-09-07,МА 2036495,"Заробітна плата, премії","Заробітна плата, лікарняні, вагітності, відрядження, компенсації",240975,Центральний офіс,00013215,Україна,Зарплата за серпень 2018 р.,26005010005349,current,1387.01,Вайда Ярина Михайлівна,,фізична особа
СВОБОДА,Київ,84,2018-09-07,МА 2036495,"Заробітна плата, премії","Заробітна плата, лікарняні, вагітності, відрядження, компенсації",240974,Центральний офіс,00013215,Україна,Зарплата за серпень 2018 р.,26005010005349,current,1498.53,Мохник Андрій Володимирович,,фізична особа
СВОБОДА,"Львівська обл., Львів",84,2018-09-07,МА 2036495,"Заробітна плата, премії","Заробітна плата, лікарняні, вагітності, відрядження, компенсації",240973,Центральний офіс,00013215,Україна,Зарплата за серпень 2018 р.,26005010005349,current,1387.01,Мельничук Любомир Анатолійович,,фізична особа
СВОБОДА,"Львівська обл., Львів",84,2018-09-07,МА 2036495,"Заробітна плата, премії","Заробітна плата, лікарняні, вагітності, відрядження, компенсації",240972,Центральний офіс,00013215,Україна,Зарплата за серпень 2018 р.,26005010005349,current,9208.66,Пелешак Ярослав Антонович,,фізична особа
СВОБОДА,Київ,84,2018-09-07,МА 2036495,"Заробітна плата, премії","Заробітна плата, лікарняні, вагітності, відрядження, компенсації",240971,Центральний офіс,00013215,Україна,Зарплата за серпень 2018 р.,26005010005349,current,13685.00,Тягнибок Олег Ярославович,,фізична особа
СВОБОДА,"Івано-Франківська обл., Івано-Франківськ",58,2018-09-05,1,"Виготовлення друкованих матеріалів (плакатів, листівок, буклетів та інших агітаційних матеріалів)",Друкована агітація,239628,Івано-Франківська обласна організація,26055441,Івано-Франківська область,Оплата за друк,260030450601,current,2046.00,"ТОВ ""Місто НВ""",30106695,юридична особа
СВОБОДА,"Івано-Франківська обл., Івано-Франківськ",51,2018-09-05,2,Оплата ефірного часу на ТБ,Телереклама,239221,Івано-Франківська обласна організація,26055441,Івано-Франківська область,За рекламні послуги,260030450601,current,1536.00,"Івано-Франківське обласне телебачення ""Галичина""",13641427,юридична особа
СВОБОДА,"Львівська обл., Яворівський р-н, Яворів, площа Ринок, буд. 14",58,2018-09-04,214,"Виготовлення друкованих матеріалів (плакатів, листівок, буклетів та інших агітаційних матеріалів)",Друкована агітація,239584,Центральний офіс,00013215,Україна,Оплата за друк газети,260031804900,current,22257.65,"ТОВ ""ВД ""Молода Галичина""",32148930,юридична особа
СВОБОДА,"Львівська обл., Яворівський р-н, Яворів, площа Ринок, буд. 14",58,2018-09-04,200,"Виготовлення друкованих матеріалів (плакатів, листівок, буклетів та інших агітаційних матеріалів)",Друкована агітація,239583,Центральний офіс,00013215,Україна,Оплата за друк газети,260031804900,current,1000.00,"ТОВ ""ВД ""Молода Галичина""",32148930,юридична особа
СВОБОДА,"Сумська обл., Конотоп, просп. Миру, буд. 78",49,2018-09-04,201,Публікування матеріалів у друкованих ЗМІ,Реклама в друкованих ЗМІ,239280,Центральний офіс,00013215,Україна,Оплата за вітання,260031804900,current,1500.00,"ТОВ ""РТВ ""ВЕЖА""",31835834,юридична особа
СВОБОДА,"Львівська обл., Львів, вул. Городоцька, буд. 2, 3",50,2018-09-04,215,Оплата ефірного часу на радіо,Реклама на радіо,239251,Центральний офіс,00013215,Україна,Оплата за розміщення аудіоролику,260031804900,current,2040.00,"ТОВ ""Престайм. ком. юа""",34259663,юридична особа
СВОБОДА,"Івано-Франківська обл., Івано-Франківськ, вул. Незалежності, буд. 44",50,2018-09-04,210,Оплата ефірного часу на радіо,Реклама на радіо,239250,Центральний офіс,00013215,Україна,Оплата за розміщення аудіоролику,260031804900,current,2745.60,"ТОВ Радіокомпанія ""Західний Полюс""",31523755,юридична особа
СВОБОДА,"Тернопільська обл., Тернопіль, вул. Гетьмана Сагайдачного, буд. 2, 7",51,2018-09-04,213,Оплата ефірного часу на ТБ,Телереклама,239212,Центральний офіс,00013215,Україна,Оплата за розміщення відеоролику,260031804900,current,4800.00,"ТОВ ""TV-4""",14029496,юридична особа
СВОБОДА,"Тернопільська обл., Тернопіль, вул. Олени Кульчицької, буд. 2А",51,2018-09-04,212,Оплата ефірного часу на ТБ,Телереклама,239211,Центральний офіс,00013215,Україна,Оплата за розміщення відеоролику,260031804900,current,960.00,"ПП ""Телерадіоорганізація ""Українська хвиля""",24631372,юридична особа
СВОБОДА,"Тернопільська обл., Тернопіль, вул. Руська, буд. 44",51,2018-09-04,211,Оплата ефірного часу на ТБ,Телереклама,239210,Центральний офіс,00013215,Україна,Оплата за рекламні послуги,260031804900,current,1800.00,"ПП ""ТРК ""Смайл""Телеканал ""ІНТБ""",34473456,юридична особа
СВОБОДА,"Рівненська обл., Рівне, вул. Данила Галицького, буд. 16",51,2018-09-04,209,Оплата ефірного часу на ТБ,Телереклама,239209,Центральний офіс,00013215,Україна,Оплата за трансляцію інформаційного ролику,260031804900,current,2000.00,"ТОВ ""Телерадіокомпанія ""Ритм""",32451357,юридична особа
СВОБОДА,"Івано-Франківська обл., Івано-Франківськ, вул. Галицька, буд. 22",51,2018-09-04,207,Оплата ефірного часу на ТБ,Телереклама,239208,Центральний офіс,00013215,Україна,Оплата за рекламні послуги,260031804900,current,6778.33,"КП ""Івано-Франківське міське КП ""Телерадіокомпанія ""Вежа""",30107672,юридична особа
СВОБОДА,"Івано-Франківська обл., Івано-Франківськ, вул. Михайла Грушевського, буд. 21, 701",51,2018-09-04,208,Оплата ефірного часу на ТБ,Телереклама,239207,Центральний офіс,00013215,Україна,Оплата за рекламні послуги,260031804900,current,7800.00,"Івано-Франківське обласне телебачення ""Галичина""",13641427,юридична особа
СВОБОДА,"Чернігівська обл., Прилуки, вул. Юрія Коптєва, буд. 10, 34",51,2018-09-04,206,Оплата ефірного часу на ТБ,Телереклама,239206,Центральний офіс,00013215,Україна,Оплата за розміщення рекламно- інформаційних пслуг,260031804900,current,1000.00,"ТОВ ТРК ""Клас""",31525773,юридична особа
СВОБОДА,"Хмельницька обл., Хмельницький, Камʼянецька вул., 66, 301",51,2018-09-04,205,Оплата ефірного часу на ТБ,Телереклама,239205,Центральний офіс,00013215,Україна,Оплата за інформаційні послуги,260031804900,current,5000.00,"ТОВ ""Продюсерський центр ""Ексклюзив""",32680030,юридична особа
СВОБОДА,"Рівненська обл., Рівне, вул. Міцкевича, буд. 11",51,2018-09-04,203,Оплата ефірного часу на ТБ,Телереклама,239204,Центральний офіс,00013215,Україна,Оплата за розміщення відеоматеріалів,260031804900,current,2000.00,"ТРК ""Сфера-ТВ2""",33910609,юридична особа
СВОБОДА,"Хмельницька обл., Хмельницький, вул. Проскурівська, буд. 4/3",51,2018-09-04,204,Оплата ефірного часу на ТБ,Телереклама,239203,Центральний офіс,00013215,Україна,Оплаа трансляцію ролику,260031804900,current,660.00,"Міське КП ""Муніципальна телерадіокомпанія ""Місто""",32402179,юридична особа
СВОБОДА,"Сумська обл., Конотоп, вул. Клубна, буд. 21",51,2018-09-04,202,Оплата ефірного часу на ТБ,Телереклама,239202,Центральний офіс,00013215,Україна,Оплата за розміщення рекламно- інформаційних пслуг,260031804900,current,770.00,"ТОВ ТРК ""УКРМАІЛ""",31716579,юридична особа
СВОБОДА,"Київ, вул. Михайла Грушевського, буд. 1Д",70,2018-09-03,AS88v9gv8p,Банківські послуги,Інші витрати,243723,Чернівецька обласна організація,33971064,Чернівецька область,"Комісія за обслуговування рахунку за серпень 2018 р. згідно договору банківського рахунку від 29.09.2017, без ПДВ",26006051509840,current,100.00,"ПАТ КБ ""Приватбанк""",14360570,юридична особа
СВОБОДА,"Хмельницька обл., Хмельницький, Камʼянецька вул., 46",70,2018-09-03,6455748823,Банківські послуги,Інші витрати,243685,Хмельницька обласна організація,33953574,Хмельницька область,Списання щомісячної плати за обслуговування ТП Мій бізнес за серпень 2018р.,26003300884471,current,149.00,"Хмельницька обласна філія АТ ""Ощадбанк""",09315357,юридична особа
СВОБОДА,"Київ, вул. Михайла Грушевського, буд. 1Д",70,2018-09-03,AS88v8pi4p,Банківські послуги,Інші витрати,243644,Камʼянець-Подільська районна організація,25803823,Хмельницька область,Комісія за обслуговування рахунку за серпень 2018р.,26005052312438,current,100.00,"ПАТ КБ ""Приватбанк""",14360570,юридична особа
СВОБОДА,"Київ, вул. Михайла Грушевського, буд. 1Д",70,2018-09-03,82,Банківські послуги,Інші витрати,243643,Камʼянець-Подільська районна організація,25803823,Хмельницька область,Комісія РКО від зарплати за серпень 2018р.,26005052312438,current,3.74,"ПАТ КБ ""Приватбанк""",14360570,юридична особа
СВОБОДА,"Київ, вул. Михайла Грушевського, буд. 1Д",70,2018-09-03,AS88v8jgqp,Банківські послуги,Інші витрати,243585,Херсонська міська організація,37239058,Херсонська область,Комісія за обслуговування рахунку за серпень,26059052202048,current,100.00,"ПАТ КБ ""Приватбанк""",14360570,юридична особа
СВОБОДА,"Київ, вул. Михайла Грушевського, буд. 1Д",70,2018-09-03,AS88v98yxp,Банківські послуги,Інші витрати,243538,Полтавська обласна організація,36984343,Полтавська область,Комісія за обслуговування рахунку,26005054629028,current,50.00,"ПАТ КБ ""Приватбанк""",14360570,юридична особа
СВОБОДА,"Львівська обл., Сколівський р-н, Сколе",70,2018-09-03,6459647014,Банківські послуги,Інші витрати,243516,Сколівська районна організація,36766865,Львівська область,комісія за розрах.обслуг.рахунку,26001300453260,current,20.00,"Сколівська районна організація Всеукраїнське обʼєднання ""Свобода""",36766865,юридична особа
СВОБОДА,"Львівська обл., Сколівський р-н, Сколе",70,2018-09-03,6453345814,Банківські послуги,Інші витрати,243515,Сколівська районна організація,36766865,Львівська область,списання щомісячної оплати за обслуговування,26001300453260,current,49.00,"Сколівська районна організація Всеукраїнське обʼєднання ""Свобода""",36766865,юридична особа
